"Body Name","Body","Service Area Categorisation","Service Division Categorisation","Responsible Unit","Expenses Type","Detailed Expenses Type","Payment Date","Transaction Number","Payment Amount","Supplier Type","Supplier Name","Supplier Id"
"Portsmouth City Council","PCC","Highways and Transport Services","Airports, Harbours and Toll Facilities","Portsmouth International Port","Supplies and Services","Equipment, furniture and materials","14-Apr-21","6500622","790.47","SUPPLIER","HAMPSHIRE FLAG COMPANY","300000020458411"
"Portsmouth City Council","PCC","Environmental and Regulatory Services","Agricultural and Fisheries Services","Portsmouth International Port","Premises-Related Expenditure","Repairs, alterations and maintenance of buildings","19-Apr-21","6501227","3,070.00","LIMITED COMPANY","BAKER TRAYTE MARINE LIMITED","300000020458017"
"Portsmouth City Council","PCC","Highways and Transport Services","Airports, Harbours and Toll Facilities","Portsmouth International Port","Premises-Related Expenditure","Repairs, alterations and maintenance of buildings","20-Apr-21","6501414","4,035.00","LIMITED COMPANY","ML (UK) LTD","300000020463133"
"Portsmouth City Council","PCC","Other","Suspense and Capital Schemes","Portsmouth International Port","Supplies and Services","Miscellaneous expenses","20-Apr-21","6501414","5,445.00","LIMITED COMPANY","ML (UK) LTD","300000020463133"
"Portsmouth City Council","PCC","Other","Suspense and Capital Schemes","Portsmouth International Port","Supplies and Services","Miscellaneous expenses","20-Apr-21","6501414","12,590.00","LIMITED COMPANY","ML (UK) LTD","300000020463133"
"Portsmouth City Council","PCC","Environmental and Regulatory Services","Agricultural and Fisheries Services","Portsmouth International Port","Premises-Related Expenditure","Cleaning and domestic supplies","19-Apr-21","6501222","10","SUPPLIER","F & G CLEANERS LTD","300000020478273"
"Portsmouth City Council","PCC","Highways and Transport Services","Airports, Harbours and Toll Facilities","Portsmouth International Port","Premises-Related Expenditure","Cleaning and domestic supplies","19-Apr-21","6501222","10","SUPPLIER","F & G CLEANERS LTD","300000020478273"
"Portsmouth City Council","PCC","Highways and Transport Services","Airports, Harbours and Toll Facilities","Portsmouth International Port","Premises-Related Expenditure","Cleaning and domestic supplies","19-Apr-21","6501222","832","SUPPLIER","F & G CLEANERS LTD","300000020478273"
"Portsmouth City Council","PCC","Highways and Transport Services","Airports, Harbours and Toll Facilities","Portsmouth International Port","Premises-Related Expenditure","Cleaning and domestic supplies","19-Apr-21","6501222","261","SUPPLIER","F & G CLEANERS LTD","300000020478273"
"Portsmouth City Council","PCC","Highways and Transport Services","Airports, Harbours and Toll Facilities","Portsmouth International Port","Third Party Payments","Private contractors","19-Apr-21","6501237","10,605.00","SUPPLIER","RPS CONSULTING SERVICES","300000020480600"
"Portsmouth City Council","PCC","Adult Social Care","Physical Support Older People (85+)","Adult Services","Third Party Payments","Other establishments","27-Apr-21","6502728","208","SUPPLIER","ABICARE SERVICES LTD","300000020470310"
"Portsmouth City Council","PCC","Adult Social Care","Physical Support Older People (85+)","Adult Services","Third Party Payments","Other establishments","27-Apr-21","6502728","1,248.00","SUPPLIER","ABICARE SERVICES LTD","300000020470310"
"Portsmouth City Council","PCC","Adult Social Care","Physical Support Older People (85+)","Adult Services","Third Party Payments","Other establishments","27-Apr-21","6502728","280.24","SUPPLIER","ABICARE SERVICES LTD","300000020470310"
"Portsmouth City Council","PCC","Adult Social Care","Physical Support Older People (85+)","Adult Services","Third Party Payments","Other establishments","27-Apr-21","6502728","1,681.44","SUPPLIER","ABICARE SERVICES LTD","300000020470310"
"Portsmouth City Council","PCC","Adult Social Care","Physical Support Adults (18 - 64)","Adult Services","Third Party Payments","Other establishments","13-Apr-21","6500046","496.16","SUPPLIER","ACCESS CARE LTD","300000020464178"
"Portsmouth City Council","PCC","Adult Social Care","Physical Support Adults (18 - 64)","Adult Services","Third Party Payments","Other establishments","13-Apr-21","6500046","3,120.32","SUPPLIER","ACCESS CARE LTD","300000020464178"
"Portsmouth City Council","PCC","Adult Social Care","Mental Health Support Older People (65 - 74)","Adult Services","Third Party Payments","Other establishments","29-Apr-21","6503667","27.91","SUPPLIER","ADMIRAL CARE LTD","300000020477405"
"Portsmouth City Council","PCC","Adult Social Care","Mental Health Support Older People (65 - 74)","Adult Services","Third Party Payments","Other establishments","29-Apr-21","6503667","27.91","SUPPLIER","ADMIRAL CARE LTD","300000020477405"
"Portsmouth City Council","PCC","Adult Social Care","Mental Health Support Older People (65 - 74)","Adult Services","Third Party Payments","Other establishments","29-Apr-21","6503667","42.26","SUPPLIER","ADMIRAL CARE LTD","300000020477405"
"Portsmouth City Council","PCC","Adult Social Care","Mental Health Support Older People (65 - 74)","Adult Services","Third Party Payments","Other establishments","29-Apr-21","6503667","42.26","SUPPLIER","ADMIRAL CARE LTD","300000020477405"
"Portsmouth City Council","PCC","Adult Social Care","Mental Health Support Older People (65 - 74)","Adult Services","Third Party Payments","Other establishments","29-Apr-21","6503667","48.84","SUPPLIER","ADMIRAL CARE LTD","300000020477405"
"Portsmouth City Council","PCC","Adult Social Care","Mental Health Support Older People (65 - 74)","Adult Services","Third Party Payments","Other establishments","29-Apr-21","6503667","55.82","SUPPLIER","ADMIRAL CARE LTD","300000020477405"
"Portsmouth City Council","PCC","Adult Social Care","Mental Health Support Older People (65 - 74)","Adult Services","Third Party Payments","Other establishments","29-Apr-21","6503667","55.82","SUPPLIER","ADMIRAL CARE LTD","300000020477405"
"Portsmouth City Council","PCC","Adult Social Care","Mental Health Support Older People (65 - 74)","Adult Services","Third Party Payments","Other establishments","29-Apr-21","6503667","55.82","SUPPLIER","ADMIRAL CARE LTD","300000020477405"
"Portsmouth City Council","PCC","Adult Social Care","Physical Support Older People (85+)","Adult Services","Third Party Payments","Other establishments","29-Apr-21","6503667","55.82","SUPPLIER","ADMIRAL CARE LTD","300000020477405"
"Portsmouth City Council","PCC","Adult Social Care","Mental Health Support Older People (65 - 74)","Adult Services","Third Party Payments","Other establishments","29-Apr-21","6503667","73.95","SUPPLIER","ADMIRAL CARE LTD","300000020477405"
"Portsmouth City Council","PCC","Adult Social Care","Mental Health Support Older People (65 - 74)","Adult Services","Third Party Payments","Other establishments","29-Apr-21","6503667","84.51","SUPPLIER","ADMIRAL CARE LTD","300000020477405"
"Portsmouth City Council","PCC","Adult Social Care","Mental Health Support Older People (65 - 74)","Adult Services","Third Party Payments","Other establishments","29-Apr-21","6503667","84.51","SUPPLIER","ADMIRAL CARE LTD","300000020477405"
"Portsmouth City Council","PCC","Adult Social Care","Mental Health Support Older People (65 - 74)","Adult Services","Third Party Payments","Other establishments","29-Apr-21","6503667","84.51","SUPPLIER","ADMIRAL CARE LTD","300000020477405"
"Portsmouth City Council","PCC","Adult Social Care","Physical Support Older People (85+)","Adult Services","Third Party Payments","Other establishments","29-Apr-21","6503667","84.51","SUPPLIER","ADMIRAL CARE LTD","300000020477405"
"Portsmouth City Council","PCC","Adult Social Care","Physical Support Older People (85+)","Adult Services","Third Party Payments","Other establishments","29-Apr-21","6503667","104.66","SUPPLIER","ADMIRAL CARE LTD","300000020477405"
"Portsmouth City Council","PCC","Adult Social Care","Mental Health Support Older People (65 - 74)","Adult Services","Third Party Payments","Other establishments","29-Apr-21","6503667","139.54","SUPPLIER","ADMIRAL CARE LTD","300000020477405"
"Portsmouth City Council","PCC","Adult Social Care","Physical Support Older People (85+)","Adult Services","Third Party Payments","Other establishments","29-Apr-21","6503667","146.52","SUPPLIER","ADMIRAL CARE LTD","300000020477405"
"Portsmouth City Council","PCC","Adult Social Care","Physical Support Older People (85+)","Adult Services","Third Party Payments","Other establishments","29-Apr-21","6503667","158.46","SUPPLIER","ADMIRAL CARE LTD","300000020477405"
"Portsmouth City Council","PCC","Adult Social Care","Physical Support Older People (85+)","Adult Services","Third Party Payments","Other establishments","29-Apr-21","6503667","181.41","SUPPLIER","ADMIRAL CARE LTD","300000020477405"
"Portsmouth City Council","PCC","Adult Social Care","Physical Support Older People (85+)","Adult Services","Third Party Payments","Other establishments","29-Apr-21","6503667","195.36","SUPPLIER","ADMIRAL CARE LTD","300000020477405"
"Portsmouth City Council","PCC","Adult Social Care","Physical Support Older People (85+)","Adult Services","Third Party Payments","Other establishments","29-Apr-21","6503667","195.36","SUPPLIER","ADMIRAL CARE LTD","300000020477405"
"Portsmouth City Council","PCC","Adult Social Care","Physical Support Older People (85+)","Adult Services","Third Party Payments","Other establishments","29-Apr-21","6503667","195.36","SUPPLIER","ADMIRAL CARE LTD","300000020477405"
"Portsmouth City Council","PCC","Other","Suspense and Capital Schemes","Corporate Services","Supplies and Services","Communications and computing","13-Apr-21","6500067","2,568.47","SUPPLIER","WESTCOAST LIMITED","300000019988484"
"Portsmouth City Council","PCC","Adult Social Care","Physical Support Older People (85+)","Adult Services","Third Party Payments","Other establishments","29-Apr-21","6503667","195.36","SUPPLIER","ADMIRAL CARE LTD","300000020477405"
"Portsmouth City Council","PCC","Children's and Education Services","Children Looked After","Children's Services and Education","Transport-Related Expenditure","Direct transport costs","30-Apr-21","6503772","21.9","SUPPLIER","AQUA CARS LIMITED","300000019988490"
"Portsmouth City Council","PCC","Adult Social Care","Physical Support Older People (85+)","Adult Services","Third Party Payments","Other establishments","29-Apr-21","6503667","204.36","SUPPLIER","ADMIRAL CARE LTD","300000020477405"
"Portsmouth City Council","PCC","Support Service / Transparency Costs Unallocated","Financial Services","Finance & Resources","Supplies and Services","Communications and computing","28-Apr-21","6503256","1,925.74","SUPPLIER","PHOENIX SOFTWARE LIMTED","300000019988509"
"Portsmouth City Council","PCC","Adult Social Care","Physical Support Older People (85+)","Adult Services","Third Party Payments","Other establishments","29-Apr-21","6503667","204.36","SUPPLIER","ADMIRAL CARE LTD","300000020477405"
"Portsmouth City Council","PCC","Adult Social Care","Mental Health Support Older People (65 - 74)","Adult Services","Third Party Payments","Other establishments","29-Apr-21","6503667","211.29","SUPPLIER","ADMIRAL CARE LTD","300000020477405"
"Portsmouth City Council","PCC","Adult Social Care","Physical Support Older People (85+)","Adult Services","Third Party Payments","Other establishments","29-Apr-21","6503667","221.85","SUPPLIER","ADMIRAL CARE LTD","300000020477405"
"Portsmouth City Council","PCC","Adult Social Care","Mental Health Support Older People (65 - 74)","Adult Services","Third Party Payments","Other establishments","29-Apr-21","6503667","223.27","SUPPLIER","ADMIRAL CARE LTD","300000020477405"
"Portsmouth City Council","PCC","Housing Revenue Account","Special Services","Housing, Neighbourhood and Building Services","Supplies and Services","Catering","19-Apr-21","6501238","7.76","SUPPLIER","APETITO LTD","300000015963886"
"Portsmouth City Council","PCC","Housing Revenue Account","Special Services","Housing, Neighbourhood and Building Services","Supplies and Services","Catering","19-Apr-21","6501238","449.85","SUPPLIER","APETITO LTD","300000015963886"
"Portsmouth City Council","PCC","Housing Revenue Account","Special Services","Housing, Neighbourhood and Building Services","Supplies and Services","Catering","19-Apr-21","6501238","15.52","SUPPLIER","APETITO LTD","300000015963886"
"Portsmouth City Council","PCC","Housing Revenue Account","Special Services","Housing, Neighbourhood and Building Services","Supplies and Services","Catering","19-Apr-21","6501238","444.98","SUPPLIER","APETITO LTD","300000015963886"
"Portsmouth City Council","PCC","Housing Revenue Account","Special Services","Housing, Neighbourhood and Building Services","Supplies and Services","Catering","19-Apr-21","6501238","23.28","SUPPLIER","APETITO LTD","300000015963886"
"Portsmouth City Council","PCC","Housing Revenue Account","Special Services","Housing, Neighbourhood and Building Services","Supplies and Services","Catering","19-Apr-21","6501238","323.76","SUPPLIER","APETITO LTD","300000015963886"
"Portsmouth City Council","PCC","Housing Revenue Account","Special Services","Housing, Neighbourhood and Building Services","Supplies and Services","Catering","26-Apr-21","6502578","441.86","SUPPLIER","APETITO LTD","300000015963886"
"Portsmouth City Council","PCC","Housing Revenue Account","Special Services","Housing, Neighbourhood and Building Services","Supplies and Services","Catering","26-Apr-21","6502578","7.35","SUPPLIER","APETITO LTD","300000015963886"
"Portsmouth City Council","PCC","Housing Revenue Account","Special Services","Housing, Neighbourhood and Building Services","Supplies and Services","Catering","26-Apr-21","6502578","246.9","SUPPLIER","APETITO LTD","300000015963886"
"Portsmouth City Council","PCC","Housing Revenue Account","Special Services","Housing, Neighbourhood and Building Services","Supplies and Services","Catering","26-Apr-21","6502578","38.16","SUPPLIER","APETITO LTD","300000015963886"
"Portsmouth City Council","PCC","Housing Revenue Account","Special Services","Housing, Neighbourhood and Building Services","Supplies and Services","Catering","26-Apr-21","6502578","7.76","SUPPLIER","APETITO LTD","300000015963886"
"Portsmouth City Council","PCC","Housing Revenue Account","Special Services","Housing, Neighbourhood and Building Services","Supplies and Services","Catering","26-Apr-21","6502578","374.98","SUPPLIER","APETITO LTD","300000015963886"
"Portsmouth City Council","PCC","Housing Revenue Account","Special Services","Housing, Neighbourhood and Building Services","Supplies and Services","Catering","26-Apr-21","6502578","15.52","SUPPLIER","APETITO LTD","300000015963886"
"Portsmouth City Council","PCC","Housing Revenue Account","Special Services","Housing, Neighbourhood and Building Services","Supplies and Services","Catering","26-Apr-21","6502578","361.93","SUPPLIER","APETITO LTD","300000015963886"
"Portsmouth City Council","PCC","Cultural and Related Services","Recreation and Sport","Culture, Leisure & Regulatory Services","Premises-Related Expenditure","Repairs, alterations and maintenance of buildings","20-Apr-21","6501415","690","LIMITED COMPANY","PAINTLYNE LTD","300000015963991"
"Portsmouth City Council","PCC","Housing Revenue Account","Rents, Rates, Taxes and Other Charges","Housing, Neighbourhood and Building Services","Premises-Related Expenditure","Rates","13-Apr-21","6500061","325.54","OTHER LOCAL AUTHORITY","HAVANT BOROUGH COUNCIL","300000020457057"
"Portsmouth City Council","PCC","Housing Revenue Account","Rents, Rates, Taxes and Other Charges","Housing, Neighbourhood and Building Services","Premises-Related Expenditure","Rates","13-Apr-21","6500061","162.43","OTHER LOCAL AUTHORITY","HAVANT BOROUGH COUNCIL","300000020457057"
"Portsmouth City Council","PCC","Housing Revenue Account","Rents, Rates, Taxes and Other Charges","Housing, Neighbourhood and Building Services","Premises-Related Expenditure","Rates","13-Apr-21","6500061","710.51","OTHER LOCAL AUTHORITY","HAVANT BOROUGH COUNCIL","300000020457057"
"Portsmouth City Council","PCC","Housing Revenue Account","Rents, Rates, Taxes and Other Charges","Housing, Neighbourhood and Building Services","Premises-Related Expenditure","Rates","13-Apr-21","6500061","252.37","OTHER LOCAL AUTHORITY","HAVANT BOROUGH COUNCIL","300000020457057"
"Portsmouth City Council","PCC","Housing Revenue Account","Rents, Rates, Taxes and Other Charges","Housing, Neighbourhood and Building Services","Premises-Related Expenditure","Rates","13-Apr-21","6500061","126.96","OTHER LOCAL AUTHORITY","HAVANT BOROUGH COUNCIL","300000020457057"
"Portsmouth City Council","PCC","Housing Revenue Account","Rents, Rates, Taxes and Other Charges","Housing, Neighbourhood and Building Services","Premises-Related Expenditure","Rates","13-Apr-21","6500061","6.63","OTHER LOCAL AUTHORITY","HAVANT BOROUGH COUNCIL","300000020457057"
"Portsmouth City Council","PCC","Environmental and Regulatory Services","Cemetery, Cremation and Mortuary Services","Culture, Leisure & Regulatory Services","Supplies and Services","Communications and computing","22-Apr-21","6502120","1,223.08","LIMITED COMPANY","VIRGIN MEDIA LIMITED","300000020457071"
"Portsmouth City Council","PCC","Cultural and Related Services","Open Spaces","Culture, Leisure & Regulatory Services","Supplies and Services","Equipment, furniture and materials","13-Apr-21","6500124","1,347.32","SUPPLIER","CROMA LOCKSMITHS AND SECURITY SOLUTIONS LTD","300000020458285"
"Portsmouth City Council","PCC","Cultural and Related Services","Open Spaces","Culture, Leisure & Regulatory Services","Supplies and Services","Equipment, furniture and materials","13-Apr-21","6500124","2,865.50","SUPPLIER","CROMA LOCKSMITHS AND SECURITY SOLUTIONS LTD","300000020458285"
"Portsmouth City Council","PCC","Cultural and Related Services","Open Spaces","Culture, Leisure & Regulatory Services","Supplies and Services","Equipment, furniture and materials","27-Apr-21","6502727","1,036.40","SUPPLIER","CROMA LOCKSMITHS AND SECURITY SOLUTIONS LTD","300000020458285"
"Portsmouth City Council","PCC","Children's and Education Services","Safeguarding Children and Young Peoples Services","Children's Services and Education","Third Party Payments","Private contractors","23-Apr-21","6502426","1,650.00","OTHER LOCAL AUTHORITY","SOUTHAMPTON CITY COUNCIL","300000020458483"
"Portsmouth City Council","PCC","Cultural and Related Services","Open Spaces","Culture, Leisure & Regulatory Services","Premises-Related Expenditure","Grounds maintenance costs","30-Apr-21","6503844","4,057.42","SUPPLIER","J F GOODWILLIE LTD","300000020461819"
"Portsmouth City Council","PCC","Children's and Education Services","Primary Schools","Children's Services and Education","Employees","Direct employee expenses","15-Apr-21","6500660","334.6","SUPPLIER","TIMEPLAN EDUCATION GROUP LTD","300000020461553"
"Portsmouth City Council","PCC","Children's and Education Services","Primary Schools","Children's Services and Education","Employees","Direct employee expenses","15-Apr-21","6500660","943.2","SUPPLIER","TIMEPLAN EDUCATION GROUP LTD","300000020461553"
"Portsmouth City Council","PCC","Cultural and Related Services","Library Service","Culture, Leisure & Regulatory Services","Third Party Payments","Private contractors","27-Apr-21","6502766","135.7","LIMITED COMPANY","VEOLIA ES LIMITED","300000020462900"
"Portsmouth City Council","PCC","Cultural and Related Services","Library Service","Culture, Leisure & Regulatory Services","Third Party Payments","Private contractors","27-Apr-21","6502766","394.66","LIMITED COMPANY","VEOLIA ES LIMITED","300000020462900"
"Portsmouth City Council","PCC","Children's and Education Services","Family Support Services","Children's Services and Education","Premises-Related Expenditure","Cleaning and domestic supplies","27-Apr-21","6502766","145.4","LIMITED COMPANY","VEOLIA ES LIMITED","300000020462900"
"Portsmouth City Council","PCC","Housing Revenue Account","Special Services","Housing, Neighbourhood and Building Services","Premises-Related Expenditure","Cleaning and domestic supplies","27-Apr-21","6502766","264.5","LIMITED COMPANY","VEOLIA ES LIMITED","300000020462900"
"Portsmouth City Council","PCC","Other","Suspense and Capital Schemes","Housing, Neighbourhood and Building Services","Premises-Related Expenditure","Cleaning and domestic supplies","15-Apr-21","6500681","514.68","SUPPLIER","SUEZ RECYCLING AND RECOVERY UK LTD","300000020462997"
"Portsmouth City Council","PCC","Support Service / Transparency Costs Unallocated","Information Services","Corporate Services","Supplies and Services","Printing, stationery and general office expenses","27-Apr-21","6502757","10,611.24","SUPPLIER","CANON (UK) LTD","300000020464490"
"Portsmouth City Council","PCC","Cultural and Related Services","Open Spaces","Culture, Leisure & Regulatory Services","Premises-Related Expenditure","Grounds maintenance costs","27-Apr-21","6502750","3,774.00","PARTNERSHIP","STRONGHOLD SECURITY FENCING","300000020459132"
"Portsmouth City Council","PCC","Support Service / Transparency Costs Unallocated","AMS","Housing, Neighbourhood and Building Services","Premises-Related Expenditure","Energy costs","23-Apr-21","6502451","2,022.40","PUBLIC LIMITED COMPANY","SIEMENS PLC","300000020460279"
"Portsmouth City Council","PCC","Environmental and Regulatory Services","Regulatory Services","Culture, Leisure & Regulatory Services","Third Party Payments","Private contractors","27-Apr-21","6502740","2,000.00","SUPPLIER","EXPERIAN LIMITED","300000020461288"
"Portsmouth City Council","PCC","Other","Suspense and Capital Schemes","Capital - Planning Policy & City Development","Capital Charges","Capital Expenditure (WIP)","13-Apr-21","6500048","7,553.97","SUPPLIER","HASKONINGDHV UK LIMITED","300000020461720"
"Portsmouth City Council","PCC","Housing Revenue Account","Repairs and Maintenance","Housing, Neighbourhood and Building Services","Premises-Related Expenditure","Repairs, alterations and maintenance of buildings","27-Apr-21","6502754","4,048.84","LIMITED COMPANY","VITAL ENERGI UTILITIES LIMITED","300000020460972"
"Portsmouth City Council","PCC","Housing Revenue Account","Repairs and Maintenance","Housing, Neighbourhood and Building Services","Premises-Related Expenditure","Repairs, alterations and maintenance of buildings","27-Apr-21","6502754","1,168.07","LIMITED COMPANY","VITAL ENERGI UTILITIES LIMITED","300000020460972"
"Portsmouth City Council","PCC","Costs below Net Cost of Services","Trading","Regeneration","Supplies and Services","Miscellaneous expenses","20-Apr-21","6501400","1,150.00","SUPPLIER","AVISON YOUNG (UK) LTD T/A AVISON YOUNG","300000020463692"
"Portsmouth City Council","PCC","Solent LEP","Business support","OTHER","Supplies and Services","Services","21-Apr-21","6501564","2,000.00","LIMITED LIABILITY PARTNERSHIP","BDO LLP","300000020463699"
"Portsmouth City Council","PCC","Solent LEP","Business support","OTHER","Supplies and Services","Services","21-Apr-21","6501564","1,750.00","LIMITED LIABILITY PARTNERSHIP","BDO LLP","300000020463699"
"Portsmouth City Council","PCC","Solent LEP","Business support","OTHER","Supplies and Services","Services","21-Apr-21","6501564","12,000.00","LIMITED LIABILITY PARTNERSHIP","BDO LLP","300000020463699"
"Portsmouth City Council","PCC","Other","Suspense and Capital Schemes","Capital - Leader - Port","Capital Charges","Capital Expenditure (WIP)","27-Apr-21","6502745","-207,000.00","SUPPLIER","PORTICO SHIPPING LTD","300000020463532"
"Portsmouth City Council","PCC","Other","Suspense and Capital Schemes","Capital - Leader - Port","Capital Charges","Capital Expenditure (WIP)","27-Apr-21","6502745","207,000.00","SUPPLIER","PORTICO SHIPPING LTD","300000020463532"
"Portsmouth City Council","PCC","Solent LEP","Business support","OTHER","Third Party Payments","Private contractors","19-Apr-21","6501224","9,839.00","SUPPLIER","HAMPSHIRE CHAMBER OF COMMERCE","300000020463581"
"Portsmouth City Council","PCC","Highways and Transport Services","Transport Planning, Policy and Strategy","Regeneration","Third Party Payments","Private contractors","15-Apr-21","6500655","945.18","LIMITED COMPANY","ENSIGN HIGHWAYS LTD","300000020461919"
"Portsmouth City Council","PCC","Cultural and Related Services","Recreation and Sport","Culture, Leisure & Regulatory Services","Third Party Payments","Private contractors","13-Apr-21","6500057","497.22","LIMITED COMPANY","ENSIGN HIGHWAYS LTD","300000020461919"
"Portsmouth City Council","PCC","Adult Social Care","Physical Support Older People (85+)","Adult Services","Third Party Payments","Other establishments","29-Apr-21","6503667","244.2","SUPPLIER","ADMIRAL CARE LTD","300000020477405"
"Portsmouth City Council","PCC","Planning Services","Economic Development","Regeneration","Premises-Related Expenditure","Grounds maintenance costs","13-Apr-21","6500057","1,414.21","LIMITED COMPANY","ENSIGN HIGHWAYS LTD","300000020461919"
"Portsmouth City Council","PCC","Other","Suspense and Capital Schemes","Capital - Traffic & Transportation","Capital Charges","Capital Expenditure (WIP)","13-Apr-21","6500057","7,620.86","LIMITED COMPANY","ENSIGN HIGHWAYS LTD","300000020461919"
"Portsmouth City Council","PCC","Highways and Transport Services","Transport Planning, Policy and Strategy","Regeneration","Third Party Payments","Private contractors","15-Apr-21","6500655","1,320.58","LIMITED COMPANY","ENSIGN HIGHWAYS LTD","300000020461919"
"Portsmouth City Council","PCC","Housing Revenue Account","Repairs and Maintenance","Housing, Neighbourhood and Building Services","Premises-Related Expenditure","Repairs, alterations and maintenance of buildings","13-Apr-21","6500009","746.52","SUPPLIER","GULLY HOWARD TECHNICAL LIMITED","300000020461838"
"Portsmouth City Council","PCC","Housing Revenue Account","Supervision and Management","Housing, Neighbourhood and Building Services","Premises-Related Expenditure","Repairs, alterations and maintenance of buildings","13-Apr-21","6500045","8,336.00","SUPPLIER","JOHN POUNDS COMMUNITY TRUST","300000020461113"
"Portsmouth City Council","PCC","Other","Suspense and Capital Schemes","Capital - Leader","Capital Charges","Capital Expenditure (WIP)","27-Apr-21","6502761","920","SUPPLIER","SAVILLS (UK) LTD","300000020463896"
"Portsmouth City Council","PCC","Environmental and Regulatory Services","Community Safety (Crime Reduction)","Children's Services and Education","Third Party Payments","Private contractors","28-Apr-21","6503290","26,000.00","SUPPLIER","SOUTHERN DOMESTIC ABUSE SERVICE","300000020457530"
"Portsmouth City Council","PCC","Adult Social Care","Physical Support Older People (85+)","Adult Services","Third Party Payments","Other establishments","29-Apr-21","6503667","244.2","SUPPLIER","ADMIRAL CARE LTD","300000020477405"
"Portsmouth City Council","PCC","Adult Social Care","Physical Support Older People (85+)","Adult Services","Third Party Payments","Other establishments","29-Apr-21","6503667","244.2","SUPPLIER","ADMIRAL CARE LTD","300000020477405"
"Portsmouth City Council","PCC","Adult Social Care","Physical Support Older People (85+)","Adult Services","Third Party Payments","Other establishments","29-Apr-21","6503667","274.67","SUPPLIER","ADMIRAL CARE LTD","300000020477405"
"Portsmouth City Council","PCC","Solent LEP","Business support","OTHER","Third Party Payments","Private contractors","13-Apr-21","6500115","17,400.00","SUPPLIER","COMMUNITY ACTION HAMPSHIRE","300000020481985"
"Portsmouth City Council","PCC","Solent LEP","Business support","OTHER","Third Party Payments","Private contractors","13-Apr-21","6500115","4,350.00","SUPPLIER","COMMUNITY ACTION HAMPSHIRE","300000020481985"
"Portsmouth City Council","PCC","Children's and Education Services","Safeguarding Children and Young Peoples Services","Children's Services and Education","Third Party Payments","Other establishments","13-Apr-21","6500112","1,500.00","SUPPLIER","THE BREASTFEEDING NETWORK","300000020457129"
"Portsmouth City Council","PCC","Housing Revenue Account","Special Services","Housing, Neighbourhood and Building Services","Premises-Related Expenditure","Cleaning and domestic supplies","23-Apr-21","6502329","572","SUPPLIER","BTE SERVICES LTD T/A SOUTH WEST HYGIENE","300000020457135"
"Portsmouth City Council","PCC","Adult Social Care","Mental Health Support Older People (65 - 74)","Adult Services","Third Party Payments","Other establishments","29-Apr-21","6503667","293.04","SUPPLIER","ADMIRAL CARE LTD","300000020477405"
"Portsmouth City Council","PCC","Adult Social Care","Mental Health Support Older People (65 - 74)","Adult Services","Third Party Payments","Other establishments","29-Apr-21","6503667","293.04","SUPPLIER","ADMIRAL CARE LTD","300000020477405"
"Portsmouth City Council","PCC","Planning Services","Business support","Regeneration","Supplies and Services","Grants and subscriptions","28-Apr-21","6502929","922","SUPPLIER","NATIONAL ASSOCIATION OF BRITISH MARKETING AUTHORITIES LTD","300000020480225"
"Portsmouth City Council","PCC","Adult Social Care","Physical Support Older People (85+)","Adult Services","Third Party Payments","Other establishments","29-Apr-21","6503667","295.8","SUPPLIER","ADMIRAL CARE LTD","300000020477405"
"Portsmouth City Council","PCC","Adult Social Care","Physical Support Older People (85+)","Adult Services","Third Party Payments","Other establishments","29-Apr-21","6503667","295.8","SUPPLIER","ADMIRAL CARE LTD","300000020477405"
"Portsmouth City Council","PCC","Costs below Net Cost of Services","Trading","Regeneration","Premises-Related Expenditure","Grounds maintenance costs","13-Apr-21","6500037","347.5","LIMITED COMPANY","JACK COUPE & SONS LTD","300000020483495"
"Portsmouth City Council","PCC","Costs below Net Cost of Services","Trading","Regeneration","Premises-Related Expenditure","Grounds maintenance costs","13-Apr-21","6500037","347.5","LIMITED COMPANY","JACK COUPE & SONS LTD","300000020483495"
"Portsmouth City Council","PCC","Adult Social Care","Physical Support Older People (85+)","Adult Services","Third Party Payments","Other establishments","29-Apr-21","6503667","295.8","SUPPLIER","ADMIRAL CARE LTD","300000020477405"
"Portsmouth City Council","PCC","Adult Social Care","Physical Support Older People (85+)","Adult Services","Third Party Payments","Other establishments","29-Apr-21","6503667","295.8","SUPPLIER","ADMIRAL CARE LTD","300000020477405"
"Portsmouth City Council","PCC","Adult Social Care","Physical Support Older People (85+)","Adult Services","Third Party Payments","Other establishments","29-Apr-21","6503667","309.79","SUPPLIER","ADMIRAL CARE LTD","300000020477405"
"Portsmouth City Council","PCC","Adult Social Care","Physical Support Older People (85+)","Adult Services","Third Party Payments","Other establishments","29-Apr-21","6503667","309.79","SUPPLIER","ADMIRAL CARE LTD","300000020477405"
"Portsmouth City Council","PCC","Cultural and Related Services","Open Spaces","Culture, Leisure & Regulatory Services","Supplies and Services","Printing, stationery and general office expenses","28-Apr-21","6502869","75","SUPPLIER","BONINGALE LTD","300000020480526"
"Portsmouth City Council","PCC","Cultural and Related Services","Open Spaces","Culture, Leisure & Regulatory Services","Supplies and Services","Equipment, furniture and materials","28-Apr-21","6502869","3,475.35","SUPPLIER","BONINGALE LTD","300000020480526"
"Portsmouth City Council","PCC","Cultural and Related Services","Open Spaces","Culture, Leisure & Regulatory Services","Supplies and Services","Printing, stationery and general office expenses","28-Apr-21","6502869","75","SUPPLIER","BONINGALE LTD","300000020480526"
"Portsmouth City Council","PCC","Cultural and Related Services","Open Spaces","Culture, Leisure & Regulatory Services","Supplies and Services","Equipment, furniture and materials","28-Apr-21","6502869","2,942.75","SUPPLIER","BONINGALE LTD","300000020480526"
"Portsmouth City Council","PCC","Cultural and Related Services","Open Spaces","Culture, Leisure & Regulatory Services","Transport-Related Expenditure","Direct transport costs","21-Apr-21","6501892","540","SUPPLIER","SOUTHERN MOTOR CONTRACTS LTD T/A MOTORENT","300000020480961"
"Portsmouth City Council","PCC","Children's and Education Services","Family Support Services","Children's Services and Education","Premises-Related Expenditure","Rents","27-Apr-21","6502718","8,788.00","SUPPLIER","KINGS GROUP ACADEMIES","300000020484231"
"Portsmouth City Council","PCC","Support Service / Transparency Costs Unallocated","Information Services","Corporate Services","Supplies and Services","Communications and computing","30-Apr-21","6503791","4,677.02","SUPPLIER","SILVERSTRING LTD","300000020484265"
"Portsmouth City Council","PCC","Cultural and Related Services","Recreation and Sport","Culture, Leisure & Regulatory Services","Third Party Payments","Private contractors","19-Apr-21","6501223","2,395.81","SUPPLIER","BH LIVE","300000020482279"
"Portsmouth City Council","PCC","Cultural and Related Services","Recreation and Sport","Culture, Leisure & Regulatory Services","Third Party Payments","Private contractors","19-Apr-21","6501223","2,544.28","SUPPLIER","BH LIVE","300000020482279"
"Portsmouth City Council","PCC","Cultural and Related Services","Recreation and Sport","Culture, Leisure & Regulatory Services","Third Party Payments","Private contractors","19-Apr-21","6501223","3,186.57","SUPPLIER","BH LIVE","300000020482279"
"Portsmouth City Council","PCC","Cultural and Related Services","Recreation and Sport","Culture, Leisure & Regulatory Services","Third Party Payments","Private contractors","19-Apr-21","6501223","4,045.39","SUPPLIER","BH LIVE","300000020482279"
"Portsmouth City Council","PCC","Cultural and Related Services","Recreation and Sport","Culture, Leisure & Regulatory Services","Third Party Payments","Private contractors","19-Apr-21","6501223","4,282.09","SUPPLIER","BH LIVE","300000020482279"
"Portsmouth City Council","PCC","Cultural and Related Services","Recreation and Sport","Culture, Leisure & Regulatory Services","Third Party Payments","Private contractors","19-Apr-21","6501223","75,125.20","SUPPLIER","BH LIVE","300000020482279"
"Portsmouth City Council","PCC","Cultural and Related Services","Recreation and Sport","Culture, Leisure & Regulatory Services","Third Party Payments","Private contractors","19-Apr-21","6501223","42,819.49","SUPPLIER","BH LIVE","300000020482279"
"Portsmouth City Council","PCC","Highways and Transport Services","Public Transport","Regeneration","Supplies and Services","Grants and subscriptions","20-Apr-21","6501421","2,420.00","SUPPLIER","ROAD PALS LTD","300000020484309"
"Portsmouth City Council","PCC","Planning Services","Business support","Regeneration","Third Party Payments","Private contractors","13-Apr-21","6500082","1,800.00","SUPPLIER","TEAM LOCALS","300000020477543"
"Portsmouth City Council","PCC","Environmental and Regulatory Services","Regulatory Services","Culture, Leisure & Regulatory Services","Supplies and Services","Services","23-Apr-21","6502462","145","SUPPLIER","NATIONAL CRIME AGENCY","300000020479104"
"Portsmouth City Council","PCC","Environmental and Regulatory Services","Regulatory Services","Culture, Leisure & Regulatory Services","Supplies and Services","Services","23-Apr-21","6502462","145","SUPPLIER","NATIONAL CRIME AGENCY","300000020479104"
"Portsmouth City Council","PCC","Environmental and Regulatory Services","Regulatory Services","Culture, Leisure & Regulatory Services","Supplies and Services","Services","23-Apr-21","6502462","145","SUPPLIER","NATIONAL CRIME AGENCY","300000020479104"
"Portsmouth City Council","PCC","Environmental and Regulatory Services","Regulatory Services","Culture, Leisure & Regulatory Services","Supplies and Services","Services","23-Apr-21","6502462","145","SUPPLIER","NATIONAL CRIME AGENCY","300000020479104"
"Portsmouth City Council","PCC","Children's and Education Services","Other Children and Family Services","Children's Services and Education","Employees","Indirect employee expenses","26-Apr-21","6502547","610","SUPPLIER","SIGNIS LIMITED","300000020484051"
"Portsmouth City Council","PCC","Housing Revenue Account","Repairs and Maintenance","Housing, Neighbourhood and Building Services","Premises-Related Expenditure","Repairs, alterations and maintenance of buildings","28-Apr-21","6503366","7,560.00","SUPPLIER","WATER HYGIENE CENTRE LTD","300000020478255"
"Portsmouth City Council","PCC","Children's and Education Services","Asylum seekers","Children's Services and Education","Supplies and Services","Services","22-Apr-21","6502143","47.4","SUPPLIER","D A LANGUAGES LIMITED","300000020483180"
"Portsmouth City Council","PCC","Children's and Education Services","Asylum seekers","Children's Services and Education","Supplies and Services","Services","22-Apr-21","6502143","18.4","SUPPLIER","D A LANGUAGES LIMITED","300000020483180"
"Portsmouth City Council","PCC","Children's and Education Services","Asylum seekers","Children's Services and Education","Supplies and Services","Services","22-Apr-21","6502143","16","SUPPLIER","D A LANGUAGES LIMITED","300000020483180"
"Portsmouth City Council","PCC","Children's and Education Services","Asylum seekers","Children's Services and Education","Supplies and Services","Services","22-Apr-21","6502143","20.28","SUPPLIER","D A LANGUAGES LIMITED","300000020483180"
"Portsmouth City Council","PCC","Children's and Education Services","Asylum seekers","Children's Services and Education","Supplies and Services","Services","22-Apr-21","6502143","35.76","SUPPLIER","D A LANGUAGES LIMITED","300000020483180"
"Portsmouth City Council","PCC","Children's and Education Services","Asylum seekers","Children's Services and Education","Supplies and Services","Services","22-Apr-21","6502143","195.72","SUPPLIER","D A LANGUAGES LIMITED","300000020483180"
"Portsmouth City Council","PCC","Children's and Education Services","Asylum seekers","Children's Services and Education","Supplies and Services","Services","22-Apr-21","6502143","58.8","SUPPLIER","D A LANGUAGES LIMITED","300000020483180"
"Portsmouth City Council","PCC","Children's and Education Services","Asylum seekers","Children's Services and Education","Supplies and Services","Services","22-Apr-21","6502143","48","SUPPLIER","D A LANGUAGES LIMITED","300000020483180"
"Portsmouth City Council","PCC","Children's and Education Services","Asylum seekers","Children's Services and Education","Supplies and Services","Services","22-Apr-21","6502143","108","SUPPLIER","D A LANGUAGES LIMITED","300000020483180"
"Portsmouth City Council","PCC","Children's and Education Services","Asylum seekers","Children's Services and Education","Supplies and Services","Services","22-Apr-21","6502143","18","SUPPLIER","D A LANGUAGES LIMITED","300000020483180"
"Portsmouth City Council","PCC","Children's and Education Services","Asylum seekers","Children's Services and Education","Supplies and Services","Services","22-Apr-21","6502143","72","SUPPLIER","D A LANGUAGES LIMITED","300000020483180"
"Portsmouth City Council","PCC","Children's and Education Services","Asylum seekers","Children's Services and Education","Supplies and Services","Services","22-Apr-21","6502143","108","SUPPLIER","D A LANGUAGES LIMITED","300000020483180"
"Portsmouth City Council","PCC","Children's and Education Services","Asylum seekers","Children's Services and Education","Supplies and Services","Services","22-Apr-21","6502143","18","SUPPLIER","D A LANGUAGES LIMITED","300000020483180"
"Portsmouth City Council","PCC","Children's and Education Services","Asylum seekers","Children's Services and Education","Supplies and Services","Services","22-Apr-21","6502143","96","SUPPLIER","D A LANGUAGES LIMITED","300000020483180"
"Portsmouth City Council","PCC","Children's and Education Services","Asylum seekers","Children's Services and Education","Supplies and Services","Services","22-Apr-21","6502143","200.04","SUPPLIER","D A LANGUAGES LIMITED","300000020483180"
"Portsmouth City Council","PCC","Children's and Education Services","Asylum seekers","Children's Services and Education","Supplies and Services","Services","22-Apr-21","6502143","76.8","SUPPLIER","D A LANGUAGES LIMITED","300000020483180"
"Portsmouth City Council","PCC","Children's and Education Services","Asylum seekers","Children's Services and Education","Supplies and Services","Services","22-Apr-21","6502143","23","SUPPLIER","D A LANGUAGES LIMITED","300000020483180"
"Portsmouth City Council","PCC","Children's and Education Services","Asylum seekers","Children's Services and Education","Supplies and Services","Services","22-Apr-21","6502143","23.5","SUPPLIER","D A LANGUAGES LIMITED","300000020483180"
"Portsmouth City Council","PCC","Children's and Education Services","Asylum seekers","Children's Services and Education","Supplies and Services","Services","22-Apr-21","6502143","73.2","SUPPLIER","D A LANGUAGES LIMITED","300000020483180"
"Portsmouth City Council","PCC","Children's and Education Services","Asylum seekers","Children's Services and Education","Supplies and Services","Services","22-Apr-21","6502143","72","SUPPLIER","D A LANGUAGES LIMITED","300000020483180"
"Portsmouth City Council","PCC","Children's and Education Services","Asylum seekers","Children's Services and Education","Supplies and Services","Services","22-Apr-21","6502143","72","SUPPLIER","D A LANGUAGES LIMITED","300000020483180"
"Portsmouth City Council","PCC","Children's and Education Services","Asylum seekers","Children's Services and Education","Supplies and Services","Services","22-Apr-21","6502143","20.4","SUPPLIER","D A LANGUAGES LIMITED","300000020483180"
"Portsmouth City Council","PCC","Children's and Education Services","Asylum seekers","Children's Services and Education","Supplies and Services","Services","22-Apr-21","6502143","81.6","SUPPLIER","D A LANGUAGES LIMITED","300000020483180"
"Portsmouth City Council","PCC","Children's and Education Services","Asylum seekers","Children's Services and Education","Supplies and Services","Services","22-Apr-21","6502143","18","SUPPLIER","D A LANGUAGES LIMITED","300000020483180"
"Portsmouth City Council","PCC","Children's and Education Services","Asylum seekers","Children's Services and Education","Supplies and Services","Services","22-Apr-21","6502143","34.8","SUPPLIER","D A LANGUAGES LIMITED","300000020483180"
"Portsmouth City Council","PCC","Children's and Education Services","Asylum seekers","Children's Services and Education","Supplies and Services","Services","22-Apr-21","6502143","48","SUPPLIER","D A LANGUAGES LIMITED","300000020483180"
"Portsmouth City Council","PCC","Children's and Education Services","Asylum seekers","Children's Services and Education","Supplies and Services","Services","22-Apr-21","6502143","72","SUPPLIER","D A LANGUAGES LIMITED","300000020483180"
"Portsmouth City Council","PCC","Children's and Education Services","Asylum seekers","Children's Services and Education","Supplies and Services","Services","22-Apr-21","6502143","44.4","SUPPLIER","D A LANGUAGES LIMITED","300000020483180"
"Portsmouth City Council","PCC","Children's and Education Services","Asylum seekers","Children's Services and Education","Supplies and Services","Services","22-Apr-21","6502143","18","SUPPLIER","D A LANGUAGES LIMITED","300000020483180"
"Portsmouth City Council","PCC","Children's and Education Services","Asylum seekers","Children's Services and Education","Supplies and Services","Services","22-Apr-21","6502143","8.5","SUPPLIER","D A LANGUAGES LIMITED","300000020483180"
"Portsmouth City Council","PCC","Children's and Education Services","Asylum seekers","Children's Services and Education","Supplies and Services","Services","22-Apr-21","6502143","24","SUPPLIER","D A LANGUAGES LIMITED","300000020483180"
"Portsmouth City Council","PCC","Children's and Education Services","Asylum seekers","Children's Services and Education","Supplies and Services","Services","22-Apr-21","6502143","6.5","SUPPLIER","D A LANGUAGES LIMITED","300000020483180"
"Portsmouth City Council","PCC","Children's and Education Services","Asylum seekers","Children's Services and Education","Supplies and Services","Services","22-Apr-21","6502143","18","SUPPLIER","D A LANGUAGES LIMITED","300000020483180"
"Portsmouth City Council","PCC","Children's and Education Services","Asylum seekers","Children's Services and Education","Supplies and Services","Services","22-Apr-21","6502143","72","SUPPLIER","D A LANGUAGES LIMITED","300000020483180"
"Portsmouth City Council","PCC","Children's and Education Services","Asylum seekers","Children's Services and Education","Supplies and Services","Services","22-Apr-21","6502143","74.4","SUPPLIER","D A LANGUAGES LIMITED","300000020483180"
"Portsmouth City Council","PCC","Children's and Education Services","Asylum seekers","Children's Services and Education","Supplies and Services","Services","22-Apr-21","6502143","23","SUPPLIER","D A LANGUAGES LIMITED","300000020483180"
"Portsmouth City Council","PCC","Children's and Education Services","Asylum seekers","Children's Services and Education","Supplies and Services","Services","22-Apr-21","6502143","57.6","SUPPLIER","D A LANGUAGES LIMITED","300000020483180"
"Portsmouth City Council","PCC","Children's and Education Services","Family Support Services","Children's Services and Education","Supplies and Services","Services","22-Apr-21","6502143","23","SUPPLIER","D A LANGUAGES LIMITED","300000020483180"
"Portsmouth City Council","PCC","Children's and Education Services","Asylum seekers","Children's Services and Education","Supplies and Services","Services","22-Apr-21","6502143","57.6","SUPPLIER","D A LANGUAGES LIMITED","300000020483180"
"Portsmouth City Council","PCC","Children's and Education Services","Asylum seekers","Children's Services and Education","Supplies and Services","Services","22-Apr-21","6502143","9.5","SUPPLIER","D A LANGUAGES LIMITED","300000020483180"
"Portsmouth City Council","PCC","Children's and Education Services","Asylum seekers","Children's Services and Education","Supplies and Services","Services","22-Apr-21","6502143","18","SUPPLIER","D A LANGUAGES LIMITED","300000020483180"
"Portsmouth City Council","PCC","Children's and Education Services","Asylum seekers","Children's Services and Education","Supplies and Services","Services","22-Apr-21","6502143","9.5","SUPPLIER","D A LANGUAGES LIMITED","300000020483180"
"Portsmouth City Council","PCC","Children's and Education Services","Asylum seekers","Children's Services and Education","Supplies and Services","Services","22-Apr-21","6502143","42","SUPPLIER","D A LANGUAGES LIMITED","300000020483180"
"Portsmouth City Council","PCC","Children's and Education Services","Asylum seekers","Children's Services and Education","Supplies and Services","Services","22-Apr-21","6502143","55.2","SUPPLIER","D A LANGUAGES LIMITED","300000020483180"
"Portsmouth City Council","PCC","Children's and Education Services","Asylum seekers","Children's Services and Education","Supplies and Services","Services","22-Apr-21","6502143","11","SUPPLIER","D A LANGUAGES LIMITED","300000020483180"
"Portsmouth City Council","PCC","Children's and Education Services","Asylum seekers","Children's Services and Education","Supplies and Services","Services","22-Apr-21","6502143","36","SUPPLIER","D A LANGUAGES LIMITED","300000020483180"
"Portsmouth City Council","PCC","Children's and Education Services","Asylum seekers","Children's Services and Education","Supplies and Services","Services","22-Apr-21","6502143","110.4","SUPPLIER","D A LANGUAGES LIMITED","300000020483180"
"Portsmouth City Council","PCC","Children's and Education Services","Asylum seekers","Children's Services and Education","Supplies and Services","Services","22-Apr-21","6502143","69.6","SUPPLIER","D A LANGUAGES LIMITED","300000020483180"
"Portsmouth City Council","PCC","Children's and Education Services","Family Support Services","Children's Services and Education","Supplies and Services","Services","22-Apr-21","6502143","72","SUPPLIER","D A LANGUAGES LIMITED","300000020483180"
"Portsmouth City Council","PCC","Children's and Education Services","Asylum seekers","Children's Services and Education","Supplies and Services","Services","22-Apr-21","6502143","31.2","SUPPLIER","D A LANGUAGES LIMITED","300000020483180"
"Portsmouth City Council","PCC","Children's and Education Services","Asylum seekers","Children's Services and Education","Supplies and Services","Services","22-Apr-21","6502143","8.5","SUPPLIER","D A LANGUAGES LIMITED","300000020483180"
"Portsmouth City Council","PCC","Children's and Education Services","Asylum seekers","Children's Services and Education","Supplies and Services","Services","22-Apr-21","6502143","1.5","SUPPLIER","D A LANGUAGES LIMITED","300000020483180"
"Portsmouth City Council","PCC","Children's and Education Services","Asylum seekers","Children's Services and Education","Supplies and Services","Services","22-Apr-21","6502143","67.2","SUPPLIER","D A LANGUAGES LIMITED","300000020483180"
"Portsmouth City Council","PCC","Children's and Education Services","Asylum seekers","Children's Services and Education","Supplies and Services","Services","22-Apr-21","6502143","30","SUPPLIER","D A LANGUAGES LIMITED","300000020483180"
"Portsmouth City Council","PCC","Children's and Education Services","Asylum seekers","Children's Services and Education","Supplies and Services","Services","22-Apr-21","6502143","45","SUPPLIER","D A LANGUAGES LIMITED","300000020483180"
"Portsmouth City Council","PCC","Children's and Education Services","Asylum seekers","Children's Services and Education","Supplies and Services","Services","22-Apr-21","6502143","39.6","SUPPLIER","D A LANGUAGES LIMITED","300000020483180"
"Portsmouth City Council","PCC","Children's and Education Services","Asylum seekers","Children's Services and Education","Supplies and Services","Services","22-Apr-21","6502143","98.4","SUPPLIER","D A LANGUAGES LIMITED","300000020483180"
"Portsmouth City Council","PCC","Children's and Education Services","Asylum seekers","Children's Services and Education","Supplies and Services","Services","22-Apr-21","6502143","36","SUPPLIER","D A LANGUAGES LIMITED","300000020483180"
"Portsmouth City Council","PCC","Children's and Education Services","Asylum seekers","Children's Services and Education","Supplies and Services","Services","22-Apr-21","6502143","24","SUPPLIER","D A LANGUAGES LIMITED","300000020483180"
"Portsmouth City Council","PCC","Children's and Education Services","Asylum seekers","Children's Services and Education","Supplies and Services","Services","22-Apr-21","6502143","90","SUPPLIER","D A LANGUAGES LIMITED","300000020483180"
"Portsmouth City Council","PCC","Children's and Education Services","Asylum seekers","Children's Services and Education","Supplies and Services","Services","22-Apr-21","6502143","73.2","SUPPLIER","D A LANGUAGES LIMITED","300000020483180"
"Portsmouth City Council","PCC","Children's and Education Services","Asylum seekers","Children's Services and Education","Supplies and Services","Services","22-Apr-21","6502143","18","SUPPLIER","D A LANGUAGES LIMITED","300000020483180"
"Portsmouth City Council","PCC","Children's and Education Services","Asylum seekers","Children's Services and Education","Supplies and Services","Services","22-Apr-21","6502143","55.2","SUPPLIER","D A LANGUAGES LIMITED","300000020483180"
"Portsmouth City Council","PCC","Children's and Education Services","Asylum seekers","Children's Services and Education","Supplies and Services","Services","22-Apr-21","6502143","11.5","SUPPLIER","D A LANGUAGES LIMITED","300000020483180"
"Portsmouth City Council","PCC","Children's and Education Services","Asylum seekers","Children's Services and Education","Supplies and Services","Services","22-Apr-21","6502143","18","SUPPLIER","D A LANGUAGES LIMITED","300000020483180"
"Portsmouth City Council","PCC","Children's and Education Services","Asylum seekers","Children's Services and Education","Supplies and Services","Services","22-Apr-21","6502143","90","SUPPLIER","D A LANGUAGES LIMITED","300000020483180"
"Portsmouth City Council","PCC","Children's and Education Services","Asylum seekers","Children's Services and Education","Supplies and Services","Services","22-Apr-21","6502143","90","SUPPLIER","D A LANGUAGES LIMITED","300000020483180"
"Portsmouth City Council","PCC","Children's and Education Services","Asylum seekers","Children's Services and Education","Supplies and Services","Services","22-Apr-21","6502143","36","SUPPLIER","D A LANGUAGES LIMITED","300000020483180"
"Portsmouth City Council","PCC","Children's and Education Services","Asylum seekers","Children's Services and Education","Supplies and Services","Services","22-Apr-21","6502143","17.5","SUPPLIER","D A LANGUAGES LIMITED","300000020483180"
"Portsmouth City Council","PCC","Children's and Education Services","Asylum seekers","Children's Services and Education","Supplies and Services","Services","22-Apr-21","6502143","40.8","SUPPLIER","D A LANGUAGES LIMITED","300000020483180"
"Portsmouth City Council","PCC","Children's and Education Services","Children Looked After","Children's Services and Education","Supplies and Services","Services","22-Apr-21","6502143","93.6","SUPPLIER","D A LANGUAGES LIMITED","300000020483180"
"Portsmouth City Council","PCC","Children's and Education Services","Asylum seekers","Children's Services and Education","Supplies and Services","Services","22-Apr-21","6502143","39.6","SUPPLIER","D A LANGUAGES LIMITED","300000020483180"
"Portsmouth City Council","PCC","Children's and Education Services","Asylum seekers","Children's Services and Education","Supplies and Services","Services","22-Apr-21","6502143","18","SUPPLIER","D A LANGUAGES LIMITED","300000020483180"
"Portsmouth City Council","PCC","Children's and Education Services","Asylum seekers","Children's Services and Education","Supplies and Services","Services","22-Apr-21","6502143","72","SUPPLIER","D A LANGUAGES LIMITED","300000020483180"
"Portsmouth City Council","PCC","Children's and Education Services","Asylum seekers","Children's Services and Education","Supplies and Services","Services","22-Apr-21","6502143","48","SUPPLIER","D A LANGUAGES LIMITED","300000020483180"
"Portsmouth City Council","PCC","Children's and Education Services","Asylum seekers","Children's Services and Education","Supplies and Services","Services","22-Apr-21","6502143","141.6","SUPPLIER","D A LANGUAGES LIMITED","300000020483180"
"Portsmouth City Council","PCC","Children's and Education Services","Asylum seekers","Children's Services and Education","Supplies and Services","Services","22-Apr-21","6502143","72","SUPPLIER","D A LANGUAGES LIMITED","300000020483180"
"Portsmouth City Council","PCC","Children's and Education Services","Asylum seekers","Children's Services and Education","Supplies and Services","Services","22-Apr-21","6502143","108","SUPPLIER","D A LANGUAGES LIMITED","300000020483180"
"Portsmouth City Council","PCC","Children's and Education Services","Asylum seekers","Children's Services and Education","Supplies and Services","Services","22-Apr-21","6502143","18","SUPPLIER","D A LANGUAGES LIMITED","300000020483180"
"Portsmouth City Council","PCC","Children's and Education Services","Asylum seekers","Children's Services and Education","Supplies and Services","Services","22-Apr-21","6502143","16.5","SUPPLIER","D A LANGUAGES LIMITED","300000020483180"
"Portsmouth City Council","PCC","Children's and Education Services","Asylum seekers","Children's Services and Education","Supplies and Services","Services","22-Apr-21","6502143","5.5","SUPPLIER","D A LANGUAGES LIMITED","300000020483180"
"Portsmouth City Council","PCC","Children's and Education Services","Asylum seekers","Children's Services and Education","Supplies and Services","Services","22-Apr-21","6502143","18","SUPPLIER","D A LANGUAGES LIMITED","300000020483180"
"Portsmouth City Council","PCC","Children's and Education Services","Asylum seekers","Children's Services and Education","Supplies and Services","Services","22-Apr-21","6502143","55.2","SUPPLIER","D A LANGUAGES LIMITED","300000020483180"
"Portsmouth City Council","PCC","Children's and Education Services","Asylum seekers","Children's Services and Education","Supplies and Services","Services","22-Apr-21","6502143","54","SUPPLIER","D A LANGUAGES LIMITED","300000020483180"
"Portsmouth City Council","PCC","Children's and Education Services","Asylum seekers","Children's Services and Education","Supplies and Services","Services","22-Apr-21","6502143","23","SUPPLIER","D A LANGUAGES LIMITED","300000020483180"
"Portsmouth City Council","PCC","Children's and Education Services","Asylum seekers","Children's Services and Education","Supplies and Services","Services","22-Apr-21","6502143","60","SUPPLIER","D A LANGUAGES LIMITED","300000020483180"
"Portsmouth City Council","PCC","Children's and Education Services","Asylum seekers","Children's Services and Education","Supplies and Services","Services","22-Apr-21","6502143","108","SUPPLIER","D A LANGUAGES LIMITED","300000020483180"
"Portsmouth City Council","PCC","Children's and Education Services","Asylum seekers","Children's Services and Education","Supplies and Services","Services","22-Apr-21","6502143","39.5","SUPPLIER","D A LANGUAGES LIMITED","300000020483180"
"Portsmouth City Council","PCC","Children's and Education Services","Asylum seekers","Children's Services and Education","Supplies and Services","Services","22-Apr-21","6502143","23.5","SUPPLIER","D A LANGUAGES LIMITED","300000020483180"
"Portsmouth City Council","PCC","Children's and Education Services","Asylum seekers","Children's Services and Education","Supplies and Services","Services","22-Apr-21","6502143","36","SUPPLIER","D A LANGUAGES LIMITED","300000020483180"
"Portsmouth City Council","PCC","Children's and Education Services","Asylum seekers","Children's Services and Education","Supplies and Services","Services","22-Apr-21","6502143","154.8","SUPPLIER","D A LANGUAGES LIMITED","300000020483180"
"Portsmouth City Council","PCC","Children's and Education Services","Asylum seekers","Children's Services and Education","Supplies and Services","Services","22-Apr-21","6502143","72","SUPPLIER","D A LANGUAGES LIMITED","300000020483180"
"Portsmouth City Council","PCC","Children's and Education Services","Asylum seekers","Children's Services and Education","Supplies and Services","Services","22-Apr-21","6502143","108","SUPPLIER","D A LANGUAGES LIMITED","300000020483180"
"Portsmouth City Council","PCC","Children's and Education Services","Asylum seekers","Children's Services and Education","Supplies and Services","Services","22-Apr-21","6502143","8","SUPPLIER","D A LANGUAGES LIMITED","300000020483180"
"Portsmouth City Council","PCC","Children's and Education Services","Asylum seekers","Children's Services and Education","Supplies and Services","Services","22-Apr-21","6502143","74.4","SUPPLIER","D A LANGUAGES LIMITED","300000020483180"
"Portsmouth City Council","PCC","Children's and Education Services","Asylum seekers","Children's Services and Education","Supplies and Services","Services","22-Apr-21","6502143","13","SUPPLIER","D A LANGUAGES LIMITED","300000020483180"
"Portsmouth City Council","PCC","Children's and Education Services","Family Support Services","Children's Services and Education","Supplies and Services","Services","22-Apr-21","6502143","16.5","SUPPLIER","D A LANGUAGES LIMITED","300000020483180"
"Portsmouth City Council","PCC","Children's and Education Services","Asylum seekers","Children's Services and Education","Supplies and Services","Services","22-Apr-21","6502143","32.4","SUPPLIER","D A LANGUAGES LIMITED","300000020483180"
"Portsmouth City Council","PCC","Children's and Education Services","Asylum seekers","Children's Services and Education","Supplies and Services","Services","22-Apr-21","6502143","52.8","SUPPLIER","D A LANGUAGES LIMITED","300000020483180"
"Portsmouth City Council","PCC","Children's and Education Services","Asylum seekers","Children's Services and Education","Supplies and Services","Services","27-Apr-21","6502715","18","SUPPLIER","D A LANGUAGES LIMITED","300000020483180"
"Portsmouth City Council","PCC","Children's and Education Services","Asylum seekers","Children's Services and Education","Supplies and Services","Services","27-Apr-21","6502715","72","SUPPLIER","D A LANGUAGES LIMITED","300000020483180"
"Portsmouth City Council","PCC","Children's and Education Services","Asylum seekers","Children's Services and Education","Supplies and Services","Services","27-Apr-21","6502715","24","SUPPLIER","D A LANGUAGES LIMITED","300000020483180"
"Portsmouth City Council","PCC","Children's and Education Services","Asylum seekers","Children's Services and Education","Supplies and Services","Services","27-Apr-21","6502715","80.4","SUPPLIER","D A LANGUAGES LIMITED","300000020483180"
"Portsmouth City Council","PCC","Children's and Education Services","Asylum seekers","Children's Services and Education","Supplies and Services","Services","27-Apr-21","6502715","24","SUPPLIER","D A LANGUAGES LIMITED","300000020483180"
"Portsmouth City Council","PCC","Children's and Education Services","Asylum seekers","Children's Services and Education","Supplies and Services","Services","27-Apr-21","6502715","93.6","SUPPLIER","D A LANGUAGES LIMITED","300000020483180"
"Portsmouth City Council","PCC","Children's and Education Services","Asylum seekers","Children's Services and Education","Supplies and Services","Services","27-Apr-21","6502715","84","SUPPLIER","D A LANGUAGES LIMITED","300000020483180"
"Portsmouth City Council","PCC","Children's and Education Services","Asylum seekers","Children's Services and Education","Supplies and Services","Services","27-Apr-21","6502715","5","SUPPLIER","D A LANGUAGES LIMITED","300000020483180"
"Portsmouth City Council","PCC","Children's and Education Services","Asylum seekers","Children's Services and Education","Supplies and Services","Services","27-Apr-21","6502715","4.5","SUPPLIER","D A LANGUAGES LIMITED","300000020483180"
"Portsmouth City Council","PCC","Children's and Education Services","Asylum seekers","Children's Services and Education","Supplies and Services","Services","27-Apr-21","6502715","80.4","SUPPLIER","D A LANGUAGES LIMITED","300000020483180"
"Portsmouth City Council","PCC","Children's and Education Services","Asylum seekers","Children's Services and Education","Supplies and Services","Services","27-Apr-21","6502715","1.5","SUPPLIER","D A LANGUAGES LIMITED","300000020483180"
"Portsmouth City Council","PCC","Children's and Education Services","Asylum seekers","Children's Services and Education","Supplies and Services","Services","27-Apr-21","6502715","2.5","SUPPLIER","D A LANGUAGES LIMITED","300000020483180"
"Portsmouth City Council","PCC","Children's and Education Services","Family Support Services","Children's Services and Education","Supplies and Services","Services","27-Apr-21","6502715","8","SUPPLIER","D A LANGUAGES LIMITED","300000020483180"
"Portsmouth City Council","PCC","Children's and Education Services","Asylum seekers","Children's Services and Education","Supplies and Services","Services","27-Apr-21","6502715","53.5","SUPPLIER","D A LANGUAGES LIMITED","300000020483180"
"Portsmouth City Council","PCC","Children's and Education Services","Asylum seekers","Children's Services and Education","Supplies and Services","Services","27-Apr-21","6502715","3","SUPPLIER","D A LANGUAGES LIMITED","300000020483180"
"Portsmouth City Council","PCC","Children's and Education Services","Asylum seekers","Children's Services and Education","Supplies and Services","Services","27-Apr-21","6502715","2.5","SUPPLIER","D A LANGUAGES LIMITED","300000020483180"
"Portsmouth City Council","PCC","Children's and Education Services","Asylum seekers","Children's Services and Education","Supplies and Services","Services","27-Apr-21","6502715","10","SUPPLIER","D A LANGUAGES LIMITED","300000020483180"
"Portsmouth City Council","PCC","Children's and Education Services","Asylum seekers","Children's Services and Education","Supplies and Services","Services","27-Apr-21","6502715","45","SUPPLIER","D A LANGUAGES LIMITED","300000020483180"
"Portsmouth City Council","PCC","Children's and Education Services","Asylum seekers","Children's Services and Education","Supplies and Services","Services","27-Apr-21","6502715","51","SUPPLIER","D A LANGUAGES LIMITED","300000020483180"
"Portsmouth City Council","PCC","Children's and Education Services","Asylum seekers","Children's Services and Education","Supplies and Services","Services","27-Apr-21","6502715","6","SUPPLIER","D A LANGUAGES LIMITED","300000020483180"
"Portsmouth City Council","PCC","Children's and Education Services","Family Support Services","Children's Services and Education","Supplies and Services","Services","27-Apr-21","6502715","11.5","SUPPLIER","D A LANGUAGES LIMITED","300000020483180"
"Portsmouth City Council","PCC","Children's and Education Services","Family Support Services","Children's Services and Education","Third Party Payments","Private contractors","27-Apr-21","6502748","1,729.28","SUPPLIER","RESTORE - RECORD STORAGE MANAGEMENT LIMITED","300000020484427"
"Portsmouth City Council","PCC","Planning Services","Business support","Regeneration","Supplies and Services","Grants and subscriptions","30-Apr-21","6503784","2,000.00","SUPPLIER","CHINA-BRITAIN BUSINESS COUNCIL","300000020479663"
"Portsmouth City Council","PCC","Costs below Net Cost of Services","Trading","Regeneration","Third Party Payments","Private contractors","30-Apr-21","6503789","1,649.73","SUPPLIER","VISTECH SERVICES LTD","300000020480163"
"Portsmouth City Council","PCC","Highways and Transport Services","Transport Planning, Policy and Strategy","Regeneration","Third Party Payments","Private contractors","23-Apr-21","6502453","629","SUPPLIER","MARK COMMS LIMITED","300000020481776"
"Portsmouth City Council","PCC","Other","Suspense and Capital Schemes","Capital - Health, Wellbeing & Social Care","Capital Charges","Capital Expenditure (WIP)","14-Apr-21","6500172","1,750.00","SUPPLIER","SALVIS ENERGY SERVICES LTD","300000020478475"
"Portsmouth City Council","PCC","Other","Suspense and Capital Schemes","Capital - Housing RA","Capital Charges","Capital Expenditure (WIP)","14-Apr-21","6500172","500","SUPPLIER","SALVIS ENERGY SERVICES LTD","300000020478475"
"Portsmouth City Council","PCC","Children's and Education Services","Family Support Services","Children's Services and Education","Premises-Related Expenditure","Repairs, alterations and maintenance of buildings","26-Apr-21","6502571","1,890.00","SUPPLIER","D SQUARED ELECTRICAL SERVICES LIMITED","300000020466805"
"Portsmouth City Council","PCC","Corporate and Democratic Core","Corporate Management","0","Supplies and Services","Services","28-Apr-21","6502926","6,240.00","SUPPLIER","MIKE ALLGROVE PLANNING LTD","300000020471962"
"Portsmouth City Council","PCC","Other","Suspense and Capital Schemes","Capital - Communities & Central Services","Capital Charges","Capital Expenditure (WIP)","13-Apr-21","6500120","6,650.00","SUPPLIER","EVOLUTIONARY SYSTEMS COMPANY LIMITED","300000020473980"
"Portsmouth City Council","PCC","Other","Suspense and Capital Schemes","Capital - Communities & Central Services","Capital Charges","Capital Expenditure (WIP)","13-Apr-21","6500120","7,350.00","SUPPLIER","EVOLUTIONARY SYSTEMS COMPANY LIMITED","300000020473980"
"Portsmouth City Council","PCC","Other","Suspense and Capital Schemes","Capital - Communities & Central Services","Capital Charges","Capital Expenditure (WIP)","13-Apr-21","6500120","5,950.00","SUPPLIER","EVOLUTIONARY SYSTEMS COMPANY LIMITED","300000020473980"
"Portsmouth City Council","PCC","Other","Suspense and Capital Schemes","Capital - Traffic & Transportation","Capital Charges","Capital Expenditure (WIP)","13-Apr-21","6500043","10,725.00","SUPPLIER","INSEWER SURVEYS & HYDRO DESCALING","300000020473866"
"Portsmouth City Council","PCC","Solent LEP","Business support","OTHER","Third Party Payments","Private contractors","13-Apr-21","6500008","14,925.00","SUPPLIER","THE COMPLETE ENTREPRENEUR LIMITED","300000020475530"
"Portsmouth City Council","PCC","Solent LEP","Business support","OTHER","Third Party Payments","Private contractors","27-Apr-21","6502708","4,350.00","SUPPLIER","ASESORIA GROUP LTD","300000020475730"
"Portsmouth City Council","PCC","Solent LEP","Business support","OTHER","Third Party Payments","Private contractors","27-Apr-21","6502708","4,350.00","SUPPLIER","ASESORIA GROUP LTD","300000020475730"
"Portsmouth City Council","PCC","Solent LEP","Business support","OTHER","Third Party Payments","Private contractors","27-Apr-21","6502708","1,725.00","SUPPLIER","ASESORIA GROUP LTD","300000020475730"
"Portsmouth City Council","PCC","Children's and Education Services","Children Looked After","Children's Services and Education","Third Party Payments","Other establishments","13-Apr-21","6500138","-1,000.00","SUPPLIER","ADVANCED ADOLESCENT CARE SOLUTIONS LTD","300000020475160"
"Portsmouth City Council","PCC","Children's and Education Services","Children Looked After","Children's Services and Education","Third Party Payments","Other establishments","13-Apr-21","6500138","2,000.00","SUPPLIER","ADVANCED ADOLESCENT CARE SOLUTIONS LTD","300000020475160"
"Portsmouth City Council","PCC","Children's and Education Services","Children Looked After","Children's Services and Education","Third Party Payments","Other establishments","13-Apr-21","6500138","6,000.00","SUPPLIER","ADVANCED ADOLESCENT CARE SOLUTIONS LTD","300000020475160"
"Portsmouth City Council","PCC","Children's and Education Services","Children Looked After","Children's Services and Education","Third Party Payments","Other establishments","13-Apr-21","6500138","21,000.00","SUPPLIER","ADVANCED ADOLESCENT CARE SOLUTIONS LTD","300000020475160"
"Portsmouth City Council","PCC","Children's and Education Services","Safeguarding Children and Young Peoples Services","Children's Services and Education","Third Party Payments","Other establishments","19-Apr-21","6501239","-7.4","SUPPLIER","TWO SAINTS LTD","300000020462955"
"Portsmouth City Council","PCC","Children's and Education Services","Safeguarding Children and Young Peoples Services","Children's Services and Education","Third Party Payments","Other establishments","19-Apr-21","6501239","26.41","SUPPLIER","TWO SAINTS LTD","300000020462955"
"Portsmouth City Council","PCC","Children's and Education Services","Safeguarding Children and Young Peoples Services","Children's Services and Education","Third Party Payments","Other establishments","19-Apr-21","6501239","158.49","SUPPLIER","TWO SAINTS LTD","300000020462955"
"Portsmouth City Council","PCC","Children's and Education Services","Safeguarding Children and Young Peoples Services","Children's Services and Education","Third Party Payments","Other establishments","19-Apr-21","6501239","554.7","SUPPLIER","TWO SAINTS LTD","300000020462955"
"Portsmouth City Council","PCC","Children's and Education Services","Safeguarding Children and Young Peoples Services","Children's Services and Education","Third Party Payments","Other establishments","28-Apr-21","6502976","-30","SUPPLIER","SAKURA CARE LIMITED","300000020469343"
"Portsmouth City Council","PCC","Children's and Education Services","Safeguarding Children and Young Peoples Services","Children's Services and Education","Third Party Payments","Other establishments","28-Apr-21","6502976","-8.57","SUPPLIER","SAKURA CARE LIMITED","300000020469343"
"Portsmouth City Council","PCC","Children's and Education Services","Safeguarding Children and Young Peoples Services","Children's Services and Education","Third Party Payments","Other establishments","28-Apr-21","6502976","-4.29","SUPPLIER","SAKURA CARE LIMITED","300000020469343"
"Portsmouth City Council","PCC","Children's and Education Services","Safeguarding Children and Young Peoples Services","Children's Services and Education","Third Party Payments","Other establishments","28-Apr-21","6502976","0.09","SUPPLIER","SAKURA CARE LIMITED","300000020469343"
"Portsmouth City Council","PCC","Children's and Education Services","Safeguarding Children and Young Peoples Services","Children's Services and Education","Third Party Payments","Other establishments","28-Apr-21","6502976","47.14","SUPPLIER","SAKURA CARE LIMITED","300000020469343"
"Portsmouth City Council","PCC","Children's and Education Services","Safeguarding Children and Young Peoples Services","Children's Services and Education","Third Party Payments","Other establishments","28-Apr-21","6502976","94.29","SUPPLIER","SAKURA CARE LIMITED","300000020469343"
"Portsmouth City Council","PCC","Children's and Education Services","Safeguarding Children and Young Peoples Services","Children's Services and Education","Third Party Payments","Other establishments","28-Apr-21","6502976","330","SUPPLIER","SAKURA CARE LIMITED","300000020469343"
"Portsmouth City Council","PCC","Children's and Education Services","Safeguarding Children and Young Peoples Services","Children's Services and Education","Third Party Payments","Other establishments","28-Apr-21","6502976","370.71","SUPPLIER","SAKURA CARE LIMITED","300000020469343"
"Portsmouth City Council","PCC","Children's and Education Services","Safeguarding Children and Young Peoples Services","Children's Services and Education","Third Party Payments","Other establishments","28-Apr-21","6502976","741.43","SUPPLIER","SAKURA CARE LIMITED","300000020469343"
"Portsmouth City Council","PCC","Children's and Education Services","Safeguarding Children and Young Peoples Services","Children's Services and Education","Third Party Payments","Other establishments","28-Apr-21","6502976","2,595.00","SUPPLIER","SAKURA CARE LIMITED","300000020469343"
"Portsmouth City Council","PCC","Children's and Education Services","Children Looked After","Children's Services and Education","Third Party Payments","Other establishments","28-Apr-21","6502925","126.43","SUPPLIER","RAINBOW FOSTERING","300000020482345"
"Portsmouth City Council","PCC","Children's and Education Services","Children Looked After","Children's Services and Education","Third Party Payments","Other establishments","28-Apr-21","6502925","758.57","SUPPLIER","RAINBOW FOSTERING","300000020482345"
"Portsmouth City Council","PCC","Children's and Education Services","Children Looked After","Children's Services and Education","Third Party Payments","Other establishments","28-Apr-21","6502925","885","SUPPLIER","RAINBOW FOSTERING","300000020482345"
"Portsmouth City Council","PCC","Children's and Education Services","Safeguarding Children and Young Peoples Services","Children's Services and Education","Third Party Payments","Other establishments","28-Apr-21","6503037","-442.82","SUPPLIER","COMPASS FOSTERING LIMITED","300000020462668"
"Portsmouth City Council","PCC","Children's and Education Services","Safeguarding Children and Young Peoples Services","Children's Services and Education","Third Party Payments","Other establishments","28-Apr-21","6503037","470.86","SUPPLIER","COMPASS FOSTERING LIMITED","300000020462668"
"Portsmouth City Council","PCC","Children's and Education Services","Safeguarding Children and Young Peoples Services","Children's Services and Education","Third Party Payments","Other establishments","28-Apr-21","6503037","706.29","SUPPLIER","COMPASS FOSTERING LIMITED","300000020462668"
"Portsmouth City Council","PCC","Children's and Education Services","Safeguarding Children and Young Peoples Services","Children's Services and Education","Third Party Payments","Other establishments","28-Apr-21","6503037","2,472.00","SUPPLIER","COMPASS FOSTERING LIMITED","300000020462668"
"Portsmouth City Council","PCC","Children's and Education Services","Safeguarding Children and Young Peoples Services","Children's Services and Education","Third Party Payments","Other establishments","13-Apr-21","6500133","-256.42","SUPPLIER","LILIAN DAVIS GROUP LTD","300000020467263"
"Portsmouth City Council","PCC","Children's and Education Services","Safeguarding Children and Young Peoples Services","Children's Services and Education","Third Party Payments","Other establishments","13-Apr-21","6500133","-30","SUPPLIER","LILIAN DAVIS GROUP LTD","300000020467263"
"Portsmouth City Council","PCC","Children's and Education Services","Safeguarding Children and Young Peoples Services","Children's Services and Education","Third Party Payments","Other establishments","13-Apr-21","6500133","-14.28","SUPPLIER","LILIAN DAVIS GROUP LTD","300000020467263"
"Portsmouth City Council","PCC","Children's and Education Services","Safeguarding Children and Young Peoples Services","Children's Services and Education","Third Party Payments","Other establishments","13-Apr-21","6500133","82.72","SUPPLIER","LILIAN DAVIS GROUP LTD","300000020467263"
"Portsmouth City Council","PCC","Children's and Education Services","Safeguarding Children and Young Peoples Services","Children's Services and Education","Third Party Payments","Other establishments","13-Apr-21","6500133","107.14","SUPPLIER","LILIAN DAVIS GROUP LTD","300000020467263"
"Portsmouth City Council","PCC","Children's and Education Services","Safeguarding Children and Young Peoples Services","Children's Services and Education","Third Party Payments","Other establishments","13-Apr-21","6500133","173.7","SUPPLIER","LILIAN DAVIS GROUP LTD","300000020467263"
"Portsmouth City Council","PCC","Children's and Education Services","Safeguarding Children and Young Peoples Services","Children's Services and Education","Third Party Payments","Other establishments","13-Apr-21","6500133","225","SUPPLIER","LILIAN DAVIS GROUP LTD","300000020467263"
"Portsmouth City Council","PCC","Children's and Education Services","Safeguarding Children and Young Peoples Services","Children's Services and Education","Third Party Payments","Other establishments","13-Apr-21","6500133","607.14","SUPPLIER","LILIAN DAVIS GROUP LTD","300000020467263"
"Portsmouth City Council","PCC","Children's and Education Services","Safeguarding Children and Young Peoples Services","Children's Services and Education","Third Party Payments","Other establishments","13-Apr-21","6500133","1,275.00","SUPPLIER","LILIAN DAVIS GROUP LTD","300000020467263"
"Portsmouth City Council","PCC","Children's and Education Services","Children Looked After","Children's Services and Education","Third Party Payments","Other establishments","28-Apr-21","6503421","1,435.71","SUPPLIER","LIBRE LIVING LIMITED","300000020474688"
"Portsmouth City Council","PCC","Children's and Education Services","Children Looked After","Children's Services and Education","Third Party Payments","Other establishments","28-Apr-21","6503421","2,871.43","SUPPLIER","LIBRE LIVING LIMITED","300000020474688"
"Portsmouth City Council","PCC","Children's and Education Services","Children Looked After","Children's Services and Education","Third Party Payments","Other establishments","28-Apr-21","6503421","10,050.00","SUPPLIER","LIBRE LIVING LIMITED","300000020474688"
"Portsmouth City Council","PCC","Children's and Education Services","Safeguarding Children and Young Peoples Services","Children's Services and Education","Third Party Payments","Other establishments","28-Apr-21","6502920","-30","SUPPLIER","BPA CARE LIMITED","300000020475549"
"Portsmouth City Council","PCC","Children's and Education Services","Safeguarding Children and Young Peoples Services","Children's Services and Education","Third Party Payments","Other establishments","28-Apr-21","6502920","-8.57","SUPPLIER","BPA CARE LIMITED","300000020475549"
"Portsmouth City Council","PCC","Children's and Education Services","Safeguarding Children and Young Peoples Services","Children's Services and Education","Third Party Payments","Other establishments","28-Apr-21","6502920","-4.29","SUPPLIER","BPA CARE LIMITED","300000020475549"
"Portsmouth City Council","PCC","Children's and Education Services","Safeguarding Children and Young Peoples Services","Children's Services and Education","Third Party Payments","Other establishments","28-Apr-21","6502920","34.71","SUPPLIER","BPA CARE LIMITED","300000020475549"
"Portsmouth City Council","PCC","Children's and Education Services","Safeguarding Children and Young Peoples Services","Children's Services and Education","Third Party Payments","Other establishments","28-Apr-21","6502920","69.43","SUPPLIER","BPA CARE LIMITED","300000020475549"
"Portsmouth City Council","PCC","Children's and Education Services","Safeguarding Children and Young Peoples Services","Children's Services and Education","Third Party Payments","Other establishments","28-Apr-21","6502920","243","SUPPLIER","BPA CARE LIMITED","300000020475549"
"Portsmouth City Council","PCC","Children's and Education Services","Safeguarding Children and Young Peoples Services","Children's Services and Education","Third Party Payments","Other establishments","28-Apr-21","6502920","157.29","SUPPLIER","BPA CARE LIMITED","300000020475549"
"Portsmouth City Council","PCC","Children's and Education Services","Safeguarding Children and Young Peoples Services","Children's Services and Education","Third Party Payments","Other establishments","28-Apr-21","6502920","314.57","SUPPLIER","BPA CARE LIMITED","300000020475549"
"Portsmouth City Council","PCC","Children's and Education Services","Safeguarding Children and Young Peoples Services","Children's Services and Education","Third Party Payments","Other establishments","28-Apr-21","6502920","1,101.00","SUPPLIER","BPA CARE LIMITED","300000020475549"
"Portsmouth City Council","PCC","Children's and Education Services","Children Looked After","Children's Services and Education","Third Party Payments","Other establishments","13-Apr-21","6500100","-10","SUPPLIER","YUMAK SOCIAL CARE LIMITED","300000020466674"
"Portsmouth City Council","PCC","Children's and Education Services","Children Looked After","Children's Services and Education","Third Party Payments","Other establishments","13-Apr-21","6500100","-2.86","SUPPLIER","YUMAK SOCIAL CARE LIMITED","300000020466674"
"Portsmouth City Council","PCC","Children's and Education Services","Children Looked After","Children's Services and Education","Third Party Payments","Other establishments","13-Apr-21","6500100","-1.43","SUPPLIER","YUMAK SOCIAL CARE LIMITED","300000020466674"
"Portsmouth City Council","PCC","Children's and Education Services","Children Looked After","Children's Services and Education","Third Party Payments","Other establishments","13-Apr-21","6500100","8.27","SUPPLIER","YUMAK SOCIAL CARE LIMITED","300000020466674"
"Portsmouth City Council","PCC","Children's and Education Services","Children Looked After","Children's Services and Education","Third Party Payments","Other establishments","13-Apr-21","6500100","16.54","SUPPLIER","YUMAK SOCIAL CARE LIMITED","300000020466674"
"Portsmouth City Council","PCC","Children's and Education Services","Children Looked After","Children's Services and Education","Third Party Payments","Other establishments","13-Apr-21","6500100","47.38","SUPPLIER","YUMAK SOCIAL CARE LIMITED","300000020466674"
"Portsmouth City Council","PCC","Children's and Education Services","Children Looked After","Children's Services and Education","Third Party Payments","Other establishments","13-Apr-21","6500100","57.9","SUPPLIER","YUMAK SOCIAL CARE LIMITED","300000020466674"
"Portsmouth City Council","PCC","Children's and Education Services","Children Looked After","Children's Services and Education","Third Party Payments","Other establishments","13-Apr-21","6500100","255.71","SUPPLIER","YUMAK SOCIAL CARE LIMITED","300000020466674"
"Portsmouth City Council","PCC","Children's and Education Services","Children Looked After","Children's Services and Education","Third Party Payments","Other establishments","13-Apr-21","6500100","511.43","SUPPLIER","YUMAK SOCIAL CARE LIMITED","300000020466674"
"Portsmouth City Council","PCC","Children's and Education Services","Children Looked After","Children's Services and Education","Third Party Payments","Other establishments","13-Apr-21","6500100","1,790.00","SUPPLIER","YUMAK SOCIAL CARE LIMITED","300000020466674"
"Portsmouth City Council","PCC","Children's and Education Services","Asylum seekers","Children's Services and Education","Third Party Payments","Other establishments","14-Apr-21","6500619","53.57","SUPPLIER","BUILDING FOUNDATIONS LIMITED","300000020474383"
"Portsmouth City Council","PCC","Children's and Education Services","Asylum seekers","Children's Services and Education","Third Party Payments","Other establishments","14-Apr-21","6500619","107.14","SUPPLIER","BUILDING FOUNDATIONS LIMITED","300000020474383"
"Portsmouth City Council","PCC","Children's and Education Services","Asylum seekers","Children's Services and Education","Third Party Payments","Other establishments","14-Apr-21","6500619","375","SUPPLIER","BUILDING FOUNDATIONS LIMITED","300000020474383"
"Portsmouth City Council","PCC","Children's and Education Services","Asylum seekers","Children's Services and Education","Third Party Payments","Other establishments","14-Apr-21","6500619","267.86","SUPPLIER","BUILDING FOUNDATIONS LIMITED","300000020474383"
"Portsmouth City Council","PCC","Children's and Education Services","Asylum seekers","Children's Services and Education","Third Party Payments","Other establishments","14-Apr-21","6500619","535.71","SUPPLIER","BUILDING FOUNDATIONS LIMITED","300000020474383"
"Portsmouth City Council","PCC","Children's and Education Services","Asylum seekers","Children's Services and Education","Third Party Payments","Other establishments","14-Apr-21","6500619","1,875.00","SUPPLIER","BUILDING FOUNDATIONS LIMITED","300000020474383"
"Portsmouth City Council","PCC","Children's and Education Services","Safeguarding Children and Young Peoples Services","Children's Services and Education","Third Party Payments","Other establishments","28-Apr-21","6502987","-115.71","SUPPLIER","KEYWORK CENTRAL LTD T/A STREET SUPPORT","300000020482239"
"Portsmouth City Council","PCC","Children's and Education Services","Safeguarding Children and Young Peoples Services","Children's Services and Education","Third Party Payments","Other establishments","28-Apr-21","6502987","-30","SUPPLIER","KEYWORK CENTRAL LTD T/A STREET SUPPORT","300000020482239"
"Portsmouth City Council","PCC","Children's and Education Services","Safeguarding Children and Young Peoples Services","Children's Services and Education","Third Party Payments","Other establishments","28-Apr-21","6502987","-8.57","SUPPLIER","KEYWORK CENTRAL LTD T/A STREET SUPPORT","300000020482239"
"Portsmouth City Council","PCC","Children's and Education Services","Safeguarding Children and Young Peoples Services","Children's Services and Education","Third Party Payments","Other establishments","28-Apr-21","6502987","-4.29","SUPPLIER","KEYWORK CENTRAL LTD T/A STREET SUPPORT","300000020482239"
"Portsmouth City Council","PCC","Children's and Education Services","Safeguarding Children and Young Peoples Services","Children's Services and Education","Third Party Payments","Other establishments","28-Apr-21","6502987","24.81","SUPPLIER","KEYWORK CENTRAL LTD T/A STREET SUPPORT","300000020482239"
"Portsmouth City Council","PCC","Children's and Education Services","Safeguarding Children and Young Peoples Services","Children's Services and Education","Third Party Payments","Other establishments","28-Apr-21","6502987","49.63","SUPPLIER","KEYWORK CENTRAL LTD T/A STREET SUPPORT","300000020482239"
"Portsmouth City Council","PCC","Children's and Education Services","Safeguarding Children and Young Peoples Services","Children's Services and Education","Third Party Payments","Other establishments","28-Apr-21","6502987","57.86","SUPPLIER","KEYWORK CENTRAL LTD T/A STREET SUPPORT","300000020482239"
"Portsmouth City Council","PCC","Children's and Education Services","Safeguarding Children and Young Peoples Services","Children's Services and Education","Third Party Payments","Other establishments","28-Apr-21","6502987","173.7","SUPPLIER","KEYWORK CENTRAL LTD T/A STREET SUPPORT","300000020482239"
"Portsmouth City Council","PCC","Children's and Education Services","Safeguarding Children and Young Peoples Services","Children's Services and Education","Third Party Payments","Other establishments","28-Apr-21","6502987","115.71","SUPPLIER","KEYWORK CENTRAL LTD T/A STREET SUPPORT","300000020482239"
"Portsmouth City Council","PCC","Children's and Education Services","Safeguarding Children and Young Peoples Services","Children's Services and Education","Third Party Payments","Other establishments","28-Apr-21","6502987","405","SUPPLIER","KEYWORK CENTRAL LTD T/A STREET SUPPORT","300000020482239"
"Portsmouth City Council","PCC","Children's and Education Services","Safeguarding Children and Young Peoples Services","Children's Services and Education","Third Party Payments","Other establishments","28-Apr-21","6502987","170.14","SUPPLIER","KEYWORK CENTRAL LTD T/A STREET SUPPORT","300000020482239"
"Portsmouth City Council","PCC","Children's and Education Services","Safeguarding Children and Young Peoples Services","Children's Services and Education","Third Party Payments","Other establishments","28-Apr-21","6502987","340.29","SUPPLIER","KEYWORK CENTRAL LTD T/A STREET SUPPORT","300000020482239"
"Portsmouth City Council","PCC","Children's and Education Services","Safeguarding Children and Young Peoples Services","Children's Services and Education","Third Party Payments","Other establishments","28-Apr-21","6502987","1,191.00","SUPPLIER","KEYWORK CENTRAL LTD T/A STREET SUPPORT","300000020482239"
"Portsmouth City Council","PCC","Children's and Education Services","Safeguarding Children and Young Peoples Services","Children's Services and Education","Third Party Payments","Other establishments","28-Apr-21","6502987","-30","SUPPLIER","KEYWORK CENTRAL LTD T/A STREET SUPPORT","300000020482239"
"Portsmouth City Council","PCC","Children's and Education Services","Safeguarding Children and Young Peoples Services","Children's Services and Education","Third Party Payments","Other establishments","28-Apr-21","6502987","-8.57","SUPPLIER","KEYWORK CENTRAL LTD T/A STREET SUPPORT","300000020482239"
"Portsmouth City Council","PCC","Children's and Education Services","Safeguarding Children and Young Peoples Services","Children's Services and Education","Third Party Payments","Other establishments","28-Apr-21","6502987","-4.29","SUPPLIER","KEYWORK CENTRAL LTD T/A STREET SUPPORT","300000020482239"
"Portsmouth City Council","PCC","Children's and Education Services","Safeguarding Children and Young Peoples Services","Children's Services and Education","Third Party Payments","Other establishments","28-Apr-21","6502987","0","SUPPLIER","KEYWORK CENTRAL LTD T/A STREET SUPPORT","300000020482239"
"Portsmouth City Council","PCC","Children's and Education Services","Safeguarding Children and Young Peoples Services","Children's Services and Education","Third Party Payments","Other establishments","28-Apr-21","6502987","162.86","SUPPLIER","KEYWORK CENTRAL LTD T/A STREET SUPPORT","300000020482239"
"Portsmouth City Council","PCC","Children's and Education Services","Safeguarding Children and Young Peoples Services","Children's Services and Education","Third Party Payments","Other establishments","28-Apr-21","6502987","325.71","SUPPLIER","KEYWORK CENTRAL LTD T/A STREET SUPPORT","300000020482239"
"Portsmouth City Council","PCC","Children's and Education Services","Safeguarding Children and Young Peoples Services","Children's Services and Education","Third Party Payments","Other establishments","28-Apr-21","6502987","1,140.00","SUPPLIER","KEYWORK CENTRAL LTD T/A STREET SUPPORT","300000020482239"
"Portsmouth City Council","PCC","Corporate and Democratic Core","Democratic Representation and Management","Culture, Leisure & Regulatory Services","Supplies and Services","Printing, stationery and general office expenses","27-Apr-21","6502743","20","SUPPLIER","G K BEAULAH & CO LTD","300000020459231"
"Portsmouth City Council","PCC","Corporate and Democratic Core","Democratic Representation and Management","Culture, Leisure & Regulatory Services","Supplies and Services","Printing, stationery and general office expenses","27-Apr-21","6502743","1,052.50","SUPPLIER","G K BEAULAH & CO LTD","300000020459231"
"Portsmouth City Council","PCC","Costs below Net Cost of Services","Trading","Regeneration","Third Party Payments","Private contractors","20-Apr-21","6501409","3,923.75","SUPPLIER","THE OYSTER PARTNERSHIP","300000020460395"
"Portsmouth City Council","PCC","Costs below Net Cost of Services","Trading","Regeneration","Third Party Payments","Private contractors","26-Apr-21","6502555","2,104.59","SUPPLIER","THE OYSTER PARTNERSHIP","300000020460395"
"Portsmouth City Council","PCC","Other","Suspense and Capital Schemes","Capital - Housing RA","Capital Charges","Capital Expenditure (WIP)","22-Apr-21","6502167","300","SUPPLIER","MARTIN RALPH GROUP","300000020481429"
"Portsmouth City Council","PCC","Other","Suspense and Capital Schemes","Capital - Housing RA","Capital Charges","Capital Expenditure (WIP)","22-Apr-21","6502167","300","SUPPLIER","MARTIN RALPH GROUP","300000020481429"
"Portsmouth City Council","PCC","Environmental and Regulatory Services","Regulatory Services","Culture, Leisure & Regulatory Services","Transport-Related Expenditure","Contract hire and operating leases","27-Apr-21","6502714","180","SUPPLIER","SOUTHERN MOTOR CONTRACTS LTD T/A MOTORENT","300000020480961"
"Portsmouth City Council","PCC","Cultural and Related Services","Open Spaces","Culture, Leisure & Regulatory Services","Transport-Related Expenditure","Contract hire and operating leases","27-Apr-21","6502714","180","SUPPLIER","SOUTHERN MOTOR CONTRACTS LTD T/A MOTORENT","300000020480961"
"Portsmouth City Council","PCC","Cultural and Related Services","Open Spaces","Culture, Leisure & Regulatory Services","Transport-Related Expenditure","Contract hire and operating leases","27-Apr-21","6502714","180","SUPPLIER","SOUTHERN MOTOR CONTRACTS LTD T/A MOTORENT","300000020480961"
"Portsmouth City Council","PCC","Cultural and Related Services","Open Spaces","Culture, Leisure & Regulatory Services","Transport-Related Expenditure","Contract hire and operating leases","27-Apr-21","6502714","180","SUPPLIER","SOUTHERN MOTOR CONTRACTS LTD T/A MOTORENT","300000020480961"
"Portsmouth City Council","PCC","Cultural and Related Services","Open Spaces","Culture, Leisure & Regulatory Services","Transport-Related Expenditure","Contract hire and operating leases","27-Apr-21","6502714","180","SUPPLIER","SOUTHERN MOTOR CONTRACTS LTD T/A MOTORENT","300000020480961"
"Portsmouth City Council","PCC","Cultural and Related Services","Open Spaces","Culture, Leisure & Regulatory Services","Transport-Related Expenditure","Contract hire and operating leases","27-Apr-21","6502714","180","SUPPLIER","SOUTHERN MOTOR CONTRACTS LTD T/A MOTORENT","300000020480961"
"Portsmouth City Council","PCC","Cultural and Related Services","Open Spaces","Culture, Leisure & Regulatory Services","Transport-Related Expenditure","Contract hire and operating leases","27-Apr-21","6502714","180","SUPPLIER","SOUTHERN MOTOR CONTRACTS LTD T/A MOTORENT","300000020480961"
"Portsmouth City Council","PCC","Cultural and Related Services","Open Spaces","Culture, Leisure & Regulatory Services","Transport-Related Expenditure","Contract hire and operating leases","27-Apr-21","6502714","180","SUPPLIER","SOUTHERN MOTOR CONTRACTS LTD T/A MOTORENT","300000020480961"
"Portsmouth City Council","PCC","Cultural and Related Services","Open Spaces","Culture, Leisure & Regulatory Services","Transport-Related Expenditure","Contract hire and operating leases","27-Apr-21","6502714","180","SUPPLIER","SOUTHERN MOTOR CONTRACTS LTD T/A MOTORENT","300000020480961"
"Portsmouth City Council","PCC","Cultural and Related Services","Open Spaces","Culture, Leisure & Regulatory Services","Transport-Related Expenditure","Contract hire and operating leases","27-Apr-21","6502714","180","SUPPLIER","SOUTHERN MOTOR CONTRACTS LTD T/A MOTORENT","300000020480961"
"Portsmouth City Council","PCC","Cultural and Related Services","Open Spaces","Culture, Leisure & Regulatory Services","Transport-Related Expenditure","Contract hire and operating leases","27-Apr-21","6502714","180","SUPPLIER","SOUTHERN MOTOR CONTRACTS LTD T/A MOTORENT","300000020480961"
"Portsmouth City Council","PCC","Cultural and Related Services","Open Spaces","Culture, Leisure & Regulatory Services","Transport-Related Expenditure","Contract hire and operating leases","27-Apr-21","6502714","180","SUPPLIER","SOUTHERN MOTOR CONTRACTS LTD T/A MOTORENT","300000020480961"
"Portsmouth City Council","PCC","Cultural and Related Services","Open Spaces","Culture, Leisure & Regulatory Services","Transport-Related Expenditure","Contract hire and operating leases","27-Apr-21","6502714","180","SUPPLIER","SOUTHERN MOTOR CONTRACTS LTD T/A MOTORENT","300000020480961"
"Portsmouth City Council","PCC","Cultural and Related Services","Open Spaces","Culture, Leisure & Regulatory Services","Transport-Related Expenditure","Contract hire and operating leases","27-Apr-21","6502714","180","SUPPLIER","SOUTHERN MOTOR CONTRACTS LTD T/A MOTORENT","300000020480961"
"Portsmouth City Council","PCC","Environmental and Regulatory Services","Regulatory Services","Culture, Leisure & Regulatory Services","Third Party Payments","Private contractors","16-Apr-21","6500849","1,356.00","SUPPLIER","FOREVER TOGETHER FUNERAL CARE LTD","300000020479711"
"Portsmouth City Council","PCC","Highways and Transport Services","Parking Services","Regeneration","Transport-Related Expenditure","Contract hire and operating leases","27-Apr-21","6502714","7","SUPPLIER","SOUTHERN MOTOR CONTRACTS LTD T/A MOTORENT","300000020480961"
"Portsmouth City Council","PCC","Housing Revenue Account","Special Services","Housing, Neighbourhood and Building Services","Transport-Related Expenditure","Contract hire and operating leases","27-Apr-21","6502714","25","SUPPLIER","SOUTHERN MOTOR CONTRACTS LTD T/A MOTORENT","300000020480961"
"Portsmouth City Council","PCC","Highways and Transport Services","Parking Services","Regeneration","Transport-Related Expenditure","Contract hire and operating leases","27-Apr-21","6502714","28","SUPPLIER","SOUTHERN MOTOR CONTRACTS LTD T/A MOTORENT","300000020480961"
"Portsmouth City Council","PCC","Other","Suspense and Capital Schemes","Capital - Traffic & Transportation","Capital Charges","Capital Expenditure (WIP)","30-Apr-21","6503765","5,600.00","LIMITED COMPANY","CYCLE WORKS LTD","300000020461027"
"Portsmouth City Council","PCC","Children's and Education Services","Secondary Schools","Children's Services and Education","Employees","Direct employee expenses","20-Apr-21","6501402","3,253.54","PUBLIC LIMITED COMPANY","SERVOCA PLC","300000020461095"
"Portsmouth City Council","PCC","Children's and Education Services","Secondary Schools","Children's Services and Education","Employees","Direct employee expenses","26-Apr-21","6502543","2,856.58","PUBLIC LIMITED COMPANY","SERVOCA PLC","300000020461095"
"Portsmouth City Council","PCC","Adult Social Care","Mental Health Support Older People (65 - 74)","Adult Services","Third Party Payments","Other establishments","29-Apr-21","6503667","338.06","SUPPLIER","ADMIRAL CARE LTD","300000020477405"
"Portsmouth City Council","PCC","Adult Social Care","Physical Support Older People (85+)","Adult Services","Third Party Payments","Other establishments","29-Apr-21","6503667","341.88","SUPPLIER","ADMIRAL CARE LTD","300000020477405"
"Portsmouth City Council","PCC","Adult Social Care","Physical Support Older People (85+)","Adult Services","Third Party Payments","Other establishments","29-Apr-21","6503667","369.75","SUPPLIER","ADMIRAL CARE LTD","300000020477405"
"Portsmouth City Council","PCC","Adult Social Care","Physical Support Older People (85+)","Adult Services","Third Party Payments","Other establishments","29-Apr-21","6503667","369.75","SUPPLIER","ADMIRAL CARE LTD","300000020477405"
"Portsmouth City Council","PCC","Adult Social Care","Physical Support Older People (85+)","Adult Services","Third Party Payments","Other establishments","29-Apr-21","6503667","374.1","SUPPLIER","ADMIRAL CARE LTD","300000020477405"
"Portsmouth City Council","PCC","Adult Social Care","Physical Support Older People (85+)","Adult Services","Third Party Payments","Other establishments","29-Apr-21","6503667","390.72","SUPPLIER","ADMIRAL CARE LTD","300000020477405"
"Portsmouth City Council","PCC","Adult Social Care","Physical Support Older People (85+)","Adult Services","Third Party Payments","Other establishments","29-Apr-21","6503667","390.72","SUPPLIER","ADMIRAL CARE LTD","300000020477405"
"Portsmouth City Council","PCC","Adult Social Care","Social Care Activities","Adult Services","Third Party Payments","Other establishments","29-Apr-21","6503667","439.56","SUPPLIER","ADMIRAL CARE LTD","300000020477405"
"Portsmouth City Council","PCC","Adult Social Care","Social Care Activities","Adult Services","Third Party Payments","Other establishments","29-Apr-21","6503667","439.56","SUPPLIER","ADMIRAL CARE LTD","300000020477405"
"Portsmouth City Council","PCC","Adult Social Care","Mental Health Support Older People (65 - 74)","Adult Services","Third Party Payments","Other establishments","29-Apr-21","6503667","443.7","SUPPLIER","ADMIRAL CARE LTD","300000020477405"
"Portsmouth City Council","PCC","Adult Social Care","Mental Health Support Older People (65 - 74)","Adult Services","Third Party Payments","Other establishments","29-Apr-21","6503667","443.7","SUPPLIER","ADMIRAL CARE LTD","300000020477405"
"Portsmouth City Council","PCC","Adult Social Care","Physical Support Older People (85+)","Adult Services","Third Party Payments","Other establishments","29-Apr-21","6503667","488.4","SUPPLIER","ADMIRAL CARE LTD","300000020477405"
"Portsmouth City Council","PCC","Adult Social Care","Physical Support Older People (85+)","Adult Services","Third Party Payments","Other establishments","29-Apr-21","6503667","488.4","SUPPLIER","ADMIRAL CARE LTD","300000020477405"
"Portsmouth City Council","PCC","Adult Social Care","Physical Support Older People (85+)","Adult Services","Third Party Payments","Other establishments","29-Apr-21","6503667","488.4","SUPPLIER","ADMIRAL CARE LTD","300000020477405"
"Portsmouth City Council","PCC","Adult Social Care","Physical Support Older People (85+)","Adult Services","Third Party Payments","Other establishments","29-Apr-21","6503667","488.4","SUPPLIER","ADMIRAL CARE LTD","300000020477405"
"Portsmouth City Council","PCC","Adult Social Care","Physical Support Older People (85+)","Adult Services","Third Party Payments","Other establishments","29-Apr-21","6503667","517.65","SUPPLIER","ADMIRAL CARE LTD","300000020477405"
"Portsmouth City Council","PCC","Adult Social Care","Social Care Activities","Adult Services","Third Party Payments","Other establishments","29-Apr-21","6503667","537.24","SUPPLIER","ADMIRAL CARE LTD","300000020477405"
"Portsmouth City Council","PCC","Adult Social Care","Social Care Activities","Adult Services","Third Party Payments","Other establishments","29-Apr-21","6503667","537.24","SUPPLIER","ADMIRAL CARE LTD","300000020477405"
"Portsmouth City Council","PCC","Adult Social Care","Physical Support Older People (85+)","Adult Services","Third Party Payments","Other establishments","29-Apr-21","6503667","591.6","SUPPLIER","ADMIRAL CARE LTD","300000020477405"
"Portsmouth City Council","PCC","Adult Social Care","Physical Support Older People (85+)","Adult Services","Third Party Payments","Other establishments","29-Apr-21","6503667","591.6","SUPPLIER","ADMIRAL CARE LTD","300000020477405"
"Portsmouth City Council","PCC","Adult Social Care","Social Care Activities","Adult Services","Third Party Payments","Other establishments","29-Apr-21","6503667","665.55","SUPPLIER","ADMIRAL CARE LTD","300000020477405"
"Portsmouth City Council","PCC","Adult Social Care","Social Care Activities","Adult Services","Third Party Payments","Other establishments","29-Apr-21","6503667","665.55","SUPPLIER","ADMIRAL CARE LTD","300000020477405"
"Portsmouth City Council","PCC","Adult Social Care","Physical Support Older People (85+)","Adult Services","Third Party Payments","Other establishments","29-Apr-21","6503667","711.67","SUPPLIER","ADMIRAL CARE LTD","300000020477405"
"Portsmouth City Council","PCC","Adult Social Care","Social Care Activities","Adult Services","Third Party Payments","Other establishments","29-Apr-21","6503667","717.75","SUPPLIER","ADMIRAL CARE LTD","300000020477405"
"Portsmouth City Council","PCC","Adult Social Care","Social Care Activities","Adult Services","Third Party Payments","Other establishments","29-Apr-21","6503667","717.75","SUPPLIER","ADMIRAL CARE LTD","300000020477405"
"Portsmouth City Council","PCC","Adult Social Care","Physical Support Older People (85+)","Adult Services","Third Party Payments","Other establishments","29-Apr-21","6503667","739.5","SUPPLIER","ADMIRAL CARE LTD","300000020477405"
"Portsmouth City Council","PCC","Adult Social Care","Physical Support Older People (85+)","Adult Services","Third Party Payments","Other establishments","29-Apr-21","6503667","739.5","SUPPLIER","ADMIRAL CARE LTD","300000020477405"
"Portsmouth City Council","PCC","Adult Social Care","Physical Support Older People (85+)","Adult Services","Third Party Payments","Other establishments","29-Apr-21","6503667","739.5","SUPPLIER","ADMIRAL CARE LTD","300000020477405"
"Portsmouth City Council","PCC","Adult Social Care","Physical Support Older People (85+)","Adult Services","Third Party Payments","Other establishments","29-Apr-21","6503667","739.5","SUPPLIER","ADMIRAL CARE LTD","300000020477405"
"Portsmouth City Council","PCC","Adult Social Care","Physical Support Older People (85+)","Adult Services","Third Party Payments","Other establishments","29-Apr-21","6503667","1,077.56","SUPPLIER","ADMIRAL CARE LTD","300000020477405"
"Portsmouth City Council","PCC","Adult Social Care","Support with Memory and Cognition Older People (65 - 74)","Adult Services","Premises-Related Expenditure","Water Services","30-Apr-21","6503790","291.93","SUPPLIER","ADVANCED DEMAND SIDE MANAGEMENT LIMITED","300000020478882"
"Portsmouth City Council","PCC","Adult Social Care","Information and Early Intervention","Adult Services","Premises-Related Expenditure","Water Services","30-Apr-21","6503790","3.54","SUPPLIER","ADVANCED DEMAND SIDE MANAGEMENT LIMITED","300000020478882"
"Portsmouth City Council","PCC","Adult Social Care","Support with Memory and Cognition Older People (65 - 74)","Adult Services","Premises-Related Expenditure","Water Services","30-Apr-21","6503790","1,228.39","SUPPLIER","ADVANCED DEMAND SIDE MANAGEMENT LIMITED","300000020478882"
"Portsmouth City Council","PCC","Adult Social Care","Support with Memory and Cognition Older People (65 - 74)","Adult Services","Premises-Related Expenditure","Water Services","30-Apr-21","6503790","87.25","SUPPLIER","ADVANCED DEMAND SIDE MANAGEMENT LIMITED","300000020478882"
"Portsmouth City Council","PCC","Adult Social Care","Learning Disability Support Adults (18 - 64)","Adult Services","Premises-Related Expenditure","Water Services","30-Apr-21","6503790","28.08","SUPPLIER","ADVANCED DEMAND SIDE MANAGEMENT LIMITED","300000020478882"
"Portsmouth City Council","PCC","Adult Social Care","Learning Disability Support Adults (18 - 64)","Adult Services","Premises-Related Expenditure","Water Services","30-Apr-21","6503790","28.08","SUPPLIER","ADVANCED DEMAND SIDE MANAGEMENT LIMITED","300000020478882"
"Portsmouth City Council","PCC","Adult Social Care","Learning Disability Support Adults (18 - 64)","Adult Services","Premises-Related Expenditure","Water Services","30-Apr-21","6503790","508.08","SUPPLIER","ADVANCED DEMAND SIDE MANAGEMENT LIMITED","300000020478882"
"Portsmouth City Council","PCC","Adult Social Care","Learning Disability Support Adults (18 - 64)","Adult Services","Third Party Payments","Other establishments","13-Apr-21","6500093","6,782.70","SUPPLIER","AFFINITY TRUST LTD","300000020477195"
"Portsmouth City Council","PCC","Adult Social Care","Learning Disability Support Adults (18 - 64)","Adult Services","Third Party Payments","Other establishments","13-Apr-21","6500093","7,094.40","SUPPLIER","AFFINITY TRUST LTD","300000020477195"
"Portsmouth City Council","PCC","Adult Social Care","Learning Disability Support Adults (18 - 64)","Adult Services","Third Party Payments","Other establishments","13-Apr-21","6500093","7,261.20","SUPPLIER","AFFINITY TRUST LTD","300000020477195"
"Portsmouth City Council","PCC","Adult Social Care","Learning Disability Support Adults (18 - 64)","Adult Services","Third Party Payments","Other establishments","13-Apr-21","6500093","7,341.30","SUPPLIER","AFFINITY TRUST LTD","300000020477195"
"Portsmouth City Council","PCC","Adult Social Care","Learning Disability Support Adults (18 - 64)","Adult Services","Third Party Payments","Other establishments","13-Apr-21","6500093","8,699.70","SUPPLIER","AFFINITY TRUST LTD","300000020477195"
"Portsmouth City Council","PCC","Adult Social Care","Learning Disability Support Adults (18 - 64)","Adult Services","Third Party Payments","Other establishments","13-Apr-21","6500093","9,251.70","SUPPLIER","AFFINITY TRUST LTD","300000020477195"
"Portsmouth City Council","PCC","Adult Social Care","Learning Disability Support Adults (18 - 64)","Adult Services","Third Party Payments","Other establishments","13-Apr-21","6500093","9,251.70","SUPPLIER","AFFINITY TRUST LTD","300000020477195"
"Portsmouth City Council","PCC","Adult Social Care","Physical Support Older People (85+)","Adult Services","Third Party Payments","Other establishments","15-Apr-21","6500676","3,744.60","SUPPLIER","AGINCARE UK","300000020481869"
"Portsmouth City Council","PCC","Adult Social Care","Physical Support Older People (85+)","Adult Services","Third Party Payments","Other establishments","13-Apr-21","6500110","2,859.30","SUPPLIER","AGINCARE UK","300000020481869"
"Portsmouth City Council","PCC","Adult Social Care","Social Care Activities","Adult Services","Third Party Payments","Other establishments","13-Apr-21","6500097","14,527.80","SUPPLIER","ALBANY CARE (PORTCHESTER) LIMITED","300000020467728"
"Portsmouth City Council","PCC","Adult Social Care","Mental Health Support Adults (18 - 64)","Adult Services","Third Party Payments","Other establishments","13-Apr-21","6500056","2,702.70","SUPPLIER","ALBANY FARM CARE (HAMPSHIRE) LTD","300000020477794"
"Portsmouth City Council","PCC","Adult Social Care","Learning Disability Support Adults (18 - 64)","Adult Services","Third Party Payments","Other establishments","13-Apr-21","6500056","6,863.70","SUPPLIER","ALBANY FARM CARE (HAMPSHIRE) LTD","300000020477794"
"Portsmouth City Council","PCC","Adult Social Care","Learning Disability Support Adults (18 - 64)","Adult Services","Third Party Payments","Other establishments","13-Apr-21","6500013","4,438.80","SUPPLIER","ALLIED CARE ASHSTEAD HOUSE","300000020473831"
"Portsmouth City Council","PCC","Adult Social Care","Learning Disability Support Adults (18 - 64)","Adult Services","Third Party Payments","Other establishments","13-Apr-21","6500055","4,345.80","SUPPLIER","ALLIED CARE LTD","300000020478714"
"Portsmouth City Council","PCC","Adult Social Care","Learning Disability Support Adults (18 - 64)","Adult Services","Third Party Payments","Other establishments","23-Apr-21","6502425","1,293.56","SUPPLIER","ALLIED CARE LTD","300000020478714"
"Portsmouth City Council","PCC","Adult Social Care","Learning Disability Support Adults (18 - 64)","Adult Services","Transport-Related Expenditure","Direct transport costs","27-Apr-21","6502725","268.98","SUPPLIER","ALLSTAR BUSINESS SOLUTIONS LTD","300000020477226"
"Portsmouth City Council","PCC","Adult Social Care","Support with Memory and Cognition Older People (85+)","Adult Services","Third Party Payments","Other establishments","13-Apr-21","6500019","2,823.30","SUPPLIER","ALTON HOUSE PARTNERSHIP","300000020463909"
"Portsmouth City Council","PCC","Adult Social Care","Support with Memory and Cognition Older People (85+)","Adult Services","Third Party Payments","Other establishments","13-Apr-21","6500019","2,823.30","SUPPLIER","ALTON HOUSE PARTNERSHIP","300000020463909"
"Portsmouth City Council","PCC","Adult Social Care","Physical Support Older People (85+)","Adult Services","Third Party Payments","Other establishments","13-Apr-21","6500101","321.42","SUPPLIER","ALTON MANOR LTD","300000020457904"
"Portsmouth City Council","PCC","Adult Social Care","Support with Memory and Cognition Older People (85+)","Adult Services","Third Party Payments","Other establishments","13-Apr-21","6500101","983.4","SUPPLIER","ALTON MANOR LTD","300000020457904"
"Portsmouth City Council","PCC","Adult Social Care","Mental Health Support Adults (18 - 64)","Adult Services","Third Party Payments","Other establishments","13-Apr-21","6500101","2,172.00","SUPPLIER","ALTON MANOR LTD","300000020457904"
"Portsmouth City Council","PCC","Adult Social Care","Physical Support Older People (85+)","Adult Services","Third Party Payments","Other establishments","13-Apr-21","6500101","2,307.60","SUPPLIER","ALTON MANOR LTD","300000020457904"
"Portsmouth City Council","PCC","Adult Social Care","Support with Memory and Cognition Older People (85+)","Adult Services","Third Party Payments","Other establishments","13-Apr-21","6500101","2,307.60","SUPPLIER","ALTON MANOR LTD","300000020457904"
"Portsmouth City Council","PCC","Adult Social Care","Support with Memory and Cognition Older People (85+)","Adult Services","Third Party Payments","Other establishments","13-Apr-21","6500101","2,307.60","SUPPLIER","ALTON MANOR LTD","300000020457904"
"Portsmouth City Council","PCC","Adult Social Care","Support with Memory and Cognition Older People (85+)","Adult Services","Third Party Payments","Other establishments","13-Apr-21","6500101","2,307.60","SUPPLIER","ALTON MANOR LTD","300000020457904"
"Portsmouth City Council","PCC","Adult Social Care","Support with Memory and Cognition Older People (85+)","Adult Services","Third Party Payments","Other establishments","13-Apr-21","6500101","2,307.60","SUPPLIER","ALTON MANOR LTD","300000020457904"
"Portsmouth City Council","PCC","Adult Social Care","Support with Memory and Cognition Older People (85+)","Adult Services","Third Party Payments","Other establishments","13-Apr-21","6500101","2,307.60","SUPPLIER","ALTON MANOR LTD","300000020457904"
"Portsmouth City Council","PCC","Adult Social Care","Physical Support Older People (85+)","Adult Services","Third Party Payments","Other establishments","13-Apr-21","6500101","2,678.50","SUPPLIER","ALTON MANOR LTD","300000020457904"
"Portsmouth City Council","PCC","Adult Social Care","Support with Memory and Cognition Older People (85+)","Adult Services","Third Party Payments","Other establishments","13-Apr-21","6500101","2,840.40","SUPPLIER","ALTON MANOR LTD","300000020457904"
"Portsmouth City Council","PCC","Adult Social Care","Support with Memory and Cognition Older People (85+)","Adult Services","Third Party Payments","Other establishments","13-Apr-21","6500101","3,058.80","SUPPLIER","ALTON MANOR LTD","300000020457904"
"Portsmouth City Council","PCC","Adult Social Care","Support with Memory and Cognition Older People (85+)","Adult Services","Third Party Payments","Other establishments","13-Apr-21","6500101","3,120.00","SUPPLIER","ALTON MANOR LTD","300000020457904"
"Portsmouth City Council","PCC","Adult Social Care","Support with Memory and Cognition Older People (85+)","Adult Services","Third Party Payments","Other establishments","13-Apr-21","6500027","1,954.20","SUPPLIER","SHEDFIELD LODGE RESIDENTIAL","300000020460457"
"Portsmouth City Council","PCC","Adult Social Care","Support with Memory and Cognition Older People (85+)","Adult Services","Third Party Payments","Other establishments","13-Apr-21","6500095","2,353.50","SUPPLIER","ANEXAS CARE LTD","300000020475584"
"Portsmouth City Council","PCC","Adult Social Care","Information and Early Intervention","Adult Services","Third Party Payments","Other establishments","28-Apr-21","6502982","-19,943.00","SUPPLIER","APETITO LTD","300000015963886"
"Portsmouth City Council","PCC","Adult Social Care","Information and Early Intervention","Adult Services","Third Party Payments","Other establishments","28-Apr-21","6502982","-1,179.75","SUPPLIER","APETITO LTD","300000015963886"
"Portsmouth City Council","PCC","Adult Social Care","Information and Early Intervention","Adult Services","Third Party Payments","Other establishments","28-Apr-21","6502982","1,179.75","SUPPLIER","APETITO LTD","300000015963886"
"Portsmouth City Council","PCC","Adult Social Care","Information and Early Intervention","Adult Services","Third Party Payments","Other establishments","28-Apr-21","6502982","19,943.00","SUPPLIER","APETITO LTD","300000015963886"
"Portsmouth City Council","PCC","Adult Social Care","Social Care Activities","Adult Services","Third Party Payments","Other establishments","30-Apr-21","6503777","735.6","SUPPLIER","APPLETREE SUPPORT LTD","300000020480869"
"Portsmouth City Council","PCC","Adult Social Care","Social Care Activities","Adult Services","Third Party Payments","Other establishments","30-Apr-21","6503777","4,413.60","SUPPLIER","APPLETREE SUPPORT LTD","300000020480869"
"Portsmouth City Council","PCC","Adult Social Care","Social Care Activities","Adult Services","Third Party Payments","Other establishments","30-Apr-21","6503777","5,416.20","SUPPLIER","APPLETREE SUPPORT LTD","300000020480869"
"Portsmouth City Council","PCC","Adult Social Care","Social Care Activities","Adult Services","Transport-Related Expenditure","Direct transport costs","30-Apr-21","6503772","1,450.40","SUPPLIER","AQUA CARS LIMITED","300000019988490"
"Portsmouth City Council","PCC","Adult Social Care","Social Care Activities","Adult Services","Third Party Payments","Other establishments","20-Apr-21","6501408","-648.55","SUPPLIER","AQUA CARS LIMITED","300000019988490"
"Portsmouth City Council","PCC","Adult Social Care","Social Care Activities","Adult Services","Third Party Payments","Other establishments","20-Apr-21","6501408","-0.02","SUPPLIER","AQUA CARS LIMITED","300000019988490"
"Portsmouth City Council","PCC","Adult Social Care","Social Care Activities","Adult Services","Third Party Payments","Other establishments","20-Apr-21","6501408","1,638.57","SUPPLIER","AQUA CARS LIMITED","300000019988490"
"Portsmouth City Council","PCC","Adult Social Care","Social Care Activities","Adult Services","Third Party Payments","Other establishments","20-Apr-21","6501408","-0.02","SUPPLIER","AQUA CARS LIMITED","300000019988490"
"Portsmouth City Council","PCC","Adult Social Care","Social Care Activities","Adult Services","Third Party Payments","Other establishments","20-Apr-21","6501408","21.45","SUPPLIER","AQUA CARS LIMITED","300000019988490"
"Portsmouth City Council","PCC","Adult Social Care","Social Care Activities","Adult Services","Third Party Payments","Other establishments","20-Apr-21","6501408","1,328.57","SUPPLIER","AQUA CARS LIMITED","300000019988490"
"Portsmouth City Council","PCC","Adult Social Care","Physical Support Older People (85+)","Adult Services","Transport-Related Expenditure","Direct transport costs","30-Apr-21","6503772","30.9","SUPPLIER","AQUA CARS LIMITED","300000019988490"
"Portsmouth City Council","PCC","Adult Social Care","Social Care Activities","Adult Services","Transport-Related Expenditure","Direct transport costs","30-Apr-21","6503772","124.9","SUPPLIER","AQUA CARS LIMITED","300000019988490"
"Portsmouth City Council","PCC","Adult Social Care","Learning Disability Support Adults (18 - 64)","Adult Services","Third Party Payments","Other establishments","13-Apr-21","6500029","10,096.20","SUPPLIER","ASPENS CHARITIES","300000020464229"
"Portsmouth City Council","PCC","Adult Social Care","Learning Disability Support Adults (18 - 64)","Adult Services","Third Party Payments","Other establishments","13-Apr-21","6500040","9,357.30","SUPPLIER","ASSURE HEALTH CARE GROUP","300000020481583"
"Portsmouth City Council","PCC","Adult Social Care","Learning Disability Support Adults (18 - 64)","Adult Services","Third Party Payments","Other establishments","23-Apr-21","6502456","1,621.71","SUPPLIER","ASSURE HEALTH CARE GROUP","300000020481583"
"Portsmouth City Council","PCC","Adult Social Care","Learning Disability Support Adults (18 - 64)","Adult Services","Third Party Payments","Other establishments","23-Apr-21","6502456","2,808.00","SUPPLIER","ASSURE HEALTH CARE GROUP","300000020481583"
"Portsmouth City Council","PCC","Adult Social Care","Learning Disability Support Adults (18 - 64)","Adult Services","Third Party Payments","Other establishments","23-Apr-21","6502456","3,742.20","SUPPLIER","ASSURE HEALTH CARE GROUP","300000020481583"
"Portsmouth City Council","PCC","Adult Social Care","Mental Health Support Adults (18 - 64)","Adult Services","Third Party Payments","Other establishments","23-Apr-21","6502456","4,847.57","SUPPLIER","ASSURE HEALTH CARE GROUP","300000020481583"
"Portsmouth City Council","PCC","Adult Social Care","Social Care Activities","Adult Services","Third Party Payments","Other establishments","13-Apr-21","6500099","11,692.80","SUPPLIER","ASTER CARE LTD","300000020457879"
"Portsmouth City Council","PCC","Adult Social Care","Social Care Activities","Adult Services","Third Party Payments","Other establishments","13-Apr-21","6500099","11,692.80","SUPPLIER","ASTER CARE LTD","300000020457879"
"Portsmouth City Council","PCC","Adult Social Care","Learning Disability Support Adults (18 - 64)","Adult Services","Third Party Payments","Other establishments","13-Apr-21","6500154","5,013.60","SUPPLIER","AUCKLAND CARE LTD","300000020462261"
"Portsmouth City Council","PCC","Adult Social Care","Mental Health Support Adults (18 - 64)","Adult Services","Third Party Payments","Other establishments","23-Apr-21","6502342","3,724.50","SUPPLIER","AUCKLAND CARE LTD","300000020462261"
"Portsmouth City Council","PCC","Adult Social Care","Learning Disability Support Adults (18 - 64)","Adult Services","Third Party Payments","Other establishments","13-Apr-21","6500078","3,738.60","SUPPLIER","AUTISM HAMPSHIRE","300000020477518"
"Portsmouth City Council","PCC","Adult Social Care","Learning Disability Support Adults (18 - 64)","Adult Services","Third Party Payments","Other establishments","13-Apr-21","6500078","6,248.40","SUPPLIER","AUTISM HAMPSHIRE","300000020477518"
"Portsmouth City Council","PCC","Adult Social Care","Learning Disability Support Adults (18 - 64)","Adult Services","Third Party Payments","Other establishments","13-Apr-21","6500078","8,974.50","SUPPLIER","AUTISM HAMPSHIRE","300000020477518"
"Portsmouth City Council","PCC","Adult Social Care","Social Care Activities","Adult Services","Third Party Payments","Other establishments","13-Apr-21","6500078","15,962.70","SUPPLIER","AUTISM HAMPSHIRE","300000020477518"
"Portsmouth City Council","PCC","Adult Social Care","Learning Disability Support Adults (18 - 64)","Adult Services","Third Party Payments","Other establishments","23-Apr-21","6502459","3,258.00","SUPPLIER","AUTISM HAMPSHIRE","300000020477518"
"Portsmouth City Council","PCC","Adult Social Care","Learning Disability Support Adults (18 - 64)","Adult Services","Third Party Payments","Other establishments","23-Apr-21","6502459","3,389.10","SUPPLIER","AUTISM HAMPSHIRE","300000020477518"
"Portsmouth City Council","PCC","Adult Social Care","Learning Disability Support Adults (18 - 64)","Adult Services","Third Party Payments","Other establishments","28-Apr-21","6503399","392.82","SUPPLIER","AUTISM HAMPSHIRE","300000020477518"
"Portsmouth City Council","PCC","Adult Social Care","Learning Disability Support Adults (18 - 64)","Adult Services","Third Party Payments","Other establishments","28-Apr-21","6503399","721.41","SUPPLIER","AUTISM HAMPSHIRE","300000020477518"
"Portsmouth City Council","PCC","Adult Social Care","Physical Support Adults (18 - 64)","Adult Services","Third Party Payments","Other establishments","29-Apr-21","6503676","-17.4","SUPPLIER","AXIS RECRUITMENT LIMITED","300000020471676"
"Portsmouth City Council","PCC","Adult Social Care","Social Care Activities","Adult Services","Third Party Payments","Other establishments","29-Apr-21","6503676","26.1","SUPPLIER","AXIS RECRUITMENT LIMITED","300000020471676"
"Portsmouth City Council","PCC","Adult Social Care","Social Support - Support for Carer","Adult Services","Third Party Payments","Other establishments","29-Apr-21","6503676","59.84","SUPPLIER","AXIS RECRUITMENT LIMITED","300000020471676"
"Portsmouth City Council","PCC","Adult Social Care","Social Support - Support for Carer","Adult Services","Third Party Payments","Other establishments","29-Apr-21","6503676","59.84","SUPPLIER","AXIS RECRUITMENT LIMITED","300000020471676"
"Portsmouth City Council","PCC","Adult Social Care","Physical Support Older People (85+)","Adult Services","Third Party Payments","Other establishments","29-Apr-21","6503676","69.6","SUPPLIER","AXIS RECRUITMENT LIMITED","300000020471676"
"Portsmouth City Council","PCC","Adult Social Care","Social Support - Support for Carer","Adult Services","Third Party Payments","Other establishments","29-Apr-21","6503676","149.6","SUPPLIER","AXIS RECRUITMENT LIMITED","300000020471676"
"Portsmouth City Council","PCC","Adult Social Care","Physical Support Adults (18 - 64)","Adult Services","Third Party Payments","Other establishments","29-Apr-21","6503676","156.6","SUPPLIER","AXIS RECRUITMENT LIMITED","300000020471676"
"Portsmouth City Council","PCC","Adult Social Care","Physical Support Older People (85+)","Adult Services","Third Party Payments","Other establishments","29-Apr-21","6503676","174","SUPPLIER","AXIS RECRUITMENT LIMITED","300000020471676"
"Portsmouth City Council","PCC","Adult Social Care","Social Support - Support for Carer","Adult Services","Third Party Payments","Other establishments","29-Apr-21","6503676","179.52","SUPPLIER","AXIS RECRUITMENT LIMITED","300000020471676"
"Portsmouth City Council","PCC","Adult Social Care","Physical Support Older People (85+)","Adult Services","Third Party Payments","Other establishments","29-Apr-21","6503676","243.6","SUPPLIER","AXIS RECRUITMENT LIMITED","300000020471676"
"Portsmouth City Council","PCC","Adult Social Care","Physical Support Older People (85+)","Adult Services","Third Party Payments","Other establishments","29-Apr-21","6503676","252.3","SUPPLIER","AXIS RECRUITMENT LIMITED","300000020471676"
"Portsmouth City Council","PCC","Adult Social Care","Physical Support Older People (85+)","Adult Services","Third Party Payments","Other establishments","29-Apr-21","6503676","278.4","SUPPLIER","AXIS RECRUITMENT LIMITED","300000020471676"
"Portsmouth City Council","PCC","Adult Social Care","Learning Disability Support Adults (18 - 64)","Adult Services","Third Party Payments","Other establishments","29-Apr-21","6503676","278.4","SUPPLIER","AXIS RECRUITMENT LIMITED","300000020471676"
"Portsmouth City Council","PCC","Adult Social Care","Learning Disability Support Adults (18 - 64)","Adult Services","Third Party Payments","Other establishments","29-Apr-21","6503676","278.4","SUPPLIER","AXIS RECRUITMENT LIMITED","300000020471676"
"Portsmouth City Council","PCC","Adult Social Care","Physical Support Older People (85+)","Adult Services","Third Party Payments","Other establishments","29-Apr-21","6503676","313.2","SUPPLIER","AXIS RECRUITMENT LIMITED","300000020471676"
"Portsmouth City Council","PCC","Adult Social Care","Social Support - Support for Carer","Adult Services","Third Party Payments","Other establishments","29-Apr-21","6503676","359.04","SUPPLIER","AXIS RECRUITMENT LIMITED","300000020471676"
"Portsmouth City Council","PCC","Adult Social Care","Social Support - Support for Carer","Adult Services","Third Party Payments","Other establishments","29-Apr-21","6503676","359.04","SUPPLIER","AXIS RECRUITMENT LIMITED","300000020471676"
"Portsmouth City Council","PCC","Adult Social Care","Physical Support Older People (85+)","Adult Services","Third Party Payments","Other establishments","29-Apr-21","6503676","400.2","SUPPLIER","AXIS RECRUITMENT LIMITED","300000020471676"
"Portsmouth City Council","PCC","Adult Social Care","Physical Support Older People (85+)","Adult Services","Third Party Payments","Other establishments","29-Apr-21","6503676","487.2","SUPPLIER","AXIS RECRUITMENT LIMITED","300000020471676"
"Portsmouth City Council","PCC","Adult Social Care","Physical Support Older People (85+)","Adult Services","Third Party Payments","Other establishments","29-Apr-21","6503676","487.2","SUPPLIER","AXIS RECRUITMENT LIMITED","300000020471676"
"Portsmouth City Council","PCC","Adult Social Care","Social Care Activities","Adult Services","Third Party Payments","Other establishments","29-Apr-21","6503676","500.25","SUPPLIER","AXIS RECRUITMENT LIMITED","300000020471676"
"Portsmouth City Council","PCC","Adult Social Care","Physical Support Older People (85+)","Adult Services","Third Party Payments","Other establishments","29-Apr-21","6503676","539.4","SUPPLIER","AXIS RECRUITMENT LIMITED","300000020471676"
"Portsmouth City Council","PCC","Adult Social Care","Physical Support Adults (18 - 64)","Adult Services","Third Party Payments","Other establishments","29-Apr-21","6503676","565.5","SUPPLIER","AXIS RECRUITMENT LIMITED","300000020471676"
"Portsmouth City Council","PCC","Adult Social Care","Physical Support Older People (85+)","Adult Services","Third Party Payments","Other establishments","29-Apr-21","6503676","730.8","SUPPLIER","AXIS RECRUITMENT LIMITED","300000020471676"
"Portsmouth City Council","PCC","Adult Social Care","Physical Support Older People (85+)","Adult Services","Third Party Payments","Other establishments","29-Apr-21","6503676","800.4","SUPPLIER","AXIS RECRUITMENT LIMITED","300000020471676"
"Portsmouth City Council","PCC","Adult Social Care","Learning Disability Support Adults (18 - 64)","Adult Services","Third Party Payments","Other establishments","29-Apr-21","6503676","835.2","SUPPLIER","AXIS RECRUITMENT LIMITED","300000020471676"
"Portsmouth City Council","PCC","Adult Social Care","Learning Disability Support Adults (18 - 64)","Adult Services","Third Party Payments","Other establishments","29-Apr-21","6503676","835.2","SUPPLIER","AXIS RECRUITMENT LIMITED","300000020471676"
"Portsmouth City Council","PCC","Adult Social Care","Learning Disability Support Adults (18 - 64)","Adult Services","Third Party Payments","Other establishments","29-Apr-21","6503676","835.2","SUPPLIER","AXIS RECRUITMENT LIMITED","300000020471676"
"Portsmouth City Council","PCC","Adult Social Care","Learning Disability Support Adults (18 - 64)","Adult Services","Third Party Payments","Other establishments","29-Apr-21","6503676","835.2","SUPPLIER","AXIS RECRUITMENT LIMITED","300000020471676"
"Portsmouth City Council","PCC","Adult Social Care","Physical Support Older People (85+)","Adult Services","Third Party Payments","Other establishments","29-Apr-21","6503676","974.4","SUPPLIER","AXIS RECRUITMENT LIMITED","300000020471676"
"Portsmouth City Council","PCC","Adult Social Care","Physical Support Older People (85+)","Adult Services","Third Party Payments","Other establishments","29-Apr-21","6503676","1,096.20","SUPPLIER","AXIS RECRUITMENT LIMITED","300000020471676"
"Portsmouth City Council","PCC","Adult Social Care","Physical Support Older People (85+)","Adult Services","Third Party Payments","Other establishments","29-Apr-21","6503676","1,096.20","SUPPLIER","AXIS RECRUITMENT LIMITED","300000020471676"
"Portsmouth City Council","PCC","Adult Social Care","Physical Support Older People (85+)","Adult Services","Third Party Payments","Other establishments","29-Apr-21","6503676","1,148.40","SUPPLIER","AXIS RECRUITMENT LIMITED","300000020471676"
"Portsmouth City Council","PCC","Adult Social Care","Physical Support Older People (85+)","Adult Services","Third Party Payments","Other establishments","29-Apr-21","6503676","1,222.35","SUPPLIER","AXIS RECRUITMENT LIMITED","300000020471676"
"Portsmouth City Council","PCC","Adult Social Care","Social Care Activities","Adult Services","Third Party Payments","Other establishments","29-Apr-21","6503676","1,226.70","SUPPLIER","AXIS RECRUITMENT LIMITED","300000020471676"
"Portsmouth City Council","PCC","Adult Social Care","Physical Support Older People (85+)","Adult Services","Third Party Payments","Other establishments","29-Apr-21","6503676","1,270.20","SUPPLIER","AXIS RECRUITMENT LIMITED","300000020471676"
"Portsmouth City Council","PCC","Adult Social Care","Physical Support Older People (85+)","Adult Services","Third Party Payments","Other establishments","29-Apr-21","6503676","1,348.50","SUPPLIER","AXIS RECRUITMENT LIMITED","300000020471676"
"Portsmouth City Council","PCC","Adult Social Care","Physical Support Older People (85+)","Adult Services","Third Party Payments","Other establishments","22-Apr-21","6502174","5.07","SUPPLIER","B S CARE LTD","300000015963853"
"Portsmouth City Council","PCC","Adult Social Care","Physical Support Older People (85+)","Adult Services","Third Party Payments","Other establishments","22-Apr-21","6502174","8.7","SUPPLIER","B S CARE LTD","300000015963853"
"Portsmouth City Council","PCC","Adult Social Care","Physical Support Older People (85+)","Adult Services","Third Party Payments","Other establishments","22-Apr-21","6502174","10.15","SUPPLIER","B S CARE LTD","300000015963853"
"Portsmouth City Council","PCC","Adult Social Care","Physical Support Adults (18 - 64)","Adult Services","Third Party Payments","Other establishments","22-Apr-21","6502174","15.22","SUPPLIER","B S CARE LTD","300000015963853"
"Portsmouth City Council","PCC","Adult Social Care","Physical Support Adults (18 - 64)","Adult Services","Third Party Payments","Other establishments","22-Apr-21","6502174","15.22","SUPPLIER","B S CARE LTD","300000015963853"
"Portsmouth City Council","PCC","Adult Social Care","Physical Support Older People (85+)","Adult Services","Third Party Payments","Other establishments","22-Apr-21","6502174","15.22","SUPPLIER","B S CARE LTD","300000015963853"
"Portsmouth City Council","PCC","Adult Social Care","Physical Support Adults (18 - 64)","Adult Services","Third Party Payments","Other establishments","22-Apr-21","6502174","17.4","SUPPLIER","B S CARE LTD","300000015963853"
"Portsmouth City Council","PCC","Adult Social Care","Physical Support Adults (18 - 64)","Adult Services","Third Party Payments","Other establishments","22-Apr-21","6502174","17.4","SUPPLIER","B S CARE LTD","300000015963853"
"Portsmouth City Council","PCC","Adult Social Care","Social Care Activities","Adult Services","Third Party Payments","Other establishments","22-Apr-21","6502174","17.46","SUPPLIER","B S CARE LTD","300000015963853"
"Portsmouth City Council","PCC","Adult Social Care","Social Support - Support for Carer","Adult Services","Third Party Payments","Other establishments","22-Apr-21","6502174","17.46","SUPPLIER","B S CARE LTD","300000015963853"
"Portsmouth City Council","PCC","Adult Social Care","Physical Support Older People (85+)","Adult Services","Third Party Payments","Other establishments","22-Apr-21","6502174","19.98","SUPPLIER","B S CARE LTD","300000015963853"
"Portsmouth City Council","PCC","Adult Social Care","Physical Support Older People (85+)","Adult Services","Third Party Payments","Other establishments","22-Apr-21","6502174","20.3","SUPPLIER","B S CARE LTD","300000015963853"
"Portsmouth City Council","PCC","Adult Social Care","Physical Support Older People (85+)","Adult Services","Third Party Payments","Other establishments","22-Apr-21","6502174","20.3","SUPPLIER","B S CARE LTD","300000015963853"
"Portsmouth City Council","PCC","Adult Social Care","Physical Support Older People (85+)","Adult Services","Third Party Payments","Other establishments","22-Apr-21","6502174","21.75","SUPPLIER","B S CARE LTD","300000015963853"
"Portsmouth City Council","PCC","Adult Social Care","Physical Support Older People (85+)","Adult Services","Third Party Payments","Other establishments","22-Apr-21","6502174","21.75","SUPPLIER","B S CARE LTD","300000015963853"
"Portsmouth City Council","PCC","Adult Social Care","Physical Support Older People (85+)","Adult Services","Third Party Payments","Other establishments","22-Apr-21","6502174","22.83","SUPPLIER","B S CARE LTD","300000015963853"
"Portsmouth City Council","PCC","Adult Social Care","Physical Support Older People (85+)","Adult Services","Third Party Payments","Other establishments","22-Apr-21","6502174","22.83","SUPPLIER","B S CARE LTD","300000015963853"
"Portsmouth City Council","PCC","Adult Social Care","Mental Health Support Older People (65 - 74)","Adult Services","Third Party Payments","Other establishments","22-Apr-21","6502174","25.37","SUPPLIER","B S CARE LTD","300000015963853"
"Portsmouth City Council","PCC","Adult Social Care","Physical Support Older People (85+)","Adult Services","Third Party Payments","Other establishments","22-Apr-21","6502174","25.37","SUPPLIER","B S CARE LTD","300000015963853"
"Portsmouth City Council","PCC","Adult Social Care","Physical Support Older People (85+)","Adult Services","Third Party Payments","Other establishments","22-Apr-21","6502174","25.37","SUPPLIER","B S CARE LTD","300000015963853"
"Portsmouth City Council","PCC","Adult Social Care","Physical Support Older People (85+)","Adult Services","Third Party Payments","Other establishments","22-Apr-21","6502174","26.1","SUPPLIER","B S CARE LTD","300000015963853"
"Portsmouth City Council","PCC","Adult Social Care","Physical Support Older People (85+)","Adult Services","Third Party Payments","Other establishments","22-Apr-21","6502174","26.1","SUPPLIER","B S CARE LTD","300000015963853"
"Portsmouth City Council","PCC","Adult Social Care","Physical Support Older People (85+)","Adult Services","Third Party Payments","Other establishments","22-Apr-21","6502174","29.83","SUPPLIER","B S CARE LTD","300000015963853"
"Portsmouth City Council","PCC","Adult Social Care","Physical Support Older People (85+)","Adult Services","Third Party Payments","Other establishments","22-Apr-21","6502174","32.98","SUPPLIER","B S CARE LTD","300000015963853"
"Portsmouth City Council","PCC","Adult Social Care","Social Support - Support for Carer","Adult Services","Third Party Payments","Other establishments","22-Apr-21","6502174","34.93","SUPPLIER","B S CARE LTD","300000015963853"
"Portsmouth City Council","PCC","Adult Social Care","Physical Support Adults (18 - 64)","Adult Services","Third Party Payments","Other establishments","22-Apr-21","6502174","35.52","SUPPLIER","B S CARE LTD","300000015963853"
"Portsmouth City Council","PCC","Adult Social Care","Physical Support Adults (18 - 64)","Adult Services","Third Party Payments","Other establishments","22-Apr-21","6502174","35.52","SUPPLIER","B S CARE LTD","300000015963853"
"Portsmouth City Council","PCC","Adult Social Care","Physical Support Older People (85+)","Adult Services","Third Party Payments","Other establishments","22-Apr-21","6502174","35.52","SUPPLIER","B S CARE LTD","300000015963853"
"Portsmouth City Council","PCC","Adult Social Care","Physical Support Older People (85+)","Adult Services","Third Party Payments","Other establishments","22-Apr-21","6502174","35.52","SUPPLIER","B S CARE LTD","300000015963853"
"Portsmouth City Council","PCC","Adult Social Care","Physical Support Older People (85+)","Adult Services","Third Party Payments","Other establishments","22-Apr-21","6502174","35.52","SUPPLIER","B S CARE LTD","300000015963853"
"Portsmouth City Council","PCC","Adult Social Care","Physical Support Older People (85+)","Adult Services","Third Party Payments","Other establishments","22-Apr-21","6502174","35.52","SUPPLIER","B S CARE LTD","300000015963853"
"Portsmouth City Council","PCC","Adult Social Care","Physical Support Older People (85+)","Adult Services","Third Party Payments","Other establishments","22-Apr-21","6502174","35.52","SUPPLIER","B S CARE LTD","300000015963853"
"Portsmouth City Council","PCC","Adult Social Care","Physical Support Older People (85+)","Adult Services","Third Party Payments","Other establishments","22-Apr-21","6502174","35.52","SUPPLIER","B S CARE LTD","300000015963853"
"Portsmouth City Council","PCC","Adult Social Care","Physical Support Older People (85+)","Adult Services","Third Party Payments","Other establishments","22-Apr-21","6502174","35.52","SUPPLIER","B S CARE LTD","300000015963853"
"Portsmouth City Council","PCC","Adult Social Care","Physical Support Older People (85+)","Adult Services","Third Party Payments","Other establishments","22-Apr-21","6502174","35.52","SUPPLIER","B S CARE LTD","300000015963853"
"Portsmouth City Council","PCC","Adult Social Care","Physical Support Older People (85+)","Adult Services","Third Party Payments","Other establishments","22-Apr-21","6502174","35.52","SUPPLIER","B S CARE LTD","300000015963853"
"Portsmouth City Council","PCC","Adult Social Care","Physical Support Older People (85+)","Adult Services","Third Party Payments","Other establishments","22-Apr-21","6502174","38.06","SUPPLIER","B S CARE LTD","300000015963853"
"Portsmouth City Council","PCC","Adult Social Care","Social Care Activities","Adult Services","Third Party Payments","Other establishments","22-Apr-21","6502174","39.15","SUPPLIER","B S CARE LTD","300000015963853"
"Portsmouth City Council","PCC","Adult Social Care","Physical Support Older People (85+)","Adult Services","Third Party Payments","Other establishments","22-Apr-21","6502174","42.26","SUPPLIER","B S CARE LTD","300000015963853"
"Portsmouth City Council","PCC","Adult Social Care","Physical Support Older People (85+)","Adult Services","Third Party Payments","Other establishments","22-Apr-21","6502174","43.13","SUPPLIER","B S CARE LTD","300000015963853"
"Portsmouth City Council","PCC","Adult Social Care","Physical Support Older People (85+)","Adult Services","Third Party Payments","Other establishments","22-Apr-21","6502174","87","SUPPLIER","B S CARE LTD","300000015963853"
"Portsmouth City Council","PCC","Adult Social Care","Social Support - Support for Carer","Adult Services","Third Party Payments","Other establishments","22-Apr-21","6502174","48.02","SUPPLIER","B S CARE LTD","300000015963853"
"Portsmouth City Council","PCC","Adult Social Care","Physical Support Older People (85+)","Adult Services","Third Party Payments","Other establishments","22-Apr-21","6502174","49.71","SUPPLIER","B S CARE LTD","300000015963853"
"Portsmouth City Council","PCC","Adult Social Care","Physical Support Adults (18 - 64)","Adult Services","Third Party Payments","Other establishments","22-Apr-21","6502174","53.28","SUPPLIER","B S CARE LTD","300000015963853"
"Portsmouth City Council","PCC","Adult Social Care","Physical Support Older People (85+)","Adult Services","Third Party Payments","Other establishments","22-Apr-21","6502174","55.82","SUPPLIER","B S CARE LTD","300000015963853"
"Portsmouth City Council","PCC","Adult Social Care","Physical Support Older People (85+)","Adult Services","Third Party Payments","Other establishments","22-Apr-21","6502174","69.6","SUPPLIER","B S CARE LTD","300000015963853"
"Portsmouth City Council","PCC","Adult Social Care","Physical Support Older People (85+)","Adult Services","Third Party Payments","Other establishments","22-Apr-21","6502174","69.6","SUPPLIER","B S CARE LTD","300000015963853"
"Portsmouth City Council","PCC","Adult Social Care","Physical Support Adults (18 - 64)","Adult Services","Third Party Payments","Other establishments","22-Apr-21","6502174","71.04","SUPPLIER","B S CARE LTD","300000015963853"
"Portsmouth City Council","PCC","Adult Social Care","Physical Support Adults (18 - 64)","Adult Services","Third Party Payments","Other establishments","22-Apr-21","6502174","71.04","SUPPLIER","B S CARE LTD","300000015963853"
"Portsmouth City Council","PCC","Adult Social Care","Physical Support Older People (85+)","Adult Services","Third Party Payments","Other establishments","22-Apr-21","6502174","71.04","SUPPLIER","B S CARE LTD","300000015963853"
"Portsmouth City Council","PCC","Adult Social Care","Physical Support Older People (85+)","Adult Services","Third Party Payments","Other establishments","22-Apr-21","6502174","71.04","SUPPLIER","B S CARE LTD","300000015963853"
"Portsmouth City Council","PCC","Adult Social Care","Physical Support Older People (85+)","Adult Services","Third Party Payments","Other establishments","22-Apr-21","6502174","71.04","SUPPLIER","B S CARE LTD","300000015963853"
"Portsmouth City Council","PCC","Adult Social Care","Physical Support Older People (85+)","Adult Services","Third Party Payments","Other establishments","22-Apr-21","6502174","71.04","SUPPLIER","B S CARE LTD","300000015963853"
"Portsmouth City Council","PCC","Adult Social Care","Physical Support Older People (85+)","Adult Services","Third Party Payments","Other establishments","22-Apr-21","6502174","71.04","SUPPLIER","B S CARE LTD","300000015963853"
"Portsmouth City Council","PCC","Adult Social Care","Physical Support Older People (85+)","Adult Services","Third Party Payments","Other establishments","22-Apr-21","6502174","71.04","SUPPLIER","B S CARE LTD","300000015963853"
"Portsmouth City Council","PCC","Adult Social Care","Physical Support Older People (85+)","Adult Services","Third Party Payments","Other establishments","22-Apr-21","6502174","71.04","SUPPLIER","B S CARE LTD","300000015963853"
"Portsmouth City Council","PCC","Adult Social Care","Physical Support Older People (85+)","Adult Services","Third Party Payments","Other establishments","22-Apr-21","6502174","71.04","SUPPLIER","B S CARE LTD","300000015963853"
"Portsmouth City Council","PCC","Adult Social Care","Physical Support Older People (85+)","Adult Services","Third Party Payments","Other establishments","22-Apr-21","6502174","71.04","SUPPLIER","B S CARE LTD","300000015963853"
"Portsmouth City Council","PCC","Adult Social Care","Physical Support Older People (85+)","Adult Services","Third Party Payments","Other establishments","22-Apr-21","6502174","73.58","SUPPLIER","B S CARE LTD","300000015963853"
"Portsmouth City Council","PCC","Adult Social Care","Physical Support Older People (85+)","Adult Services","Third Party Payments","Other establishments","22-Apr-21","6502174","78.3","SUPPLIER","B S CARE LTD","300000015963853"
"Portsmouth City Council","PCC","Adult Social Care","Mental Health Support Older People (65 - 74)","Adult Services","Third Party Payments","Other establishments","22-Apr-21","6502174","81.19","SUPPLIER","B S CARE LTD","300000015963853"
"Portsmouth City Council","PCC","Adult Social Care","Physical Support Older People (85+)","Adult Services","Third Party Payments","Other establishments","22-Apr-21","6502174","86.26","SUPPLIER","B S CARE LTD","300000015963853"
"Portsmouth City Council","PCC","Adult Social Care","Physical Support Older People (85+)","Adult Services","Third Party Payments","Other establishments","22-Apr-21","6502174","88.8","SUPPLIER","B S CARE LTD","300000015963853"
"Portsmouth City Council","PCC","Adult Social Care","Physical Support Older People (85+)","Adult Services","Third Party Payments","Other establishments","22-Apr-21","6502174","88.8","SUPPLIER","B S CARE LTD","300000015963853"
"Portsmouth City Council","PCC","Adult Social Care","Physical Support Older People (85+)","Adult Services","Third Party Payments","Other establishments","22-Apr-21","6502174","88.8","SUPPLIER","B S CARE LTD","300000015963853"
"Portsmouth City Council","PCC","Adult Social Care","Physical Support Older People (85+)","Adult Services","Third Party Payments","Other establishments","22-Apr-21","6502174","88.8","SUPPLIER","B S CARE LTD","300000015963853"
"Portsmouth City Council","PCC","Adult Social Care","Physical Support Older People (85+)","Adult Services","Third Party Payments","Other establishments","22-Apr-21","6502174","88.8","SUPPLIER","B S CARE LTD","300000015963853"
"Portsmouth City Council","PCC","Adult Social Care","Physical Support Adults (18 - 64)","Adult Services","Third Party Payments","Other establishments","22-Apr-21","6502174","89.49","SUPPLIER","B S CARE LTD","300000015963853"
"Portsmouth City Council","PCC","Adult Social Care","Physical Support Older People (85+)","Adult Services","Third Party Payments","Other establishments","22-Apr-21","6502174","89.49","SUPPLIER","B S CARE LTD","300000015963853"
"Portsmouth City Council","PCC","Adult Social Care","Physical Support Older People (85+)","Adult Services","Third Party Payments","Other establishments","22-Apr-21","6502174","91.34","SUPPLIER","B S CARE LTD","300000015963853"
"Portsmouth City Council","PCC","Adult Social Care","Physical Support Older People (85+)","Adult Services","Third Party Payments","Other establishments","22-Apr-21","6502174","93.87","SUPPLIER","B S CARE LTD","300000015963853"
"Portsmouth City Council","PCC","Adult Social Care","Social Care Activities","Adult Services","Third Party Payments","Other establishments","22-Apr-21","6502174","102.58","SUPPLIER","B S CARE LTD","300000015963853"
"Portsmouth City Council","PCC","Adult Social Care","Social Support - Support for Carer","Adult Services","Third Party Payments","Other establishments","22-Apr-21","6502174","102.58","SUPPLIER","B S CARE LTD","300000015963853"
"Portsmouth City Council","PCC","Adult Social Care","Physical Support Older People (85+)","Adult Services","Third Party Payments","Other establishments","22-Apr-21","6502174","104.02","SUPPLIER","B S CARE LTD","300000015963853"
"Portsmouth City Council","PCC","Adult Social Care","Physical Support Adults (18 - 64)","Adult Services","Third Party Payments","Other establishments","22-Apr-21","6502174","106.56","SUPPLIER","B S CARE LTD","300000015963853"
"Portsmouth City Council","PCC","Adult Social Care","Physical Support Adults (18 - 64)","Adult Services","Third Party Payments","Other establishments","22-Apr-21","6502174","106.56","SUPPLIER","B S CARE LTD","300000015963853"
"Portsmouth City Council","PCC","Adult Social Care","Physical Support Older People (85+)","Adult Services","Third Party Payments","Other establishments","22-Apr-21","6502174","106.56","SUPPLIER","B S CARE LTD","300000015963853"
"Portsmouth City Council","PCC","Adult Social Care","Physical Support Older People (85+)","Adult Services","Third Party Payments","Other establishments","22-Apr-21","6502174","106.56","SUPPLIER","B S CARE LTD","300000015963853"
"Portsmouth City Council","PCC","Adult Social Care","Physical Support Older People (85+)","Adult Services","Third Party Payments","Other establishments","22-Apr-21","6502174","106.56","SUPPLIER","B S CARE LTD","300000015963853"
"Portsmouth City Council","PCC","Adult Social Care","Physical Support Adults (18 - 64)","Adult Services","Third Party Payments","Other establishments","22-Apr-21","6502174","106.89","SUPPLIER","B S CARE LTD","300000015963853"
"Portsmouth City Council","PCC","Adult Social Care","Physical Support Adults (18 - 64)","Adult Services","Third Party Payments","Other establishments","22-Apr-21","6502174","109.1","SUPPLIER","B S CARE LTD","300000015963853"
"Portsmouth City Council","PCC","Adult Social Care","Physical Support Adults (18 - 64)","Adult Services","Third Party Payments","Other establishments","22-Apr-21","6502174","109.1","SUPPLIER","B S CARE LTD","300000015963853"
"Portsmouth City Council","PCC","Adult Social Care","Physical Support Older People (85+)","Adult Services","Third Party Payments","Other establishments","22-Apr-21","6502174","109.1","SUPPLIER","B S CARE LTD","300000015963853"
"Portsmouth City Council","PCC","Adult Social Care","Physical Support Older People (85+)","Adult Services","Third Party Payments","Other establishments","22-Apr-21","6502174","109.1","SUPPLIER","B S CARE LTD","300000015963853"
"Portsmouth City Council","PCC","Adult Social Care","Physical Support Older People (85+)","Adult Services","Third Party Payments","Other establishments","22-Apr-21","6502174","109.1","SUPPLIER","B S CARE LTD","300000015963853"
"Portsmouth City Council","PCC","Adult Social Care","Physical Support Older People (85+)","Adult Services","Third Party Payments","Other establishments","22-Apr-21","6502174","109.1","SUPPLIER","B S CARE LTD","300000015963853"
"Portsmouth City Council","PCC","Adult Social Care","Physical Support Older People (85+)","Adult Services","Third Party Payments","Other establishments","22-Apr-21","6502174","119.31","SUPPLIER","B S CARE LTD","300000015963853"
"Portsmouth City Council","PCC","Adult Social Care","Social Care Activities","Adult Services","Third Party Payments","Other establishments","22-Apr-21","6502174","122.24","SUPPLIER","B S CARE LTD","300000015963853"
"Portsmouth City Council","PCC","Adult Social Care","Physical Support Older People (85+)","Adult Services","Third Party Payments","Other establishments","22-Apr-21","6502174","124.32","SUPPLIER","B S CARE LTD","300000015963853"
"Portsmouth City Council","PCC","Adult Social Care","Physical Support Older People (85+)","Adult Services","Third Party Payments","Other establishments","22-Apr-21","6502174","261","SUPPLIER","B S CARE LTD","300000015963853"
"Portsmouth City Council","PCC","Adult Social Care","Physical Support Older People (85+)","Adult Services","Third Party Payments","Other establishments","22-Apr-21","6502174","134.23","SUPPLIER","B S CARE LTD","300000015963853"
"Portsmouth City Council","PCC","Adult Social Care","Physical Support Older People (85+)","Adult Services","Third Party Payments","Other establishments","22-Apr-21","6502174","134.23","SUPPLIER","B S CARE LTD","300000015963853"
"Portsmouth City Council","PCC","Adult Social Care","Physical Support Older People (85+)","Adult Services","Third Party Payments","Other establishments","22-Apr-21","6502174","139.2","SUPPLIER","B S CARE LTD","300000015963853"
"Portsmouth City Council","PCC","Adult Social Care","Physical Support Older People (85+)","Adult Services","Third Party Payments","Other establishments","22-Apr-21","6502174","139.2","SUPPLIER","B S CARE LTD","300000015963853"
"Portsmouth City Council","PCC","Adult Social Care","Physical Support Older People (85+)","Adult Services","Third Party Payments","Other establishments","22-Apr-21","6502174","140.44","SUPPLIER","B S CARE LTD","300000015963853"
"Portsmouth City Council","PCC","Adult Social Care","Physical Support Older People (85+)","Adult Services","Third Party Payments","Other establishments","22-Apr-21","6502174","147.9","SUPPLIER","B S CARE LTD","300000015963853"
"Portsmouth City Council","PCC","Adult Social Care","Mental Health Support Older People (65 - 74)","Adult Services","Third Party Payments","Other establishments","22-Apr-21","6502174","149.14","SUPPLIER","B S CARE LTD","300000015963853"
"Portsmouth City Council","PCC","Adult Social Care","Physical Support Older People (85+)","Adult Services","Third Party Payments","Other establishments","22-Apr-21","6502174","149.14","SUPPLIER","B S CARE LTD","300000015963853"
"Portsmouth City Council","PCC","Adult Social Care","Physical Support Older People (85+)","Adult Services","Third Party Payments","Other establishments","22-Apr-21","6502174","156.6","SUPPLIER","B S CARE LTD","300000015963853"
"Portsmouth City Council","PCC","Adult Social Care","Physical Support Older People (85+)","Adult Services","Third Party Payments","Other establishments","22-Apr-21","6502174","158.46","SUPPLIER","B S CARE LTD","300000015963853"
"Portsmouth City Council","PCC","Adult Social Care","Social Care Activities","Adult Services","Third Party Payments","Other establishments","22-Apr-21","6502174","159.84","SUPPLIER","B S CARE LTD","300000015963853"
"Portsmouth City Council","PCC","Adult Social Care","Social Care Activities","Adult Services","Third Party Payments","Other establishments","22-Apr-21","6502174","159.84","SUPPLIER","B S CARE LTD","300000015963853"
"Portsmouth City Council","PCC","Adult Social Care","Social Care Activities","Adult Services","Third Party Payments","Other establishments","22-Apr-21","6502174","159.84","SUPPLIER","B S CARE LTD","300000015963853"
"Portsmouth City Council","PCC","Adult Social Care","Physical Support Older People (85+)","Adult Services","Third Party Payments","Other establishments","22-Apr-21","6502174","159.84","SUPPLIER","B S CARE LTD","300000015963853"
"Portsmouth City Council","PCC","Adult Social Care","Physical Support Older People (85+)","Adult Services","Third Party Payments","Other establishments","22-Apr-21","6502174","159.84","SUPPLIER","B S CARE LTD","300000015963853"
"Portsmouth City Council","PCC","Adult Social Care","Physical Support Older People (85+)","Adult Services","Third Party Payments","Other establishments","22-Apr-21","6502174","159.84","SUPPLIER","B S CARE LTD","300000015963853"
"Portsmouth City Council","PCC","Adult Social Care","Physical Support Older People (85+)","Adult Services","Third Party Payments","Other establishments","22-Apr-21","6502174","159.84","SUPPLIER","B S CARE LTD","300000015963853"
"Portsmouth City Council","PCC","Adult Social Care","Physical Support Older People (85+)","Adult Services","Third Party Payments","Other establishments","22-Apr-21","6502174","159.84","SUPPLIER","B S CARE LTD","300000015963853"
"Portsmouth City Council","PCC","Adult Social Care","Physical Support Older People (85+)","Adult Services","Third Party Payments","Other establishments","22-Apr-21","6502174","159.84","SUPPLIER","B S CARE LTD","300000015963853"
"Portsmouth City Council","PCC","Adult Social Care","Physical Support Older People (85+)","Adult Services","Third Party Payments","Other establishments","22-Apr-21","6502174","159.84","SUPPLIER","B S CARE LTD","300000015963853"
"Portsmouth City Council","PCC","Adult Social Care","Physical Support Older People (85+)","Adult Services","Third Party Payments","Other establishments","22-Apr-21","6502174","159.84","SUPPLIER","B S CARE LTD","300000015963853"
"Portsmouth City Council","PCC","Adult Social Care","Physical Support Older People (85+)","Adult Services","Third Party Payments","Other establishments","22-Apr-21","6502174","159.84","SUPPLIER","B S CARE LTD","300000015963853"
"Portsmouth City Council","PCC","Adult Social Care","Physical Support Older People (85+)","Adult Services","Third Party Payments","Other establishments","22-Apr-21","6502174","159.84","SUPPLIER","B S CARE LTD","300000015963853"
"Portsmouth City Council","PCC","Adult Social Care","Physical Support Older People (85+)","Adult Services","Third Party Payments","Other establishments","22-Apr-21","6502174","159.84","SUPPLIER","B S CARE LTD","300000015963853"
"Portsmouth City Council","PCC","Adult Social Care","Physical Support Older People (85+)","Adult Services","Third Party Payments","Other establishments","22-Apr-21","6502174","159.84","SUPPLIER","B S CARE LTD","300000015963853"
"Portsmouth City Council","PCC","Adult Social Care","Physical Support Older People (85+)","Adult Services","Third Party Payments","Other establishments","22-Apr-21","6502174","159.84","SUPPLIER","B S CARE LTD","300000015963853"
"Portsmouth City Council","PCC","Adult Social Care","Physical Support Older People (85+)","Adult Services","Third Party Payments","Other establishments","22-Apr-21","6502174","165.3","SUPPLIER","B S CARE LTD","300000015963853"
"Portsmouth City Council","PCC","Adult Social Care","Physical Support Older People (85+)","Adult Services","Third Party Payments","Other establishments","22-Apr-21","6502174","165.3","SUPPLIER","B S CARE LTD","300000015963853"
"Portsmouth City Council","PCC","Adult Social Care","Social Care Activities","Adult Services","Third Party Payments","Other establishments","22-Apr-21","6502174","174","SUPPLIER","B S CARE LTD","300000015963853"
"Portsmouth City Council","PCC","Adult Social Care","Physical Support Older People (85+)","Adult Services","Third Party Payments","Other establishments","22-Apr-21","6502174","177.6","SUPPLIER","B S CARE LTD","300000015963853"
"Portsmouth City Council","PCC","Adult Social Care","Physical Support Older People (85+)","Adult Services","Third Party Payments","Other establishments","22-Apr-21","6502174","177.6","SUPPLIER","B S CARE LTD","300000015963853"
"Portsmouth City Council","PCC","Adult Social Care","Physical Support Older People (85+)","Adult Services","Third Party Payments","Other establishments","22-Apr-21","6502174","180.14","SUPPLIER","B S CARE LTD","300000015963853"
"Portsmouth City Council","PCC","Adult Social Care","Physical Support Older People (85+)","Adult Services","Third Party Payments","Other establishments","22-Apr-21","6502174","197.61","SUPPLIER","B S CARE LTD","300000015963853"
"Portsmouth City Council","PCC","Adult Social Care","Physical Support Older People (85+)","Adult Services","Third Party Payments","Other establishments","22-Apr-21","6502174","208.8","SUPPLIER","B S CARE LTD","300000015963853"
"Portsmouth City Council","PCC","Adult Social Care","Physical Support Older People (85+)","Adult Services","Third Party Payments","Other establishments","22-Apr-21","6502174","208.8","SUPPLIER","B S CARE LTD","300000015963853"
"Portsmouth City Council","PCC","Adult Social Care","Physical Support Older People (85+)","Adult Services","Third Party Payments","Other establishments","22-Apr-21","6502174","208.8","SUPPLIER","B S CARE LTD","300000015963853"
"Portsmouth City Council","PCC","Adult Social Care","Physical Support Older People (85+)","Adult Services","Third Party Payments","Other establishments","22-Apr-21","6502174","208.8","SUPPLIER","B S CARE LTD","300000015963853"
"Portsmouth City Council","PCC","Adult Social Care","Physical Support Older People (85+)","Adult Services","Third Party Payments","Other establishments","22-Apr-21","6502174","208.8","SUPPLIER","B S CARE LTD","300000015963853"
"Portsmouth City Council","PCC","Adult Social Care","Physical Support Older People (85+)","Adult Services","Third Party Payments","Other establishments","22-Apr-21","6502174","208.8","SUPPLIER","B S CARE LTD","300000015963853"
"Portsmouth City Council","PCC","Adult Social Care","Physical Support Older People (85+)","Adult Services","Third Party Payments","Other establishments","22-Apr-21","6502174","208.8","SUPPLIER","B S CARE LTD","300000015963853"
"Portsmouth City Council","PCC","Adult Social Care","Physical Support Older People (85+)","Adult Services","Third Party Payments","Other establishments","22-Apr-21","6502174","210.66","SUPPLIER","B S CARE LTD","300000015963853"
"Portsmouth City Council","PCC","Adult Social Care","Physical Support Older People (85+)","Adult Services","Third Party Payments","Other establishments","22-Apr-21","6502174","211.29","SUPPLIER","B S CARE LTD","300000015963853"
"Portsmouth City Council","PCC","Adult Social Care","Physical Support Adults (18 - 64)","Adult Services","Third Party Payments","Other establishments","22-Apr-21","6502174","221.85","SUPPLIER","B S CARE LTD","300000015963853"
"Portsmouth City Council","PCC","Adult Social Care","Physical Support Adults (18 - 64)","Adult Services","Third Party Payments","Other establishments","22-Apr-21","6502174","221.85","SUPPLIER","B S CARE LTD","300000015963853"
"Portsmouth City Council","PCC","Adult Social Care","Physical Support Older People (85+)","Adult Services","Third Party Payments","Other establishments","22-Apr-21","6502174","247.95","SUPPLIER","B S CARE LTD","300000015963853"
"Portsmouth City Council","PCC","Adult Social Care","Physical Support Older People (85+)","Adult Services","Third Party Payments","Other establishments","22-Apr-21","6502174","249.19","SUPPLIER","B S CARE LTD","300000015963853"
"Portsmouth City Council","PCC","Adult Social Care","Physical Support Older People (85+)","Adult Services","Third Party Payments","Other establishments","22-Apr-21","6502174","256.65","SUPPLIER","B S CARE LTD","300000015963853"
"Portsmouth City Council","PCC","Adult Social Care","Social Support - Support for Carer","Adult Services","Third Party Payments","Other establishments","22-Apr-21","6502174","282.1","SUPPLIER","B S CARE LTD","300000015963853"
"Portsmouth City Council","PCC","Adult Social Care","Physical Support Older People (85+)","Adult Services","Third Party Payments","Other establishments","22-Apr-21","6502174","287.1","SUPPLIER","B S CARE LTD","300000015963853"
"Portsmouth City Council","PCC","Adult Social Care","Social Support - Support for Carer","Adult Services","Third Party Payments","Other establishments","22-Apr-21","6502174","294.93","SUPPLIER","B S CARE LTD","300000015963853"
"Portsmouth City Council","PCC","Adult Social Care","Physical Support Adults (18 - 64)","Adult Services","Third Party Payments","Other establishments","22-Apr-21","6502174","313.2","SUPPLIER","B S CARE LTD","300000015963853"
"Portsmouth City Council","PCC","Adult Social Care","Physical Support Older People (85+)","Adult Services","Third Party Payments","Other establishments","22-Apr-21","6502174","319.41","SUPPLIER","B S CARE LTD","300000015963853"
"Portsmouth City Council","PCC","Adult Social Care","Physical Support Older People (85+)","Adult Services","Third Party Payments","Other establishments","22-Apr-21","6502174","352.35","SUPPLIER","B S CARE LTD","300000015963853"
"Portsmouth City Council","PCC","Adult Social Care","Physical Support Older People (85+)","Adult Services","Third Party Payments","Other establishments","22-Apr-21","6502174","352.35","SUPPLIER","B S CARE LTD","300000015963853"
"Portsmouth City Council","PCC","Adult Social Care","Physical Support Older People (85+)","Adult Services","Third Party Payments","Other establishments","22-Apr-21","6502174","400.2","SUPPLIER","B S CARE LTD","300000015963853"
"Portsmouth City Council","PCC","Adult Social Care","Social Care Activities","Adult Services","Third Party Payments","Other establishments","22-Apr-21","6502174","413.87","SUPPLIER","B S CARE LTD","300000015963853"
"Portsmouth City Council","PCC","Adult Social Care","Physical Support Adults (18 - 64)","Adult Services","Third Party Payments","Other establishments","22-Apr-21","6502174","417.6","SUPPLIER","B S CARE LTD","300000015963853"
"Portsmouth City Council","PCC","Adult Social Care","Physical Support Older People (85+)","Adult Services","Third Party Payments","Other establishments","22-Apr-21","6502174","417.6","SUPPLIER","B S CARE LTD","300000015963853"
"Portsmouth City Council","PCC","Adult Social Care","Physical Support Older People (85+)","Adult Services","Third Party Payments","Other establishments","22-Apr-21","6502174","417.6","SUPPLIER","B S CARE LTD","300000015963853"
"Portsmouth City Council","PCC","Adult Social Care","Physical Support Older People (85+)","Adult Services","Third Party Payments","Other establishments","22-Apr-21","6502174","417.6","SUPPLIER","B S CARE LTD","300000015963853"
"Portsmouth City Council","PCC","Adult Social Care","Physical Support Older People (85+)","Adult Services","Third Party Payments","Other establishments","22-Apr-21","6502174","417.6","SUPPLIER","B S CARE LTD","300000015963853"
"Portsmouth City Council","PCC","Adult Social Care","Physical Support Older People (85+)","Adult Services","Third Party Payments","Other establishments","22-Apr-21","6502174","417.6","SUPPLIER","B S CARE LTD","300000015963853"
"Portsmouth City Council","PCC","Adult Social Care","Physical Support Older People (85+)","Adult Services","Third Party Payments","Other establishments","22-Apr-21","6502174","417.6","SUPPLIER","B S CARE LTD","300000015963853"
"Portsmouth City Council","PCC","Adult Social Care","Physical Support Older People (85+)","Adult Services","Third Party Payments","Other establishments","22-Apr-21","6502174","417.6","SUPPLIER","B S CARE LTD","300000015963853"
"Portsmouth City Council","PCC","Adult Social Care","Physical Support Older People (85+)","Adult Services","Third Party Payments","Other establishments","22-Apr-21","6502174","417.6","SUPPLIER","B S CARE LTD","300000015963853"
"Portsmouth City Council","PCC","Adult Social Care","Physical Support Older People (85+)","Adult Services","Third Party Payments","Other establishments","22-Apr-21","6502174","417.6","SUPPLIER","B S CARE LTD","300000015963853"
"Portsmouth City Council","PCC","Adult Social Care","Physical Support Older People (85+)","Adult Services","Third Party Payments","Other establishments","22-Apr-21","6502174","432.51","SUPPLIER","B S CARE LTD","300000015963853"
"Portsmouth City Council","PCC","Adult Social Care","Physical Support Older People (85+)","Adult Services","Third Party Payments","Other establishments","22-Apr-21","6502174","435","SUPPLIER","B S CARE LTD","300000015963853"
"Portsmouth City Council","PCC","Adult Social Care","Physical Support Adults (18 - 64)","Adult Services","Third Party Payments","Other establishments","22-Apr-21","6502174","443.7","SUPPLIER","B S CARE LTD","300000015963853"
"Portsmouth City Council","PCC","Adult Social Care","Physical Support Older People (85+)","Adult Services","Third Party Payments","Other establishments","22-Apr-21","6502174","469.8","SUPPLIER","B S CARE LTD","300000015963853"
"Portsmouth City Council","PCC","Adult Social Care","Physical Support Older People (85+)","Adult Services","Third Party Payments","Other establishments","22-Apr-21","6502174","485.03","SUPPLIER","B S CARE LTD","300000015963853"
"Portsmouth City Council","PCC","Adult Social Care","Physical Support Older People (85+)","Adult Services","Third Party Payments","Other establishments","22-Apr-21","6502174","507.09","SUPPLIER","B S CARE LTD","300000015963853"
"Portsmouth City Council","PCC","Adult Social Care","Mental Health Support Older People (65 - 74)","Adult Services","Third Party Payments","Other establishments","22-Apr-21","6502174","512.06","SUPPLIER","B S CARE LTD","300000015963853"
"Portsmouth City Council","PCC","Adult Social Care","Physical Support Older People (85+)","Adult Services","Third Party Payments","Other establishments","22-Apr-21","6502174","522","SUPPLIER","B S CARE LTD","300000015963853"
"Portsmouth City Council","PCC","Adult Social Care","Physical Support Older People (85+)","Adult Services","Third Party Payments","Other establishments","22-Apr-21","6502174","522","SUPPLIER","B S CARE LTD","300000015963853"
"Portsmouth City Council","PCC","Adult Social Care","Physical Support Older People (85+)","Adult Services","Third Party Payments","Other establishments","22-Apr-21","6502174","522","SUPPLIER","B S CARE LTD","300000015963853"
"Portsmouth City Council","PCC","Adult Social Care","Physical Support Older People (85+)","Adult Services","Third Party Payments","Other establishments","22-Apr-21","6502174","522","SUPPLIER","B S CARE LTD","300000015963853"
"Portsmouth City Council","PCC","Adult Social Care","Physical Support Older People (85+)","Adult Services","Third Party Payments","Other establishments","22-Apr-21","6502174","522","SUPPLIER","B S CARE LTD","300000015963853"
"Portsmouth City Council","PCC","Adult Social Care","Physical Support Older People (85+)","Adult Services","Third Party Payments","Other establishments","22-Apr-21","6502174","541.26","SUPPLIER","B S CARE LTD","300000015963853"
"Portsmouth City Council","PCC","Adult Social Care","Physical Support Older People (85+)","Adult Services","Third Party Payments","Other establishments","22-Apr-21","6502174","548.1","SUPPLIER","B S CARE LTD","300000015963853"
"Portsmouth City Council","PCC","Adult Social Care","Physical Support Older People (85+)","Adult Services","Third Party Payments","Other establishments","22-Apr-21","6502174","551.83","SUPPLIER","B S CARE LTD","300000015963853"
"Portsmouth City Council","PCC","Adult Social Care","Physical Support Older People (85+)","Adult Services","Third Party Payments","Other establishments","22-Apr-21","6502174","556.8","SUPPLIER","B S CARE LTD","300000015963853"
"Portsmouth City Council","PCC","Adult Social Care","Social Care Activities","Adult Services","Third Party Payments","Other establishments","22-Apr-21","6502174","563.25","SUPPLIER","B S CARE LTD","300000015963853"
"Portsmouth City Council","PCC","Adult Social Care","Physical Support Older People (85+)","Adult Services","Third Party Payments","Other establishments","22-Apr-21","6502174","611.49","SUPPLIER","B S CARE LTD","300000015963853"
"Portsmouth City Council","PCC","Adult Social Care","Physical Support Adults (18 - 64)","Adult Services","Third Party Payments","Other establishments","22-Apr-21","6502174","626.4","SUPPLIER","B S CARE LTD","300000015963853"
"Portsmouth City Council","PCC","Adult Social Care","Physical Support Adults (18 - 64)","Adult Services","Third Party Payments","Other establishments","22-Apr-21","6502174","626.4","SUPPLIER","B S CARE LTD","300000015963853"
"Portsmouth City Council","PCC","Adult Social Care","Physical Support Older People (85+)","Adult Services","Third Party Payments","Other establishments","22-Apr-21","6502174","626.4","SUPPLIER","B S CARE LTD","300000015963853"
"Portsmouth City Council","PCC","Adult Social Care","Physical Support Older People (85+)","Adult Services","Third Party Payments","Other establishments","22-Apr-21","6502174","626.4","SUPPLIER","B S CARE LTD","300000015963853"
"Portsmouth City Council","PCC","Adult Social Care","Physical Support Older People (85+)","Adult Services","Third Party Payments","Other establishments","22-Apr-21","6502174","628.26","SUPPLIER","B S CARE LTD","300000015963853"
"Portsmouth City Council","PCC","Adult Social Care","Physical Support Older People (85+)","Adult Services","Third Party Payments","Other establishments","22-Apr-21","6502174","632.61","SUPPLIER","B S CARE LTD","300000015963853"
"Portsmouth City Council","PCC","Adult Social Care","Physical Support Adults (18 - 64)","Adult Services","Third Party Payments","Other establishments","22-Apr-21","6502174","641.31","SUPPLIER","B S CARE LTD","300000015963853"
"Portsmouth City Council","PCC","Adult Social Care","Physical Support Adults (18 - 64)","Adult Services","Third Party Payments","Other establishments","22-Apr-21","6502174","641.31","SUPPLIER","B S CARE LTD","300000015963853"
"Portsmouth City Council","PCC","Adult Social Care","Social Care Activities","Adult Services","Third Party Payments","Other establishments","22-Apr-21","6502174","718.08","SUPPLIER","B S CARE LTD","300000015963853"
"Portsmouth City Council","PCC","Adult Social Care","Physical Support Older People (85+)","Adult Services","Third Party Payments","Other establishments","22-Apr-21","6502174","730.8","SUPPLIER","B S CARE LTD","300000015963853"
"Portsmouth City Council","PCC","Adult Social Care","Social Care Activities","Adult Services","Third Party Payments","Other establishments","22-Apr-21","6502174","935.25","SUPPLIER","B S CARE LTD","300000015963853"
"Portsmouth City Council","PCC","Adult Social Care","Social Care Activities","Adult Services","Third Party Payments","Other establishments","22-Apr-21","6502174","935.25","SUPPLIER","B S CARE LTD","300000015963853"
"Portsmouth City Council","PCC","Adult Social Care","Physical Support Older People (85+)","Adult Services","Third Party Payments","Other establishments","22-Apr-21","6502174","935.25","SUPPLIER","B S CARE LTD","300000015963853"
"Portsmouth City Council","PCC","Adult Social Care","Social Care Activities","Adult Services","Third Party Payments","Other establishments","22-Apr-21","6502174","939.6","SUPPLIER","B S CARE LTD","300000015963853"
"Portsmouth City Council","PCC","Adult Social Care","Physical Support Older People (85+)","Adult Services","Third Party Payments","Other establishments","22-Apr-21","6502174","939.6","SUPPLIER","B S CARE LTD","300000015963853"
"Portsmouth City Council","PCC","Adult Social Care","Physical Support Older People (85+)","Adult Services","Third Party Payments","Other establishments","22-Apr-21","6502174","939.6","SUPPLIER","B S CARE LTD","300000015963853"
"Portsmouth City Council","PCC","Adult Social Care","Physical Support Older People (85+)","Adult Services","Third Party Payments","Other establishments","22-Apr-21","6502174","939.6","SUPPLIER","B S CARE LTD","300000015963853"
"Portsmouth City Council","PCC","Adult Social Care","Physical Support Older People (85+)","Adult Services","Third Party Payments","Other establishments","22-Apr-21","6502174","939.6","SUPPLIER","B S CARE LTD","300000015963853"
"Portsmouth City Council","PCC","Adult Social Care","Physical Support Older People (85+)","Adult Services","Third Party Payments","Other establishments","22-Apr-21","6502174","939.6","SUPPLIER","B S CARE LTD","300000015963853"
"Portsmouth City Council","PCC","Adult Social Care","Physical Support Older People (85+)","Adult Services","Third Party Payments","Other establishments","22-Apr-21","6502174","939.6","SUPPLIER","B S CARE LTD","300000015963853"
"Portsmouth City Council","PCC","Adult Social Care","Physical Support Older People (85+)","Adult Services","Third Party Payments","Other establishments","22-Apr-21","6502174","939.6","SUPPLIER","B S CARE LTD","300000015963853"
"Portsmouth City Council","PCC","Adult Social Care","Physical Support Older People (85+)","Adult Services","Third Party Payments","Other establishments","22-Apr-21","6502174","939.6","SUPPLIER","B S CARE LTD","300000015963853"
"Portsmouth City Council","PCC","Adult Social Care","Physical Support Older People (85+)","Adult Services","Third Party Payments","Other establishments","22-Apr-21","6502174","939.6","SUPPLIER","B S CARE LTD","300000015963853"
"Portsmouth City Council","PCC","Adult Social Care","Physical Support Older People (85+)","Adult Services","Third Party Payments","Other establishments","22-Apr-21","6502174","943.95","SUPPLIER","B S CARE LTD","300000015963853"
"Portsmouth City Council","PCC","Adult Social Care","Physical Support Older People (85+)","Adult Services","Third Party Payments","Other establishments","22-Apr-21","6502174","943.95","SUPPLIER","B S CARE LTD","300000015963853"
"Portsmouth City Council","PCC","Adult Social Care","Physical Support Older People (85+)","Adult Services","Third Party Payments","Other establishments","22-Apr-21","6502174","943.95","SUPPLIER","B S CARE LTD","300000015963853"
"Portsmouth City Council","PCC","Adult Social Care","Physical Support Older People (85+)","Adult Services","Third Party Payments","Other establishments","22-Apr-21","6502174","1,044.00","SUPPLIER","B S CARE LTD","300000015963853"
"Portsmouth City Council","PCC","Adult Social Care","Physical Support Older People (85+)","Adult Services","Third Party Payments","Other establishments","22-Apr-21","6502174","1,044.00","SUPPLIER","B S CARE LTD","300000015963853"
"Portsmouth City Council","PCC","Adult Social Care","Physical Support Older People (85+)","Adult Services","Third Party Payments","Other establishments","22-Apr-21","6502174","1,076.31","SUPPLIER","B S CARE LTD","300000015963853"
"Portsmouth City Council","PCC","Adult Social Care","Social Care Activities","Adult Services","Third Party Payments","Other establishments","22-Apr-21","6502174","1,225.44","SUPPLIER","B S CARE LTD","300000015963853"
"Portsmouth City Council","PCC","Adult Social Care","Social Care Activities","Adult Services","Third Party Payments","Other establishments","22-Apr-21","6502174","1,500.75","SUPPLIER","B S CARE LTD","300000015963853"
"Portsmouth City Council","PCC","Adult Social Care","Social Care Activities","Adult Services","Third Party Payments","Other establishments","22-Apr-21","6502174","2,897.10","SUPPLIER","B S CARE LTD","300000015963853"
"Portsmouth City Council","PCC","Adult Social Care","Social Care Activities","Adult Services","Third Party Payments","Other establishments","22-Apr-21","6502174","5,102.55","SUPPLIER","B S CARE LTD","300000015963853"
"Portsmouth City Council","PCC","Adult Social Care","Physical Support Older People (85+)","Adult Services","Third Party Payments","Other establishments","13-Apr-21","6500051","3,497.10","SUPPLIER","BARCHESTER HEALTHCARE LTD","300000020462543"
"Portsmouth City Council","PCC","Adult Social Care","Learning Disability Support Adults (18 - 64)","Adult Services","Third Party Payments","Other establishments","23-Apr-21","6502334","67.7","SUPPLIER","BAYROSE LTD","300000020463435"
"Portsmouth City Council","PCC","Adult Social Care","Learning Disability Support Adults (18 - 64)","Adult Services","Third Party Payments","Other establishments","23-Apr-21","6502334","138.01","SUPPLIER","BAYROSE LTD","300000020463435"
"Portsmouth City Council","PCC","Adult Social Care","Learning Disability Support Adults (18 - 64)","Adult Services","Third Party Payments","Other establishments","23-Apr-21","6502334","244.2","SUPPLIER","BAYROSE LTD","300000020463435"
"Portsmouth City Council","PCC","Adult Social Care","Learning Disability Support Adults (18 - 64)","Adult Services","Third Party Payments","Other establishments","23-Apr-21","6502334","244.2","SUPPLIER","BAYROSE LTD","300000020463435"
"Portsmouth City Council","PCC","Adult Social Care","Learning Disability Support Adults (18 - 64)","Adult Services","Third Party Payments","Other establishments","23-Apr-21","6502334","244.2","SUPPLIER","BAYROSE LTD","300000020463435"
"Portsmouth City Council","PCC","Adult Social Care","Learning Disability Support Adults (18 - 64)","Adult Services","Third Party Payments","Other establishments","23-Apr-21","6502334","244.2","SUPPLIER","BAYROSE LTD","300000020463435"
"Portsmouth City Council","PCC","Adult Social Care","Learning Disability Support Adults (18 - 64)","Adult Services","Third Party Payments","Other establishments","23-Apr-21","6502334","244.2","SUPPLIER","BAYROSE LTD","300000020463435"
"Portsmouth City Council","PCC","Adult Social Care","Learning Disability Support Adults (18 - 64)","Adult Services","Third Party Payments","Other establishments","23-Apr-21","6502334","244.2","SUPPLIER","BAYROSE LTD","300000020463435"
"Portsmouth City Council","PCC","Adult Social Care","Learning Disability Support Adults (18 - 64)","Adult Services","Third Party Payments","Other establishments","23-Apr-21","6502334","244.2","SUPPLIER","BAYROSE LTD","300000020463435"
"Portsmouth City Council","PCC","Adult Social Care","Learning Disability Support Adults (18 - 64)","Adult Services","Third Party Payments","Other establishments","23-Apr-21","6502334","244.2","SUPPLIER","BAYROSE LTD","300000020463435"
"Portsmouth City Council","PCC","Adult Social Care","Learning Disability Support Adults (18 - 64)","Adult Services","Third Party Payments","Other establishments","23-Apr-21","6502334","244.2","SUPPLIER","BAYROSE LTD","300000020463435"
"Portsmouth City Council","PCC","Adult Social Care","Learning Disability Support Adults (18 - 64)","Adult Services","Third Party Payments","Other establishments","23-Apr-21","6502334","244.2","SUPPLIER","BAYROSE LTD","300000020463435"
"Portsmouth City Council","PCC","Adult Social Care","Learning Disability Support Adults (18 - 64)","Adult Services","Third Party Payments","Other establishments","23-Apr-21","6502334","244.2","SUPPLIER","BAYROSE LTD","300000020463435"
"Portsmouth City Council","PCC","Adult Social Care","Learning Disability Support Adults (18 - 64)","Adult Services","Third Party Payments","Other establishments","23-Apr-21","6502334","260.4","SUPPLIER","BAYROSE LTD","300000020463435"
"Portsmouth City Council","PCC","Adult Social Care","Learning Disability Support Adults (18 - 64)","Adult Services","Third Party Payments","Other establishments","23-Apr-21","6502334","341.78","SUPPLIER","BAYROSE LTD","300000020463435"
"Portsmouth City Council","PCC","Adult Social Care","Learning Disability Support Adults (18 - 64)","Adult Services","Third Party Payments","Other establishments","23-Apr-21","6502334","341.78","SUPPLIER","BAYROSE LTD","300000020463435"
"Portsmouth City Council","PCC","Adult Social Care","Learning Disability Support Adults (18 - 64)","Adult Services","Third Party Payments","Other establishments","23-Apr-21","6502334","341.78","SUPPLIER","BAYROSE LTD","300000020463435"
"Portsmouth City Council","PCC","Adult Social Care","Learning Disability Support Adults (18 - 64)","Adult Services","Third Party Payments","Other establishments","23-Apr-21","6502334","341.78","SUPPLIER","BAYROSE LTD","300000020463435"
"Portsmouth City Council","PCC","Adult Social Care","Learning Disability Support Adults (18 - 64)","Adult Services","Third Party Payments","Other establishments","23-Apr-21","6502334","341.78","SUPPLIER","BAYROSE LTD","300000020463435"
"Portsmouth City Council","PCC","Adult Social Care","Learning Disability Support Adults (18 - 64)","Adult Services","Third Party Payments","Other establishments","23-Apr-21","6502334","341.78","SUPPLIER","BAYROSE LTD","300000020463435"
"Portsmouth City Council","PCC","Adult Social Care","Learning Disability Support Adults (18 - 64)","Adult Services","Third Party Payments","Other establishments","23-Apr-21","6502334","341.78","SUPPLIER","BAYROSE LTD","300000020463435"
"Portsmouth City Council","PCC","Adult Social Care","Learning Disability Support Adults (18 - 64)","Adult Services","Third Party Payments","Other establishments","23-Apr-21","6502334","341.78","SUPPLIER","BAYROSE LTD","300000020463435"
"Portsmouth City Council","PCC","Adult Social Care","Learning Disability Support Adults (18 - 64)","Adult Services","Third Party Payments","Other establishments","23-Apr-21","6502334","341.78","SUPPLIER","BAYROSE LTD","300000020463435"
"Portsmouth City Council","PCC","Adult Social Care","Learning Disability Support Adults (18 - 64)","Adult Services","Third Party Payments","Other establishments","23-Apr-21","6502334","341.78","SUPPLIER","BAYROSE LTD","300000020463435"
"Portsmouth City Council","PCC","Adult Social Care","Learning Disability Support Adults (18 - 64)","Adult Services","Third Party Payments","Other establishments","23-Apr-21","6502334","541.63","SUPPLIER","BAYROSE LTD","300000020463435"
"Portsmouth City Council","PCC","Adult Social Care","Learning Disability Support Adults (18 - 64)","Adult Services","Third Party Payments","Other establishments","23-Apr-21","6502334","732.3","SUPPLIER","BAYROSE LTD","300000020463435"
"Portsmouth City Council","PCC","Adult Social Care","Learning Disability Support Adults (18 - 64)","Adult Services","Third Party Payments","Other establishments","23-Apr-21","6502334","732.3","SUPPLIER","BAYROSE LTD","300000020463435"
"Portsmouth City Council","PCC","Adult Social Care","Learning Disability Support Adults (18 - 64)","Adult Services","Third Party Payments","Other establishments","23-Apr-21","6502334","732.3","SUPPLIER","BAYROSE LTD","300000020463435"
"Portsmouth City Council","PCC","Adult Social Care","Learning Disability Support Adults (18 - 64)","Adult Services","Third Party Payments","Other establishments","23-Apr-21","6502334","732.3","SUPPLIER","BAYROSE LTD","300000020463435"
"Portsmouth City Council","PCC","Adult Social Care","Learning Disability Support Adults (18 - 64)","Adult Services","Third Party Payments","Other establishments","23-Apr-21","6502334","781.2","SUPPLIER","BAYROSE LTD","300000020463435"
"Portsmouth City Council","PCC","Adult Social Care","Learning Disability Support Adults (18 - 64)","Adult Services","Third Party Payments","Other establishments","23-Apr-21","6502334","867.13","SUPPLIER","BAYROSE LTD","300000020463435"
"Portsmouth City Council","PCC","Adult Social Care","Learning Disability Support Adults (18 - 64)","Adult Services","Third Party Payments","Other establishments","23-Apr-21","6502334","953.4","SUPPLIER","BAYROSE LTD","300000020463435"
"Portsmouth City Council","PCC","Adult Social Care","Learning Disability Support Adults (18 - 64)","Adult Services","Third Party Payments","Other establishments","23-Apr-21","6502334","972.59","SUPPLIER","BAYROSE LTD","300000020463435"
"Portsmouth City Council","PCC","Adult Social Care","Learning Disability Support Adults (18 - 64)","Adult Services","Third Party Payments","Other establishments","23-Apr-21","6502334","1,078.06","SUPPLIER","BAYROSE LTD","300000020463435"
"Portsmouth City Council","PCC","Adult Social Care","Learning Disability Support Adults (18 - 64)","Adult Services","Third Party Payments","Other establishments","23-Apr-21","6502334","1,239.50","SUPPLIER","BAYROSE LTD","300000020463435"
"Portsmouth City Council","PCC","Adult Social Care","Learning Disability Support Adults (18 - 64)","Adult Services","Third Party Payments","Other establishments","23-Apr-21","6502334","1,309.81","SUPPLIER","BAYROSE LTD","300000020463435"
"Portsmouth City Council","PCC","Adult Social Care","Learning Disability Support Adults (18 - 64)","Adult Services","Third Party Payments","Other establishments","23-Apr-21","6502334","1,334.55","SUPPLIER","BAYROSE LTD","300000020463435"
"Portsmouth City Council","PCC","Adult Social Care","Learning Disability Support Adults (18 - 64)","Adult Services","Third Party Payments","Other establishments","23-Apr-21","6502334","1,430.10","SUPPLIER","BAYROSE LTD","300000020463435"
"Portsmouth City Council","PCC","Adult Social Care","Learning Disability Support Adults (18 - 64)","Adult Services","Third Party Payments","Other establishments","23-Apr-21","6502334","1,430.10","SUPPLIER","BAYROSE LTD","300000020463435"
"Portsmouth City Council","PCC","Adult Social Care","Learning Disability Support Adults (18 - 64)","Adult Services","Third Party Payments","Other establishments","23-Apr-21","6502334","1,689.56","SUPPLIER","BAYROSE LTD","300000020463435"
"Portsmouth City Council","PCC","Adult Social Care","Learning Disability Support Adults (18 - 64)","Adult Services","Third Party Payments","Other establishments","23-Apr-21","6502334","1,692.29","SUPPLIER","BAYROSE LTD","300000020463435"
"Portsmouth City Council","PCC","Adult Social Care","Learning Disability Support Adults (18 - 64)","Adult Services","Third Party Payments","Other establishments","23-Apr-21","6502334","1,708.88","SUPPLIER","BAYROSE LTD","300000020463435"
"Portsmouth City Council","PCC","Adult Social Care","Learning Disability Support Adults (18 - 64)","Adult Services","Third Party Payments","Other establishments","23-Apr-21","6502334","1,708.88","SUPPLIER","BAYROSE LTD","300000020463435"
"Portsmouth City Council","PCC","Adult Social Care","Learning Disability Support Adults (18 - 64)","Adult Services","Third Party Payments","Other establishments","23-Apr-21","6502334","1,708.88","SUPPLIER","BAYROSE LTD","300000020463435"
"Portsmouth City Council","PCC","Adult Social Care","Learning Disability Support Adults (18 - 64)","Adult Services","Third Party Payments","Other establishments","23-Apr-21","6502334","1,708.88","SUPPLIER","BAYROSE LTD","300000020463435"
"Portsmouth City Council","PCC","Adult Social Care","Learning Disability Support Adults (18 - 64)","Adult Services","Third Party Payments","Other establishments","23-Apr-21","6502334","1,708.88","SUPPLIER","BAYROSE LTD","300000020463435"
"Portsmouth City Council","PCC","Adult Social Care","Learning Disability Support Adults (18 - 64)","Adult Services","Third Party Payments","Other establishments","23-Apr-21","6502334","1,708.88","SUPPLIER","BAYROSE LTD","300000020463435"
"Portsmouth City Council","PCC","Adult Social Care","Learning Disability Support Adults (18 - 64)","Adult Services","Third Party Payments","Other establishments","23-Apr-21","6502334","1,708.88","SUPPLIER","BAYROSE LTD","300000020463435"
"Portsmouth City Council","PCC","Adult Social Care","Learning Disability Support Adults (18 - 64)","Adult Services","Third Party Payments","Other establishments","23-Apr-21","6502334","1,708.88","SUPPLIER","BAYROSE LTD","300000020463435"
"Portsmouth City Council","PCC","Adult Social Care","Learning Disability Support Adults (18 - 64)","Adult Services","Third Party Payments","Other establishments","23-Apr-21","6502334","1,708.88","SUPPLIER","BAYROSE LTD","300000020463435"
"Portsmouth City Council","PCC","Adult Social Care","Learning Disability Support Adults (18 - 64)","Adult Services","Third Party Payments","Other establishments","23-Apr-21","6502334","1,708.88","SUPPLIER","BAYROSE LTD","300000020463435"
"Portsmouth City Council","PCC","Adult Social Care","Learning Disability Support Adults (18 - 64)","Adult Services","Third Party Payments","Other establishments","23-Apr-21","6502334","2,464.04","SUPPLIER","BAYROSE LTD","300000020463435"
"Portsmouth City Council","PCC","Adult Social Care","Learning Disability Support Adults (18 - 64)","Adult Services","Third Party Payments","Other establishments","23-Apr-21","6502334","2,860.20","SUPPLIER","BAYROSE LTD","300000020463435"
"Portsmouth City Council","PCC","Adult Social Care","Learning Disability Support Adults (18 - 64)","Adult Services","Third Party Payments","Other establishments","23-Apr-21","6502334","3,030.45","SUPPLIER","BAYROSE LTD","300000020463435"
"Portsmouth City Council","PCC","Adult Social Care","Mental Health Support Adults (18 - 64)","Adult Services","Third Party Payments","Other establishments","13-Apr-21","6500016","1,872.90","SUPPLIER","BEACONSFIELD CARE LTD","300000020458024"
"Portsmouth City Council","PCC","Adult Social Care","Mental Health Support Adults (18 - 64)","Adult Services","Third Party Payments","Other establishments","13-Apr-21","6500016","1,872.90","SUPPLIER","BEACONSFIELD CARE LTD","300000020458024"
"Portsmouth City Council","PCC","Adult Social Care","Mental Health Support Adults (18 - 64)","Adult Services","Third Party Payments","Other establishments","13-Apr-21","6500016","1,872.90","SUPPLIER","BEACONSFIELD CARE LTD","300000020458024"
"Portsmouth City Council","PCC","Adult Social Care","Mental Health Support Adults (18 - 64)","Adult Services","Third Party Payments","Other establishments","13-Apr-21","6500016","1,872.90","SUPPLIER","BEACONSFIELD CARE LTD","300000020458024"
"Portsmouth City Council","PCC","Adult Social Care","Mental Health Support Adults (18 - 64)","Adult Services","Third Party Payments","Other establishments","13-Apr-21","6500016","1,872.90","SUPPLIER","BEACONSFIELD CARE LTD","300000020458024"
"Portsmouth City Council","PCC","Adult Social Care","Mental Health Support Adults (18 - 64)","Adult Services","Third Party Payments","Other establishments","13-Apr-21","6500016","1,872.90","SUPPLIER","BEACONSFIELD CARE LTD","300000020458024"
"Portsmouth City Council","PCC","Adult Social Care","Mental Health Support Adults (18 - 64)","Adult Services","Third Party Payments","Other establishments","13-Apr-21","6500016","1,872.90","SUPPLIER","BEACONSFIELD CARE LTD","300000020458024"
"Portsmouth City Council","PCC","Adult Social Care","Mental Health Support Adults (18 - 64)","Adult Services","Third Party Payments","Other establishments","13-Apr-21","6500016","1,872.90","SUPPLIER","BEACONSFIELD CARE LTD","300000020458024"
"Portsmouth City Council","PCC","Adult Social Care","Mental Health Support Adults (18 - 64)","Adult Services","Third Party Payments","Other establishments","13-Apr-21","6500016","1,908.60","SUPPLIER","BEACONSFIELD CARE LTD","300000020458024"
"Portsmouth City Council","PCC","Adult Social Care","Mental Health Support Adults (18 - 64)","Adult Services","Third Party Payments","Other establishments","13-Apr-21","6500016","1,944.90","SUPPLIER","BEACONSFIELD CARE LTD","300000020458024"
"Portsmouth City Council","PCC","Adult Social Care","Mental Health Support Adults (18 - 64)","Adult Services","Third Party Payments","Other establishments","13-Apr-21","6500016","1,980.60","SUPPLIER","BEACONSFIELD CARE LTD","300000020458024"
"Portsmouth City Council","PCC","Adult Social Care","Mental Health Support Adults (18 - 64)","Adult Services","Third Party Payments","Other establishments","13-Apr-21","6500016","2,036.70","SUPPLIER","BEACONSFIELD CARE LTD","300000020458024"
"Portsmouth City Council","PCC","Adult Social Care","Mental Health Support Adults (18 - 64)","Adult Services","Third Party Payments","Other establishments","13-Apr-21","6500016","2,398.20","SUPPLIER","BEACONSFIELD CARE LTD","300000020458024"
"Portsmouth City Council","PCC","Children's and Education Services","Children Looked After","Children's Services and Education","Third Party Payments","Other establishments","28-Apr-21","6502920","-578.57","SUPPLIER","BPA CARE LIMITED","300000020475549"
"Portsmouth City Council","PCC","Children's and Education Services","Children Looked After","Children's Services and Education","Third Party Payments","Other establishments","28-Apr-21","6502920","-30","SUPPLIER","BPA CARE LIMITED","300000020475549"
"Portsmouth City Council","PCC","Children's and Education Services","Children Looked After","Children's Services and Education","Third Party Payments","Other establishments","28-Apr-21","6502920","-8.57","SUPPLIER","BPA CARE LIMITED","300000020475549"
"Portsmouth City Council","PCC","Children's and Education Services","Children Looked After","Children's Services and Education","Third Party Payments","Other establishments","28-Apr-21","6502920","-4.29","SUPPLIER","BPA CARE LIMITED","300000020475549"
"Portsmouth City Council","PCC","Children's and Education Services","Children Looked After","Children's Services and Education","Third Party Payments","Other establishments","28-Apr-21","6502920","115.71","SUPPLIER","BPA CARE LIMITED","300000020475549"
"Portsmouth City Council","PCC","Children's and Education Services","Children Looked After","Children's Services and Education","Third Party Payments","Other establishments","28-Apr-21","6502920","157.29","SUPPLIER","BPA CARE LIMITED","300000020475549"
"Portsmouth City Council","PCC","Children's and Education Services","Children Looked After","Children's Services and Education","Third Party Payments","Other establishments","28-Apr-21","6502920","231.43","SUPPLIER","BPA CARE LIMITED","300000020475549"
"Portsmouth City Council","PCC","Children's and Education Services","Children Looked After","Children's Services and Education","Third Party Payments","Other establishments","28-Apr-21","6502920","810","SUPPLIER","BPA CARE LIMITED","300000020475549"
"Portsmouth City Council","PCC","Children's and Education Services","Children Looked After","Children's Services and Education","Third Party Payments","Other establishments","28-Apr-21","6502920","314.57","SUPPLIER","BPA CARE LIMITED","300000020475549"
"Portsmouth City Council","PCC","Children's and Education Services","Children Looked After","Children's Services and Education","Third Party Payments","Other establishments","28-Apr-21","6502920","1,101.00","SUPPLIER","BPA CARE LIMITED","300000020475549"
"Portsmouth City Council","PCC","Children's and Education Services","Children Looked After","Children's Services and Education","Third Party Payments","Other establishments","30-Apr-21","6503869","457.14","SUPPLIER","WESTERN PATHWAYS LIMITED","300000020475374"
"Portsmouth City Council","PCC","Children's and Education Services","Children Looked After","Children's Services and Education","Third Party Payments","Other establishments","30-Apr-21","6503869","1,142.86","SUPPLIER","WESTERN PATHWAYS LIMITED","300000020475374"
"Portsmouth City Council","PCC","Children's and Education Services","Children Looked After","Children's Services and Education","Third Party Payments","Other establishments","19-Apr-21","6501220","379","SUPPLIER","PATHWAYS TO INDEPENDENCE HOUSING (UK) LIMITED","300000020480095"
"Portsmouth City Council","PCC","Children's and Education Services","Family Support Services","Children's Services and Education","Third Party Payments","Other establishments","23-Apr-21","6502467","1,395.00","SUPPLIER","CENTENNIAL PROPERTY LTD T/A THE HOUSING NETWORK","300000020474418"
"Portsmouth City Council","PCC","Children's and Education Services","Children Looked After","Children's Services and Education","Third Party Payments","Other establishments","14-Apr-21","6500553","21.42","PRIVATE PROVIDER","Classified as 'personal data' (under the Data Protection Act 2018)","300000020471588"
